Department Family,Entity,Date,Expense Type,Expense Area,Supplier,Transaction Number,Amount,Description
Department for Education,Core,12/07/2023,IS/IT,Operational Finance,Mercurius IT Ltd.,CORE-PINV-061132,"131,821.48",End User Software & Hardware
Department for Education,Core,10/07/2023,Other Costs,Operational Finance,AGILE MANAGEMENT SOLUTIONS LTD,CORE-PINV-060845,"6,191.48",Software Development
Department for Education,Core,10/07/2023,Other Costs,Operational Finance,AGILE MANAGEMENT SOLUTIONS LTD,CORE-PINV-060845,"20,638.28",Software Development
Department for Education,Core,10/07/2023,Other Costs,Operational Finance,AGILE MANAGEMENT SOLUTIONS LTD,CORE-PINV-060845,"20,638.28",Software Development
Department for Education,Core,10/07/2023,Other Costs,Operational Finance,AGILE MANAGEMENT SOLUTIONS LTD,CORE-PINV-060845,"51,595.69",Software Development
Department for Education,Core,10/07/2023,Other Costs,Operational Finance,AGILE MANAGEMENT SOLUTIONS LTD,CORE-PINV-060845,"107,319.03",Software Development
Department for Education,Core,04/07/2023,Accommodation & Estates - Rent & Rates,Estates,Government Property Agency,CORE-PINV-060545,"1,449,457.99",Rentals
Department for Education,Core,04/07/2023,Accommodation & Estates - Rent & Rates,Estates,Government Property Agency,CORE-PINV-060546,"1,449,457.99",Rentals
Department for Education,Core,04/07/2023,Accommodation & Estates - Rent & Rates,Estates,Government Property Agency,CORE-PINV-056842,"143,446.39",Rentals
Department for Education,Core,04/07/2023,Accommodation & Estates - Other,Estates,Government Property Agency,CORE-PINV-060568,"186,023.43",Estates Management
Department for Education,Core,04/07/2023,Accommodation & Estates - Rent & Rates,Estates,Government Property Agency,CORE-PINV-060568,"49,009.32",Rentals
Department for Education,Core,03/07/2023,Staff - Other,Estates,HOME OFFICE,CORE-PINV-060549,"43,327.00",Recruitment Advertising
Department for Education,Core,04/07/2023,Accommodation & Estates - Rent & Rates,Estates,Government Property Agency,CORE-PINV-057375,"1,536,371.79",Rentals
Department for Education,Core,04/07/2023,Accommodation & Estates - Other,Estates,Government Property Agency,CORE-PCR-002203,"-184,091.43",Estates Management
Department for Education,Core,04/07/2023,Accommodation & Estates - Maintenance,Estates,Government Property Agency,CORE-PINV-060615,"16,535.26",Maintenance & Repairs
Department for Education,Core,04/07/2023,Accommodation & Estates - Other,Estates,Government Property Agency,CORE-PINV-060615,"3,755.00",Estates Management
Department for Education,Core,04/07/2023,Accommodation & Estates - Rent & Rates,Estates,Government Property Agency,CORE-PINV-060615,"95,234.42",Rentals
Department for Education,Core,04/07/2023,Accommodation & Estates - Maintenance,Estates,Government Property Agency,CORE-PINV-060616,"128,956.30",Maintenance & Repairs
Department for Education,Core,04/07/2023,Accommodation & Estates - Other,Estates,Government Property Agency,CORE-PINV-060616,"24,676.87",Estates Management
Department for Education,Core,04/07/2023,Accommodation & Estates - Rent & Rates,Estates,Government Property Agency,CORE-PINV-060616,"219,824.82",Rentals
Department for Education,Core,04/07/2023,Accommodation & Estates - Maintenance,Estates,Government Property Agency,CORE-PINV-060617,"257,156.16",Maintenance & Repairs
Department for Education,Core,04/07/2023,Accommodation & Estates - Other,Estates,Government Property Agency,CORE-PINV-060617,"23,435.22",Estates Management
Department for Education,Core,04/07/2023,Accommodation & Estates - Rent & Rates,Estates,Government Property Agency,CORE-PINV-060617,"261,191.33",Rentals
Department for Education,Core,04/07/2023,Accommodation & Estates - Maintenance,Estates,Government Property Agency,CORE-PINV-060618,"29,169.80",Maintenance & Repairs
Department for Education,Core,04/07/2023,Accommodation & Estates - Other,Estates,Government Property Agency,CORE-PINV-060618,"12,188.85",Estates Management
Department for Education,Core,04/07/2023,Accommodation & Estates - Rent & Rates,Estates,Government Property Agency,CORE-PINV-060618,"161,246.38",Rentals
Department for Education,Core,04/07/2023,Accommodation & Estates - Other,Estates,Government Property Agency,CORE-PINV-060619,"3,755.00",Estates Management
Department for Education,Core,04/07/2023,Accommodation & Estates - Rent & Rates,Estates,Government Property Agency,CORE-PINV-060619,"102,558.81",Rentals
Department for Education,Core,04/07/2023,Accommodation & Estates - Other,Estates,Government Property Agency,CORE-PINV-060621,"11,354.06",Estates Management
Department for Education,Core,04/07/2023,Accommodation & Estates - Rent & Rates,Estates,Government Property Agency,CORE-PINV-060621,"32,010.92",Rentals
Department for Education,Core,04/07/2023,Accommodation & Estates - Rent & Rates,Estates,Government Property Agency,CORE-PINV-060621,"181,218.62",Rentals
Department for Education,Core,04/07/2023,Accommodation & Estates - Maintenance,Estates,Government Property Agency,CORE-PINV-060622,"15,099.95",Maintenance & Repairs
Department for Education,Core,04/07/2023,Accommodation & Estates - Other,Estates,Government Property Agency,CORE-PINV-060622,"8,120.84",Estates Management
Department for Education,Core,04/07/2023,Accommodation & Estates - Rent & Rates,Estates,Government Property Agency,CORE-PINV-060622,"83,848.52",Rentals
Department for Education,Core,04/07/2023,Accommodation & Estates - Maintenance,Estates,Government Property Agency,CORE-PINV-060623,"298,887.99",Maintenance & Repairs
Department for Education,Core,04/07/2023,Accommodation & Estates - Other,Estates,Government Property Agency,CORE-PINV-060623,"46,137.54",Estates Management
Department for Education,Core,04/07/2023,Accommodation & Estates - Rent & Rates,Estates,Government Property Agency,CORE-PINV-060623,"550,746.91",Rentals
Department for Education,Core,04/07/2023,Accommodation & Estates - Maintenance,Estates,Government Property Agency,CORE-PINV-060624,"11,371.93",Maintenance & Repairs
Department for Education,Core,04/07/2023,Accommodation & Estates - Other,Estates,Government Property Agency,CORE-PINV-060624,"7,042.96",Estates Management
Department for Education,Core,04/07/2023,Accommodation & Estates - Rent & Rates,Estates,Government Property Agency,CORE-PINV-060624,"64,694.83",Rentals
Department for Education,Core,04/07/2023,Accommodation & Estates - Maintenance,Estates,Government Property Agency,CORE-PINV-060625,"41,912.42",Maintenance & Repairs
Department for Education,Core,04/07/2023,Accommodation & Estates - Other,Estates,Government Property Agency,CORE-PINV-060625,"15,873.12",Estates Management
Department for Education,Core,04/07/2023,Accommodation & Estates - Rent & Rates,Estates,Government Property Agency,CORE-PINV-060625,"230,560.11",Rentals
Department for Education,Core,04/07/2023,Accommodation & Estates - Maintenance,Estates,Government Property Agency,CORE-PINV-060626,"261,557.38",Maintenance & Repairs
Department for Education,Core,04/07/2023,Accommodation & Estates - Other,Estates,Government Property Agency,CORE-PINV-060626,"46,190.06",Estates Management
Department for Education,Core,04/07/2023,Accommodation & Estates - Rent & Rates,Estates,Government Property Agency,CORE-PINV-060626,"484,533.35",Rentals
Department for Education,Core,04/07/2023,Accommodation & Estates - Maintenance,Estates,Government Property Agency,CORE-PINV-060631,"4,920.53",Maintenance & Repairs
Department for Education,Core,04/07/2023,Accommodation & Estates - Other,Estates,Government Property Agency,CORE-PINV-060631,"2,098.75",Estates Management
Department for Education,Core,04/07/2023,Accommodation & Estates - Rent & Rates,Estates,Government Property Agency,CORE-PINV-060631,"40,892.62",Rentals
Department for Education,Core,04/07/2023,Accommodation & Estates - Maintenance,Estates,Government Property Agency,CORE-PINV-060614,"15,622.30",Maintenance & Repairs
Department for Education,Core,04/07/2023,Accommodation & Estates - Other,Estates,Government Property Agency,CORE-PINV-060614,"5,520.22",Estates Management
Department for Education,Core,04/07/2023,Accommodation & Estates - Rent & Rates,Estates,Government Property Agency,CORE-PINV-060614,"46,990.37",Rentals
Department for Education,Core,04/07/2023,Accommodation & Estates - Maintenance,Estates,Government Property Agency,CORE-PINV-060632,"15,622.30",Maintenance & Repairs
Department for Education,Core,04/07/2023,Accommodation & Estates - Other,Estates,Government Property Agency,CORE-PINV-060632,"5,520.22",Estates Management
Department for Education,Core,04/07/2023,Accommodation & Estates - Rent & Rates,Estates,Government Property Agency,CORE-PINV-060632,"46,990.37",Rentals
Department for Education,Core,03/07/2023,Other Costs,Estates,Arcadis LLP,CORE-PINV-060010,"38,550.67",Building Improvements
Department for Education,Core,05/07/2023,Other Costs,Estates,MACE LIMITED,CORE-PINV-060653,"43,429.49",Building Improvements
Department for Education,Core,10/07/2023,Other Costs,Estates,Arcadis LLP,CORE-PINV-060850,"42,369.85",Building Improvements
Department for Education,Core,19/07/2023,Other Costs,Estates,Willmott Dixon Construction Limited,CORE-PINV-061554,"162,971.20",Building Improvements
Department for Education,Core,18/07/2023,Accommodation & Estates - Other,Estates,WAGSTAFF BROS,CORE-PINV-061377,"55,372.00",Furniture & Fittings
Department for Education,Core,20/07/2023,Other Costs,Estates,ISG Construction Limited,CORE-PINV-061573,"119,856.84",Building Improvements
Department for Education,Core,28/07/2023,IS/IT,Funding,WELLDATA LTD,CORE-PINV-061203,"33,110.00",ICT Support & Services
Department for Education,Core,28/07/2023,IS/IT,Funding,WELLDATA LTD,CORE-PCR-002287,"-33,110.00",ICT Support & Services
Department for Education,Core,28/07/2023,IS/IT,Funding,WELLDATA LTD,CORE-PINV-062114,"27,110.00",ICT Support & Services
Department for Education,Core,07/07/2023,Staff - Temporary Staff,Commercial,INVESTIGO LTD,CORE-PINV-060836,"91,627.20",Short term & agency staff
Department for Education,Core,14/07/2023,Other Costs,Commercial,ENGINE PARTNERS UK LLP THE ENGINE GROUP LTD,CORE-PINV-061271,"71,737.60",Software Development
Department for Education,Core,25/07/2023,Other Goods & Services,Commercial,TOPMARK CLAIMS MANAGEMENT LTD,CORE-PINV-061115,"34,407.04",Professional Services
Department for Education,Core,25/07/2023,Other Goods & Services,Commercial,TOPMARK CLAIMS MANAGEMENT LTD,CORE-PINV-061118,"33,689.14",Professional Services
Department for Education,Core,28/07/2023,Other Goods & Services,Commercial,GOVERNMENT ACTUARYS DEPT,CORE-PINV-062121,"87,439.51",Professional Services
Department for Education,Core,11/07/2023,Legal,Commercial,THE GOVERNMENT LEGAL DEPARTMENT,CORE-PINV-060954,"339,750.00",Professional Services - Legal
Department for Education,Core,20/07/2023,Provisions,Human Resources,Broadstone Pensions Limited,CORE-PINV-059563,"69,023.64",Pension payments for a small closed pension scheme
Department for Education,Core,14/07/2023,Staff - Other,Human Resources,DURADIAMOND HEALTHCARE LIMITED,CORE-PINV-061284,"23,283.34",Occupational Health
Department for Education,Core,31/07/2023,Legal,Human Resources,THE GOVERNMENT LEGAL DEPARTMENT,CORE-PINV-062374,"24,382.40",Professional Services - Government Legal Department
Department for Education,Core,19/07/2023,Other Costs,Human Resources,HMRC,CUPS0071251,"1,095,688.82",Voluntary Exit Scheme Costs
Department for Education,Core,03/07/2023,IS/IT,Technology,BYTES SOFTWARE SERVICES LIMITED,CORE-PINV-060421,"44,296.01",End User Software & Hardware
Department for Education,Core,12/07/2023,IS/IT,Technology,BYTES SOFTWARE SERVICES LIMITED,CORE-PINV-060750,"3,266,623.69",End User Software & Hardware
Department for Education,Core,17/07/2023,Other Goods & Services,Customer Experience and Digital,ANDIGITAL LIMITED,CORE-PINV-061249,"145,092.00",Professional Services
Department for Education,Core,17/07/2023,Other Goods & Services,Customer Experience and Digital,ANDIGITAL LIMITED,CORE-PINV-061248,"153,276.00",Professional Services
Department for Education,Core,17/07/2023,Other Goods & Services,Customer Experience and Digital,ANDIGITAL LIMITED,CORE-PINV-061315,"74,571.00",Professional Services
Department for Education,Core,13/07/2023,Other Goods & Services,Technology,ALEXANDER MANN SOLUTIONS LIMITED,CORE-PINV-061083,"28,425.28",Professional Services
Department for Education,Core,03/07/2023,Other Goods & Services,Technology,SOL-TEC LIMITED,CORE-PINV-060450,"49,539.00",Professional Services
Department for Education,Core,04/07/2023,Other Goods & Services,Technology,SOL-TEC LIMITED,CORE-PINV-060452,"27,217.20",Professional Services
Department for Education,Core,13/07/2023,Other Goods & Services,Technology,SOL-TEC LIMITED,CORE-PINV-061219,"47,059.20",Professional Services
Department for Education,Core,14/07/2023,IS/IT,Technology,BYTES SOFTWARE SERVICES LIMITED,CORE-PINV-060865,"1,607,597.37",End User Software & Hardware
Department for Education,Core,17/07/2023,Other Goods & Services,Technology,SOL-TEC LIMITED,CORE-PINV-061265,"27,320.93",Professional Services
Department for Education,Core,17/07/2023,IS/IT,Technology,BT GROUP PLC,CORE-PINV-061367,"242,972.84",Telecoms facilities and services
Department for Education,Core,17/07/2023,Other Goods & Services,Technology,Methods Business and Digital Technology Ltd,CORE-PINV-061225,"96,888.00",Professional Services
Department for Education,Core,05/07/2023,Other Goods & Services,SARDIS,I.F.F RESEARCH LIMITED,CORE-PINV-059090,"49,327.00",Research & Evaluation
Department for Education,Core,05/07/2023,Other Goods & Services,SARDIS,I.F.F RESEARCH LIMITED,CORE-PCR-002179,"-49,327.00",Research & Evaluation
Department for Education,Core,05/07/2023,Other Goods & Services,SARDIS,I.F.F RESEARCH LIMITED,CORE-PINV-059688,"20,993.00",Research & Evaluation
Department for Education,Core,06/07/2023,Other Goods & Services,SARDIS,IPSOS (MARKET RESEARCH) LTD,CORE-PINV-060738,"373,174.00",Research & Evaluation
Department for Education,Core,07/07/2023,Other Goods & Services,SARDIS,I.F.F RESEARCH LIMITED,CORE-PINV-060790,"22,270.00",Research & Evaluation
Department for Education,Core,10/07/2023,Other Goods & Services,SARDIS,York Consulting LLP,CORE-PINV-060006,"23,512.50",Research & Evaluation
Department for Education,Core,19/07/2023,Other Goods & Services,SARDIS,NATIONAL CENTRE FOR SOCIAL RESEARCH,CORE-PINV-059087,"100,000.00",Research & Evaluation
Department for Education,Core,20/07/2023,Other Goods & Services,SARDIS,I.F.F RESEARCH LIMITED,CORE-PINV-061697,"121,645.00",Research & Evaluation
Department for Education,Core,20/07/2023,Other Goods & Services,SARDIS,I.F.F RESEARCH LIMITED,CORE-PINV-061698,"32,364.00",Research & Evaluation
Department for Education,Core,21/07/2023,Other Goods & Services,SARDIS,IPSOS (MARKET RESEARCH) LTD,CORE-PINV-061780,"29,887.00",Research & Evaluation
Department for Education,Core,27/07/2023,Other Goods & Services,SARDIS,I.F.F RESEARCH LIMITED,CORE-PINV-061880,"44,671.50",Research & Evaluation
Department for Education,Core,28/07/2023,Other Goods & Services,SARDIS,I.F.F RESEARCH LIMITED,CORE-PINV-061696,"49,327.00",Research & Evaluation
Department for Education,Core,28/07/2023,Other Goods & Services,SARDIS,Institute for Employment Studies,CORE-PINV-062062,"27,440.00",Research & Evaluation
Department for Education,Core,28/07/2023,Other Goods & Services,SARDIS,I.F.F RESEARCH LIMITED,CORE-PINV-062129,"26,937.50",Research & Evaluation
Department for Education,Core,28/07/2023,Other Goods & Services,SARDIS,I.F.F RESEARCH LIMITED,CORE-PINV-062128,"49,970.60",Research & Evaluation
Department for Education,Core,14/07/2023,Other Costs,SARDIS,NATIONAL CENTRE FOR SOCIAL RESEARCH,CORE-PINV-059085,"200,000.00",Research & development
Department for Education,Core,14/07/2023,Other Costs,SARDIS,NATIONAL CENTRE FOR SOCIAL RESEARCH,CORE-PCR-002209,"-200,000.00",Research & development
Department for Education,Core,05/07/2023,Other Costs,SARDIS,KANTAR PUBLIC UK LIMITED,CORE-PINV-060640,"51,815.00",Research & development
Department for Education,Core,07/07/2023,Other Costs,SARDIS,NATIONAL FOUNDATION FOR EDUCATIONAL RESEARCH NFER,CORE-PINV-060835,"62,218.26",Research & development
Department for Education,Core,14/07/2023,Other Costs,SARDIS,NATIONAL CENTRE FOR SOCIAL RESEARCH,CORE-PINV-061264,"100,000.00",Research & development
Department for Education,Core,13/07/2023,Other Costs,SARDIS,Institute for Employment Studies,CORE-PINV-061163,"27,692.50",Research & development
Department for Education,Core,06/07/2023,Other Costs,SARDIS,ECORYS UK LTD,CORE-PINV-059088,"37,906.00",Research & development
Department for Education,Core,17/07/2023,IS/IT,Data,Engine Partners UK LLP - Engine Transformation,CORE-PINV-061317,"38,100.00",ICT repair & maintenance
Department for Education,Core,17/07/2023,Other Costs,Data,Engine Partners UK LLP - Engine Transformation,CORE-PINV-061314,"246,705.00",Software Development
Department for Education,Core,17/07/2023,IS/IT,Data,Engine Partners UK LLP - Engine Transformation,CORE-PINV-061313,"164,544.00",ICT repair & maintenance
Department for Education,Core,17/07/2023,Other Costs,Data,Engine Partners UK LLP - Engine Transformation,CORE-PINV-061311,"51,690.00",Software Development
Department for Education,Core,17/07/2023,IS/IT,Data,Engine Partners UK LLP - Engine Transformation,CORE-PINV-061310,"40,260.00",ICT repair & maintenance
Department for Education,Core,17/07/2023,IS/IT,Data,Engine Partners UK LLP - Engine Transformation,CORE-PINV-061309,"30,856.00",ICT repair & maintenance
Department for Education,Core,17/07/2023,Other Costs,Data,Engine Partners UK LLP - Engine Transformation,CORE-PINV-061301,"93,930.00",Software Development
Department for Education,Core,17/07/2023,IS/IT,Data,Engine Partners UK LLP - Engine Transformation,CORE-PINV-061302,"38,256.00",ICT repair & maintenance
Department for Education,Core,17/07/2023,IS/IT,Data,Engine Partners UK LLP - Engine Transformation,CORE-PINV-061303,"43,032.00",ICT repair & maintenance
Department for Education,Core,17/07/2023,IS/IT,Data,Engine Partners UK LLP - Engine Transformation,CORE-PINV-061304,"37,662.00",ICT repair & maintenance
Department for Education,Core,17/07/2023,Other Costs,Data,Engine Partners UK LLP - Engine Transformation,CORE-PINV-061318,"395,280.00",Software Development
Department for Education,Core,17/07/2023,Other Costs,Data,Engine Partners UK LLP - Engine Transformation,CORE-PINV-061307,"93,930.00",Software Development
Department for Education,Core,17/07/2023,Other Costs,Data,Engine Partners UK LLP - Engine Transformation,CORE-PINV-061308,"39,424.00",Software Development
Department for Education,Core,21/07/2023,IS/IT,Data,Solirius Consulting,CORE-PINV-061488,"46,032.00",ICT repair & maintenance
Department for Education,Core,21/07/2023,IS/IT,Data,Solirius Consulting,CORE-PINV-061486,"33,264.00",ICT repair & maintenance
Department for Education,Core,27/07/2023,IS/IT,Data,Engine Partners UK LLP - Engine Transformation,CORE-PINV-061316,"289,982.20",ICT repair & maintenance
Department for Education,Core,28/07/2023,IS/IT,Data,COGNIZANT WORLDWIDE LIMITED,CORE-PINV-061507,"29,415.00",ICT repair & maintenance
Department for Education,Core,13/07/2023,IS/IT,SARDIS,HIVE IT LIMITED,CORE-PINV-061210,"110,712.00",Systems Operations
Department for Education,Core,17/07/2023,IS/IT,Data,SCRUMCONNECT LIMITED,CORE-PINV-060891,"62,700.00",Support - Managed Services
Department for Education,Core,17/07/2023,IS/IT,Data,Bramble Hub Limited,CORE-PINV-061129,"66,960.00",Support - Managed Services
Department for Education,Core,28/07/2023,IS/IT,Data,COGNIZANT WORLDWIDE LIMITED,CORE-PINV-061513,"77,772.00",ICT repair & maintenance
Department for Education,Core,18/07/2023,IS/IT,Data,Bramble Hub Limited,CORE-PINV-061370,"25,740.00",ICT repair & maintenance
Department for Education,Core,18/07/2023,IS/IT,Data,Bramble Hub Limited,CORE-PINV-061371,"32,640.00",Support - Managed Services
Department for Education,Core,21/07/2023,IS/IT,Data,Solirius Consulting,CORE-PINV-061833,"46,327.20",Support - Managed Services
Department for Education,Core,28/07/2023,IS/IT,Data,Opencast Software Europe ltd,CORE-PINV-062060,"825,570.00",Systems Operations
Department for Education,Core,11/07/2023,Grants Expenditure,Capital Directorate,PORTAKABIN LIMITED,D-PINV056129,"166,226.58",Current grants - Academy Trust
Department for Education,Core,07/07/2023,Other Costs,Capital Directorate,MOTT MACDONALD LIMITED,D-PINV056155,"32,430.00",Research & development
Department for Education,Core,28/07/2023,Other Goods & Services,Capital Directorate,Lyreco UK Limited,D-PINV056208,"3,330,843.10",Defibrillators for state-funded schools in England for AED programme
Department for Education,Core,07/07/2023,Grants Expenditure,Capital Directorate,The Sea View Trust,DU00100907,"25,310.00",Capital grants - Academy Trust
Department for Education,Core,07/07/2023,Grants Expenditure,Capital Directorate,Portsmouth City Council,DU00100908,"63,057.08",Capital grants - Local Government
Department for Education,Core,07/07/2023,Grants Expenditure,Capital Directorate,LIVERPOOL CITY COUNCIL,DU00100911,"32,709.51",Capital grants - Local Government
Department for Education,Core,07/07/2023,Grants Expenditure,Capital Directorate,The East Manchester Academy,DU00100913,"53,644.00",Capital grants - Academy Trust
Department for Education,Core,07/07/2023,Grants Expenditure,Capital Directorate,Wessex Multi Academy Trust,DU00100914,"71,988.23",Capital grants - Academy Trust
Department for Education,Core,07/07/2023,Grants Expenditure,Capital Directorate,Diocese of Salford,DU00100915,"65,763.78",Capital grants - Academy Trust
Department for Education,Core,07/07/2023,Grants Expenditure,Capital Directorate,Astrea Academy Trust,DU00100916,"50,195.18",Capital grants - Academy Trust
Department for Education,Core,07/07/2023,Grants Expenditure,Capital Directorate,Astrea Academy Trust,DU00100917,"149,196.81",Capital grants - Academy Trust
Department for Education,Core,07/07/2023,Grants Expenditure,Capital Directorate,Astrea Academy Trust,DU00100918,"30,712.60",Capital grants - Academy Trust
Department for Education,Core,07/07/2023,Grants Expenditure,Capital Directorate,Astrea Academy Trust,DU00100919,"36,475.40",Capital grants - Academy Trust
Department for Education,Core,07/07/2023,Grants Expenditure,Capital Directorate,Astrea Academy Trust,DU00100920,"45,167.77",Capital grants - Academy Trust
Department for Education,Core,07/07/2023,Grants Expenditure,Capital Directorate,Astrea Academy Trust,DU00100921,"33,958.54",Capital grants - Academy Trust
Department for Education,Core,07/07/2023,Grants Expenditure,Capital Directorate,Archdiocese of Liverpool,DU00100922,"27,410.47",Capital grants - Local Government
Department for Education,Core,07/07/2023,Grants Expenditure,Capital Directorate,Plymouth CAST,DU00100923,"29,890.39",Capital grants - Local Government
Department for Education,Core,07/07/2023,Grants Expenditure,Capital Directorate,LIVERPOOL CITY COUNCIL,DU00100924,"38,775.38",Capital grants - Local Government
Department for Education,Core,07/07/2023,Grants Expenditure,Capital Directorate,KNOWSLEY METRO BOROUGH COUNCIL,DU00100928,"38,408.55",Capital grants - Local Government
Department for Education,Core,07/07/2023,Grants Expenditure,Capital Directorate,Learner Engagement and Achievement Partnership MAT,DU00100929,"216,806.90",Capital grants - Academy Trust
Department for Education,Core,07/07/2023,Grants Expenditure,Capital Directorate,University of Portsmouth Academy Trust,DU00100930,"72,709.96",Capital grants - Local Government
Department for Education,Core,07/07/2023,Grants Expenditure,Capital Directorate,St Francis Catholic Multi Academy Trust,DU00100933,"26,372.27",Capital grants - Academy Trust
Department for Education,Core,07/07/2023,Grants Expenditure,Capital Directorate,The Oak Trust,DU00100934,"91,785.97",Capital grants - Academy Trust
Department for Education,Core,07/07/2023,Grants Expenditure,Capital Directorate,The Cavendish School,DU00100938,"54,109.03",Capital grants - Academy Trust
Department for Education,Core,07/07/2023,Grants Expenditure,Capital Directorate,BIRMINGHAM RC DIOCESAN TRUSTEES REG. DEV,DU00100939,"28,587.77",Capital grants - Academy Trust
Department for Education,Core,07/07/2023,Grants Expenditure,Capital Directorate,Hollingworth Academy,DU00100940,"122,284.95",Capital grants - Academy Trust
Department for Education,Core,07/07/2023,Grants Expenditure,Capital Directorate,ROCHDALE BOROUGH COUNCIL,DU00100941,"55,359.10",Capital grants - Local Government
Department for Education,Core,07/07/2023,Grants Expenditure,Capital Directorate,ROCHDALE BOROUGH COUNCIL,DU00100943,"34,176.65",Capital grants - Local Government
Department for Education,Core,07/07/2023,Grants Expenditure,Capital Directorate,BRADFORD CITY COUNCIL,DU00100945,"123,091.80",Capital grants - Local Government
Department for Education,Core,07/07/2023,Grants Expenditure,Capital Directorate,Our Lady of Lourdes Catholic Multi Academy Trust,DU00100952,"35,185.66",Capital grants - Academy Trust
Department for Education,Core,07/07/2023,Grants Expenditure,Capital Directorate,Our Lady of Lourdes Catholic Multi Academy Trust,DU00100953,"57,948.46",Capital grants - Academy Trust
Department for Education,Core,07/07/2023,Grants Expenditure,Capital Directorate,Sandwell Metro Borough Council,DU00100960,"142,683.14",Capital grants - Local Government
Department for Education,Core,07/07/2023,Grants Expenditure,Capital Directorate,Orwell Multi Academy Trust,DU00100961,"39,819.74",Capital grants - Academy Trust
Department for Education,Core,07/07/2023,Grants Expenditure,Capital Directorate,BLACKPOOL BOROUGH COUNCIL,DU00100962,"43,883.69",Capital grants - Local Government
Department for Education,Core,07/07/2023,Grants Expenditure,Capital Directorate,Orwell Multi Academy Trust,DU00100963,"28,149.17",Capital grants - Academy Trust
Department for Education,Core,07/07/2023,Grants Expenditure,Capital Directorate,Orwell Multi Academy Trust,DU00100964,"54,658.43",Capital grants - Academy Trust
Department for Education,Core,07/07/2023,Grants Expenditure,Capital Directorate,NORTH YORKSHIRE COUNTY COUNCIL,DU00100966,"37,601.77",Capital grants - Local Government
Department for Education,Core,07/07/2023,Grants Expenditure,Capital Directorate,The Roseland Multi Academy Trust,DU00100967,"30,926.01",Capital grants - Academy Trust
Department for Education,Core,07/07/2023,Grants Expenditure,Capital Directorate,Extend Learning Academies Network,DU00100969,"48,158.88",Capital grants - Academy Trust
Department for Education,Core,07/07/2023,Grants Expenditure,Capital Directorate,WALSALL METRO BOROUGH COUNCIL,DU00100973,"37,409.64",Capital grants - Local Government
Department for Education,Core,07/07/2023,Grants Expenditure,Capital Directorate,DONCASTER METRO BOROUGH COUNCIL,DU00100981,"28,460.40",Capital grants - Local Government
Department for Education,Core,07/07/2023,Grants Expenditure,Capital Directorate,Our Lady of Lourdes Catholic Multi Academy Trust,DU00100985,"53,685.87",Capital grants - Academy Trust
Department for Education,Core,07/07/2023,Grants Expenditure,Capital Directorate,Richard Huish Trust,DU00100993,"45,986.00",Capital grants - Academy Trust
Department for Education,Core,07/07/2023,Grants Expenditure,Capital Directorate,BRADFORD CITY COUNCIL,DU00100998,"32,027.74",Capital grants - Local Government
Department for Education,Core,07/07/2023,Grants Expenditure,Capital Directorate,BIRMINGHAM RC DIOCESAN TRUSTEES REG. DEV,DU00101000,"27,989.26",Capital grants - Local Government
Department for Education,Core,07/07/2023,Grants Expenditure,Capital Directorate,Diocese of Salford,DU00101001,"56,037.18",Capital grants - Local Government
Department for Education,Core,14/07/2023,Grants Expenditure,Capital Directorate,Co-operative Academies Trust,DU00101098,"-29,126.43",Capital grants - Academy Trust
Department for Education,Core,14/07/2023,Grants Expenditure,Capital Directorate,Co-operative Academies Trust,DU00101195,"29,126.43",Capital grants - Academy Trust
Department for Education,Core,14/07/2023,Grants Expenditure,Capital Directorate,Co-operative Academies Trust,DU00101098,"29,126.43",Capital grants - Academy Trust
Department for Education,Core,14/07/2023,Grants Expenditure,Capital Directorate,Co-operative Academies Trust,DU00101099,"-114,887.28",Capital grants - Academy Trust
Department for Education,Core,14/07/2023,Grants Expenditure,Capital Directorate,Co-operative Academies Trust,DU00101099,"114,887.28",Capital grants - Academy Trust
Department for Education,Core,14/07/2023,Grants Expenditure,Capital Directorate,Co-operative Academies Trust,DU00101196,"114,887.28",Capital grants - Academy Trust
Department for Education,Core,14/07/2023,Grants Expenditure,Capital Directorate,Co-operative Academies Trust,DU00101100,"-45,825.05",Capital grants - Academy Trust
Department for Education,Core,14/07/2023,Grants Expenditure,Capital Directorate,Co-operative Academies Trust,DU00101100,"45,825.05",Capital grants - Academy Trust
Department for Education,Core,14/07/2023,Grants Expenditure,Capital Directorate,Co-operative Academies Trust,DU00101197,"45,825.05",Capital grants - Academy Trust
Department for Education,Core,14/07/2023,Grants Expenditure,Capital Directorate,Co-operative Academies Trust,DU00101103,"-111,898.54",Capital grants - Academy Trust
Department for Education,Core,14/07/2023,Grants Expenditure,Capital Directorate,Co-operative Academies Trust,DU00101103,"111,898.54",Capital grants - Academy Trust
Department for Education,Core,14/07/2023,Grants Expenditure,Capital Directorate,Co-operative Academies Trust,DU00101200,"111,898.54",Capital grants - Academy Trust
Department for Education,Core,14/07/2023,Grants Expenditure,Capital Directorate,Glaisdale Primary School,DU00101104,"-26,838.09",Capital grants - Academy Trust
Department for Education,Core,14/07/2023,Grants Expenditure,Capital Directorate,Glaisdale Primary School,DU00101104,"26,838.09",Capital grants - Academy Trust
Department for Education,Core,14/07/2023,Grants Expenditure,Capital Directorate,Glaisdale Primary School,DU00101201,"26,838.09",Capital grants - Academy Trust
Department for Education,Core,14/07/2023,Grants Expenditure,Capital Directorate,Glaisdale Primary School,DU00101107,"-40,806.63",Capital grants - Academy Trust
Department for Education,Core,14/07/2023,Grants Expenditure,Capital Directorate,Glaisdale Primary School,DU00101107,"40,806.63",Capital grants - Academy Trust
Department for Education,Core,14/07/2023,Grants Expenditure,Capital Directorate,Glaisdale Primary School,DU00101204,"40,806.63",Capital grants - Academy Trust
Department for Education,Core,14/07/2023,Grants Expenditure,Capital Directorate,Co-operative Academies Trust,DU00101109,"-49,771.22",Capital grants - Academy Trust
Department for Education,Core,14/07/2023,Grants Expenditure,Capital Directorate,Co-operative Academies Trust,DU00101206,"49,771.22",Capital grants - Academy Trust
Department for Education,Core,14/07/2023,Grants Expenditure,Capital Directorate,Co-operative Academies Trust,DU00101109,"49,771.22",Capital grants - Academy Trust
Department for Education,Core,14/07/2023,Grants Expenditure,Capital Directorate,Co-operative Academies Trust,DU00101113,"-62,005.34",Capital grants - Academy Trust
Department for Education,Core,14/07/2023,Grants Expenditure,Capital Directorate,Co-operative Academies Trust,DU00101113,"62,005.34",Capital grants - Academy Trust
Department for Education,Core,14/07/2023,Grants Expenditure,Capital Directorate,Co-operative Academies Trust,DU00101210,"62,005.34",Capital grants - Academy Trust
Department for Education,Core,14/07/2023,Grants Expenditure,Capital Directorate,Co-operative Academies Trust,DU00101114,"-59,153.96",Capital grants - Academy Trust
Department for Education,Core,14/07/2023,Grants Expenditure,Capital Directorate,Co-operative Academies Trust,DU00101114,"59,153.96",Capital grants - Academy Trust
Department for Education,Core,14/07/2023,Grants Expenditure,Capital Directorate,Co-operative Academies Trust,DU00101211,"59,153.96",Capital grants - Academy Trust
Department for Education,Core,14/07/2023,Grants Expenditure,Capital Directorate,Co-operative Academies Trust,DU00101115,"-36,831.78",Capital grants - Academy Trust
Department for Education,Core,14/07/2023,Grants Expenditure,Capital Directorate,Co-operative Academies Trust,DU00101115,"36,831.78",Capital grants - Academy Trust
Department for Education,Core,14/07/2023,Grants Expenditure,Capital Directorate,Co-operative Academies Trust,DU00101212,"36,831.78",Capital grants - Academy Trust
Department for Education,Core,14/07/2023,Grants Expenditure,Capital Directorate,Co-operative Academies Trust,DU00101116,"-31,923.63",Capital grants - Academy Trust
Department for Education,Core,14/07/2023,Grants Expenditure,Capital Directorate,Co-operative Academies Trust,DU00101116,"31,923.63",Capital grants - Academy Trust
Department for Education,Core,14/07/2023,Grants Expenditure,Capital Directorate,Co-operative Academies Trust,DU00101213,"31,923.63",Capital grants - Academy Trust
Department for Education,Core,14/07/2023,Grants Expenditure,Capital Directorate,Co-operative Academies Trust,DU00101117,"-48,279.32",Capital grants - Academy Trust
Department for Education,Core,14/07/2023,Grants Expenditure,Capital Directorate,Co-operative Academies Trust,DU00101117,"48,279.32",Capital grants - Academy Trust
Department for Education,Core,14/07/2023,Grants Expenditure,Capital Directorate,Co-operative Academies Trust,DU00101214,"48,279.32",Capital grants - Academy Trust
Department for Education,Core,14/07/2023,Grants Expenditure,Capital Directorate,Co-operative Academies Trust,DU00101118,"-58,301.53",Capital grants - Academy Trust
Department for Education,Core,14/07/2023,Grants Expenditure,Capital Directorate,Co-operative Academies Trust,DU00101118,"58,301.53",Capital grants - Academy Trust
Department for Education,Core,14/07/2023,Grants Expenditure,Capital Directorate,Co-operative Academies Trust,DU00101215,"58,301.53",Capital grants - Academy Trust
Department for Education,Core,14/07/2023,Grants Expenditure,Capital Directorate,Co-operative Academies Trust,DU00101119,"-63,807.54",Capital grants - Academy Trust
Department for Education,Core,14/07/2023,Grants Expenditure,Capital Directorate,Co-operative Academies Trust,DU00101119,"63,807.54",Capital grants - Academy Trust
Department for Education,Core,14/07/2023,Grants Expenditure,Capital Directorate,Co-operative Academies Trust,DU00101216,"63,807.54",Capital grants - Academy Trust
Department for Education,Core,14/07/2023,Grants Expenditure,Capital Directorate,West Hill School,DU00101121,"-146,295.00",Capital grants - Local Government
Department for Education,Core,14/07/2023,Grants Expenditure,Capital Directorate,West Hill School,DU00101121,"146,295.00",Capital grants - Local Government
Department for Education,Core,14/07/2023,Grants Expenditure,Capital Directorate,West Hill School,DU00101218,"146,295.00",Capital grants - Local Government
Department for Education,Core,14/07/2023,Grants Expenditure,Capital Directorate,WALSALL METRO BOROUGH COUNCIL,DU00101123,"-29,276.72",Capital grants - Local Government
Department for Education,Core,14/07/2023,Grants Expenditure,Capital Directorate,WALSALL METRO BOROUGH COUNCIL,DU00101123,"29,276.72",Capital grants - Local Government
Department for Education,Core,14/07/2023,Grants Expenditure,Capital Directorate,WALSALL METRO BOROUGH COUNCIL,DU00101220,"29,276.72",Capital grants - Local Government
Department for Education,Core,14/07/2023,Grants Expenditure,Capital Directorate,Somerset County Council,DU00101124,"-36,604.14",Capital grants - Local Government
Department for Education,Core,14/07/2023,Grants Expenditure,Capital Directorate,Somerset County Council,DU00101124,"36,604.14",Capital grants - Local Government
Department for Education,Core,14/07/2023,Grants Expenditure,Capital Directorate,Somerset County Council,DU00101221,"36,604.14",Capital grants - Local Government
Department for Education,Core,14/07/2023,Grants Expenditure,Capital Directorate,Somerset County Council,DU00101126,"-26,906.15",Capital grants - Local Government
Department for Education,Core,14/07/2023,Grants Expenditure,Capital Directorate,Somerset County Council,DU00101126,"26,906.15",Capital grants - Local Government
Department for Education,Core,14/07/2023,Grants Expenditure,Capital Directorate,Somerset County Council,DU00101223,"26,906.15",Capital grants - Local Government
Department for Education,Core,14/07/2023,Grants Expenditure,Capital Directorate,Moorpark Junior School,DU00101129,"-72,013.76",Capital grants - Academy Trust
Department for Education,Core,14/07/2023,Grants Expenditure,Capital Directorate,Moorpark Junior School,DU00101129,"72,013.76",Capital grants - Academy Trust
Department for Education,Core,14/07/2023,Grants Expenditure,Capital Directorate,Moorpark Junior School,DU00101226,"72,013.76",Capital grants - Academy Trust
Department for Education,Core,14/07/2023,Grants Expenditure,Capital Directorate,Blessed Christopher Wharton Catholic Academy Trust,DU00101131,"-25,562.34",Capital grants - Academy Trust
Department for Education,Core,14/07/2023,Grants Expenditure,Capital Directorate,Blessed Christopher Wharton Catholic Academy Trust,DU00101131,"25,562.34",Capital grants - Academy Trust
Department for Education,Core,14/07/2023,Grants Expenditure,Capital Directorate,Blessed Christopher Wharton Catholic Academy Trust,DU00101228,"25,562.34",Capital grants - Academy Trust
Department for Education,Core,14/07/2023,Grants Expenditure,Capital Directorate,Diocese of Salford,DU00101139,"-97,459.44",Capital grants - Local Government
Department for Education,Core,14/07/2023,Grants Expenditure,Capital Directorate,Diocese of Salford,DU00101139,"97,459.44",Capital grants - Local Government
Department for Education,Core,14/07/2023,Grants Expenditure,Capital Directorate,Diocese of Salford,DU00101236,"97,459.44",Capital grants - Local Government
Department for Education,Core,14/07/2023,Grants Expenditure,Capital Directorate,Diocese of Salford,DU00101149,"-121,284.07",Capital grants - Local Government
Department for Education,Core,14/07/2023,Grants Expenditure,Capital Directorate,Diocese of Salford,DU00101149,"121,284.07",Capital grants - Local Government
Department for Education,Core,14/07/2023,Grants Expenditure,Capital Directorate,Diocese of Salford,DU00101246,"121,284.07",Capital grants - Local Government
Department for Education,Core,14/07/2023,Grants Expenditure,Capital Directorate,Selby Community Primary School,DU00101151,"-29,737.00",Capital grants - Academy Trust
Department for Education,Core,14/07/2023,Grants Expenditure,Capital Directorate,Selby Community Primary School,DU00101151,"29,737.00",Capital grants - Academy Trust
Department for Education,Core,14/07/2023,Grants Expenditure,Capital Directorate,Selby Community Primary School,DU00101248,"29,737.00",Capital grants - Academy Trust
Department for Education,Core,14/07/2023,Grants Expenditure,Capital Directorate,WALSALL METRO BOROUGH COUNCIL,DU00101153,"-44,818.31",Capital grants - Local Government
Department for Education,Core,14/07/2023,Grants Expenditure,Capital Directorate,WALSALL METRO BOROUGH COUNCIL,DU00101250,"44,818.31",Capital grants - Local Government
Department for Education,Core,14/07/2023,Grants Expenditure,Capital Directorate,WALSALL METRO BOROUGH COUNCIL,DU00101153,"44,818.31",Capital grants - Local Government
Department for Education,Core,14/07/2023,Grants Expenditure,Capital Directorate,The Sea View Trust,DU00101154,"-64,062.91",Capital grants - Academy Trust
Department for Education,Core,14/07/2023,Grants Expenditure,Capital Directorate,The Sea View Trust,DU00101154,"64,062.91",Capital grants - Academy Trust
Department for Education,Core,14/07/2023,Grants Expenditure,Capital Directorate,The Sea View Trust,DU00101251,"64,062.91",Capital grants - Academy Trust
Department for Education,Core,14/07/2023,Grants Expenditure,Capital Directorate,WALSALL METRO BOROUGH COUNCIL,DU00101155,"-27,582.58",Capital grants - Local Government
Department for Education,Core,14/07/2023,Grants Expenditure,Capital Directorate,WALSALL METRO BOROUGH COUNCIL,DU00101155,"27,582.58",Capital grants - Local Government
Department for Education,Core,14/07/2023,Grants Expenditure,Capital Directorate,WALSALL METRO BOROUGH COUNCIL,DU00101252,"27,582.58",Capital grants - Local Government
Department for Education,Core,14/07/2023,Grants Expenditure,Capital Directorate,Community Inclusive Trust,DU00101156,"-38,300.03",Capital grants - Academy Trust
Department for Education,Core,14/07/2023,Grants Expenditure,Capital Directorate,Community Inclusive Trust,DU00101156,"38,300.03",Capital grants - Academy Trust
Department for Education,Core,14/07/2023,Grants Expenditure,Capital Directorate,Community Inclusive Trust,DU00101253,"38,300.03",Capital grants - Academy Trust
Department for Education,Core,14/07/2023,Grants Expenditure,Capital Directorate,STOKE ON TRENT CITY COUNCIL,DU00101158,"-42,485.00",Capital grants - Local Government
Department for Education,Core,14/07/2023,Grants Expenditure,Capital Directorate,STOKE ON TRENT CITY COUNCIL,DU00101158,"42,485.00",Capital grants - Local Government
Department for Education,Core,14/07/2023,Grants Expenditure,Capital Directorate,STOKE ON TRENT CITY COUNCIL,DU00101255,"42,485.00",Capital grants - Local Government
Department for Education,Core,14/07/2023,Grants Expenditure,Capital Directorate,LIVERPOOL CITY COUNCIL,DU00101259,"36,430.22",Capital grants - Local Government
Department for Education,Core,14/07/2023,Grants Expenditure,Capital Directorate,NORTH YORKSHIRE COUNTY COUNCIL,DU00101261,"33,181.88",Capital grants - Local Government
Department for Education,Core,14/07/2023,Grants Expenditure,Capital Directorate,Leeds Diocesan Board of Finance,DU00101263,"59,011.12",Capital grants - Local Government
Department for Education,Core,14/07/2023,Grants Expenditure,Capital Directorate,THE SUTTON ACADEMY,DU00101171,"-56,730.00",Capital grants - Academy Trust
Department for Education,Core,14/07/2023,Grants Expenditure,Capital Directorate,THE SUTTON ACADEMY,DU00101171,"56,730.00",Capital grants - Academy Trust
Department for Education,Core,14/07/2023,Grants Expenditure,Capital Directorate,THE SUTTON ACADEMY,DU00101268,"56,730.00",Capital grants - Academy Trust
Department for Education,Core,14/07/2023,Grants Expenditure,Capital Directorate,Diocese of Portsmouth,DU00101172,"-41,326.81",Capital grants - Local Government
Department for Education,Core,14/07/2023,Grants Expenditure,Capital Directorate,Diocese of Portsmouth,DU00101172,"41,326.81",Capital grants - Local Government
Department for Education,Core,14/07/2023,Grants Expenditure,Capital Directorate,Diocese of Portsmouth,DU00101269,"41,326.81",Capital grants - Local Government
Department for Education,Core,14/07/2023,Grants Expenditure,Capital Directorate,Matrix Academy Trust,DU00101173,"-101,425.00",Capital grants - Academy Trust
Department for Education,Core,14/07/2023,Grants Expenditure,Capital Directorate,Matrix Academy Trust,DU00101173,"101,425.00",Capital grants - Academy Trust
Department for Education,Core,14/07/2023,Grants Expenditure,Capital Directorate,Matrix Academy Trust,DU00101270,"101,425.00",Capital grants - Academy Trust
Department for Education,Core,14/07/2023,Grants Expenditure,Capital Directorate,DERBYSHIRE COUNTY COUNCIL,DU00101174,"-74,380.00",Capital grants - Local Government
Department for Education,Core,14/07/2023,Grants Expenditure,Capital Directorate,DERBYSHIRE COUNTY COUNCIL,DU00101271,"74,380.00",Capital grants - Local Government
Department for Education,Core,14/07/2023,Grants Expenditure,Capital Directorate,DERBYSHIRE COUNTY COUNCIL,DU00101174,"74,380.00",Capital grants - Local Government
Department for Education,Core,14/07/2023,Grants Expenditure,Capital Directorate,WALSALL METRO BOROUGH COUNCIL,DU00101176,"-51,351.37",Capital grants - Local Government
Department for Education,Core,14/07/2023,Grants Expenditure,Capital Directorate,WALSALL METRO BOROUGH COUNCIL,DU00101176,"51,351.37",Capital grants - Local Government
Department for Education,Core,14/07/2023,Grants Expenditure,Capital Directorate,WALSALL METRO BOROUGH COUNCIL,DU00101273,"51,351.37",Capital grants - Local Government
Department for Education,Core,14/07/2023,Grants Expenditure,Capital Directorate,SOUTHWELL DIOCESAN EDUCATION COMMITTEE N,DU00101179,"-25,304.11",Capital grants - Local Government
Department for Education,Core,14/07/2023,Grants Expenditure,Capital Directorate,SOUTHWELL DIOCESAN EDUCATION COMMITTEE N,DU00101179,"25,304.11",Capital grants - Local Government
Department for Education,Core,14/07/2023,Grants Expenditure,Capital Directorate,SOUTHWELL DIOCESAN EDUCATION COMMITTEE N,DU00101276,"25,304.11",Capital grants - Local Government
Department for Education,Core,14/07/2023,Grants Expenditure,Capital Directorate,Alexandra Infants' School,DU00101187,"-69,711.14",Capital grants - Academy Trust
Department for Education,Core,14/07/2023,Grants Expenditure,Capital Directorate,Alexandra Infants' School,DU00101187,"69,711.14",Capital grants - Academy Trust
Department for Education,Core,14/07/2023,Grants Expenditure,Capital Directorate,Alexandra Infants' School,DU00101284,"69,711.14",Capital grants - Academy Trust
Department for Education,Core,14/07/2023,Grants Expenditure,Capital Directorate,Alexandra Junior School,DU00101188,"-76,024.06",Capital grants - Academy Trust
Department for Education,Core,14/07/2023,Grants Expenditure,Capital Directorate,Alexandra Junior School,DU00101188,"76,024.06",Capital grants - Academy Trust
Department for Education,Core,14/07/2023,Grants Expenditure,Capital Directorate,Alexandra Junior School,DU00101285,"76,024.06",Capital grants - Academy Trust
Department for Education,Core,14/07/2023,Grants Expenditure,Capital Directorate,Jackfield Infant School,DU00101189,"-67,678.94",Capital grants - Academy Trust
Department for Education,Core,14/07/2023,Grants Expenditure,Capital Directorate,Jackfield Infant School,DU00101189,"67,678.94",Capital grants - Academy Trust
Department for Education,Core,14/07/2023,Grants Expenditure,Capital Directorate,Jackfield Infant School,DU00101286,"67,678.94",Capital grants - Academy Trust
Department for Education,Core,14/07/2023,Grants Expenditure,Capital Directorate,All Saints Catholic College,DU00101190,"-146,720.20",Capital grants - Academy Trust
Department for Education,Core,14/07/2023,Grants Expenditure,Capital Directorate,All Saints Catholic College,DU00101190,"146,720.20",Capital grants - Academy Trust
Department for Education,Core,14/07/2023,Grants Expenditure,Capital Directorate,All Saints Catholic College,DU00101287,"146,720.20",Capital grants - Academy Trust
Department for Education,Core,14/07/2023,Grants Expenditure,Capital Directorate,Archdiocese of Liverpool,DU00101194,"-66,141.49",Capital grants - Local Government
Department for Education,Core,14/07/2023,Grants Expenditure,Capital Directorate,Archdiocese of Liverpool,DU00101291,"66,141.49",Capital grants - Local Government
Department for Education,Core,14/07/2023,Grants Expenditure,Capital Directorate,Archdiocese of Liverpool,DU00101194,"66,141.49",Capital grants - Local Government
Department for Education,Core,21/07/2023,Grants Expenditure,Capital Directorate,BRADFORD CITY COUNCIL,DU00101301,"54,389.16",Capital grants - Local Government
Department for Education,Core,21/07/2023,Grants Expenditure,Capital Directorate,The Great Schools Trust,DU00101303,"100,183.26",Capital grants - Academy Trust
Department for Education,Core,21/07/2023,Grants Expenditure,Capital Directorate,LINCOLNSHIRE COUNTY COUNCIL,DU00101304,"154,488.76",Capital grants - Local Government
Department for Education,Core,21/07/2023,Grants Expenditure,Capital Directorate,BRADFORD CITY COUNCIL,DU00101305,"92,259.78",Capital grants - Local Government
Department for Education,Core,21/07/2023,Grants Expenditure,Capital Directorate,DORSET COUNCIL,DU00101311,"36,163.88",Capital grants - Local Government
Department for Education,Core,21/07/2023,Grants Expenditure,Capital Directorate,CARLTON ACADEMY TRUST,DU00101315,"56,041.63",Capital grants - Academy Trust
Department for Education,Core,21/07/2023,Grants Expenditure,Capital Directorate,DERBYSHIRE COUNTY COUNCIL,DU00101319,"32,544.60",Capital grants - Local Government
Department for Education,Core,21/07/2023,Grants Expenditure,Capital Directorate,Focus Academy Trust (UK) Ltd,DU00101320,"41,291.01",Capital grants - Academy Trust
Department for Education,Core,21/07/2023,Grants Expenditure,Capital Directorate,ROCHDALE BOROUGH COUNCIL,DU00101325,"34,198.10",Capital grants - Local Government
Department for Education,Core,21/07/2023,Grants Expenditure,Capital Directorate,NORTH YORKSHIRE COUNTY COUNCIL,DU00101327,"36,915.00",Capital grants - Local Government
Department for Education,Core,21/07/2023,Grants Expenditure,Capital Directorate,Leger Education Trust,DU00101329,"111,133.00",Capital grants - Academy Trust
Department for Education,Core,21/07/2023,Grants Expenditure,Capital Directorate,Sefton Metropolitan Borough Council,DU00101330,"55,912.80",Capital grants - Academy Trust
Department for Education,Core,21/07/2023,Grants Expenditure,Capital Directorate,WALSALL METRO BOROUGH COUNCIL,DU00101332,"28,940.78",Capital grants - Academy Trust
Department for Education,Core,21/07/2023,Grants Expenditure,Capital Directorate,ROCHDALE BOROUGH COUNCIL,DU00101333,"40,497.60",Capital grants - Local Government
Department for Education,Core,21/07/2023,Grants Expenditure,Capital Directorate,TAMESIDE METRO BOROUGH COUNCIL,DU00101334,"44,992.00",Capital grants - Local Government
Department for Education,Core,21/07/2023,Grants Expenditure,Capital Directorate,KNOWSLEY METRO BOROUGH COUNCIL,DU00101341,"37,510.90",Capital grants - Local Government
Department for Education,Core,21/07/2023,Grants Expenditure,Capital Directorate,ROCHDALE BOROUGH COUNCIL,DU00101342,"27,558.40",Capital grants - Local Government
Department for Education,Core,21/07/2023,Grants Expenditure,Capital Directorate,Derby Diocesan Academy Trust,DU00101344,"25,677.41",Capital grants - Local Government
Department for Education,Core,21/07/2023,Grants Expenditure,Capital Directorate,Bishop chadwick catholic education trust,DU00101345,"130,055.76",Capital grants - Academy Trust
Department for Education,Core,21/07/2023,Grants Expenditure,Capital Directorate,Exceed Academies Trust,DU00101346,"67,350.00",Capital grants - Academy Trust
Department for Education,Core,28/07/2023,Grants Expenditure,Capital Directorate,St Clare Catholic Multi Academy Trust ,DU00101366,"60,949.90",Capital grants - Academy Trust
Department for Education,Core,28/07/2023,Grants Expenditure,Capital Directorate,Focus Academy Trust (UK) Ltd,DU00101370,"88,003.04",Capital grants - Academy Trust
Department for Education,Core,28/07/2023,Grants Expenditure,Capital Directorate,CAMBRIDGESHIRE COUNTY COUNCIL,DU00101371,"33,727.65",Capital grants - Local Government
Department for Education,Core,28/07/2023,Grants Expenditure,Capital Directorate,Transform Trust,DU00101374,"52,679.60",Capital grants - Academy Trust
Department for Education,Core,28/07/2023,Grants Expenditure,Capital Directorate,Transform Trust,DU00101375,"55,567.00",Capital grants - Academy Trust
Department for Education,Core,28/07/2023,Grants Expenditure,Capital Directorate,Transform Trust,DU00101376,"55,113.40",Capital grants - Academy Trust
Department for Education,Core,28/07/2023,Grants Expenditure,Capital Directorate,CAMBRIDGESHIRE COUNTY COUNCIL,DU00101381,"38,401.34",Capital grants - Local Government
Department for Education,Core,28/07/2023,Grants Expenditure,Capital Directorate,CAMBRIDGESHIRE COUNTY COUNCIL,DU00101382,"29,339.67",Capital grants - Local Government
Department for Education,Core,28/07/2023,Grants Expenditure,Capital Directorate,WALSALL METRO BOROUGH COUNCIL,DU00101383,"27,923.97",Capital grants - Local Government
Department for Education,Core,28/07/2023,Grants Expenditure,Capital Directorate,Brighstone CE Aided Primary School,DU00101384,"31,432.89",Capital grants - Academy Trust
Department for Education,Core,28/07/2023,Grants Expenditure,Capital Directorate,The East Manchester Academy,DU00101385,"69,860.28",Capital grants - Academy Trust
Department for Education,Core,28/07/2023,Grants Expenditure,Capital Directorate,ARK Schools,DU00101390,"100,312.14",Capital grants - Academy Trust
Department for Education,Core,28/07/2023,Grants Expenditure,Capital Directorate,ARK Schools,DU00101394,"34,632.19",Capital grants - Academy Trust
Department for Education,Core,28/07/2023,Grants Expenditure,Capital Directorate,BRADFORD CITY COUNCIL,DU00101397,"45,444.89",Capital grants - Local Government
Department for Education,Core,28/07/2023,Grants Expenditure,Capital Directorate,ARK Schools,DU00101400,"39,226.41",Capital grants - Academy Trust
Department for Education,Core,28/07/2023,Grants Expenditure,Capital Directorate,WALSALL METRO BOROUGH COUNCIL,DU00101401,"27,360.00",Capital grants - Local Government
Department for Education,Core,28/07/2023,Grants Expenditure,Capital Directorate,Pennine Academies Yorkshire,DU00101402,"46,409.08",Capital grants - Academy Trust
Department for Education,Core,28/07/2023,Grants Expenditure,Capital Directorate,Farringdon Academy,DU00101403,"55,854.46",Capital grants - Academy Trust
Department for Education,Core,28/07/2023,Grants Expenditure,Capital Directorate,Alderman Jacobs School,DU00101404,"63,101.60",Capital grants - Academy Trust
Department for Education,Core,28/07/2023,Grants Expenditure,Capital Directorate,West Cliff Primary School,DU00101405,"37,939.28",Capital grants - Academy Trust
Department for Education,Core,28/07/2023,Grants Expenditure,Capital Directorate,Cornwall Education Learning Trust,DU00101406,"111,967.71",Capital grants - Academy Trust
Department for Education,Core,28/07/2023,Grants Expenditure,Capital Directorate,Bridgwater & Taunton College Trust,DU00101407,"26,209.15",Capital grants - Academy Trust
Department for Education,Core,28/07/2023,Grants Expenditure,Capital Directorate,An Daras Multi Academy Trust,DU00101411,"28,707.16",Capital grants - Academy Trust
Department for Education,Core,28/07/2023,Grants Expenditure,Capital Directorate,Sandwell Metro Borough Council,DU00101415,"47,017.64",Capital grants - Local Government
Department for Education,Core,28/07/2023,Grants Expenditure,Capital Directorate,Sandwell Metro Borough Council,DU00101417,"37,225.58",Capital grants - Local Government
Department for Education,Core,28/07/2023,Grants Expenditure,Capital Directorate,WALSALL METRO BOROUGH COUNCIL,DU00101421,"30,868.34",Capital grants - Local Government
Department for Education,Core,28/07/2023,Grants Expenditure,Capital Directorate,The Priestley Academy Trust,DU00101422,"41,151.07",Capital grants - Academy Trust
Department for Education,Core,28/07/2023,Grants Expenditure,Capital Directorate,The Priestley Academy Trust,DU00101423,"40,256.62",Capital grants - Academy Trust
Department for Education,Core,28/07/2023,Grants Expenditure,Capital Directorate,The Priestley Academy Trust,DU00101424,"55,591.70",Capital grants - Academy Trust
Department for Education,Core,28/07/2023,Grants Expenditure,Capital Directorate,NORTH YORKSHIRE COUNTY COUNCIL,DU00101427,"26,816.98",Capital grants - Local Government
Department for Education,Core,28/07/2023,Grants Expenditure,Capital Directorate,The Priestley Academy Trust,DU00101428,"101,381.47",Capital grants - Academy Trust
Department for Education,Core,28/07/2023,Grants Expenditure,Capital Directorate,Thomas Deacon Education Trust,DU00101429,"66,689.75",Capital grants - Academy Trust
Department for Education,Core,17/07/2023,IS/IT,Capital Directorate,COGNIZANT WORLDWIDE LIMITED,D-PINV056561,"29,933.58",Systems Development
Department for Education,Core,05/07/2023,Other Goods & Services,Capital Directorate,MOTT MACDONALD LIMITED,D-PINV056070,"111,420.00",Professional Services
Department for Education,Core,11/07/2023,Other Goods & Services,Capital Directorate,WSP UK Limited,D-PINV056261,"28,160.40",Professional Services
Department for Education,Core,19/07/2023,Other Goods & Services,Capital Directorate,WSP UK Limited,D-PINV056623,"256,994.40",Professional Services
Department for Education,Core,27/07/2023,Other Goods & Services,Capital Directorate,MOTT MACDONALD LIMITED,D-PINV056846,"79,140.00",Professional Services
Department for Education,Core,17/07/2023,IS/IT,Capital Directorate,COGNIZANT WORLDWIDE LIMITED,D-PINV056471,"53,157.88",Systems Development
Department for Education,Core,17/07/2023,IS/IT,Capital Directorate,COGNIZANT WORLDWIDE LIMITED,D-PINV056470,"32,082.78",Systems Development
Department for Education,Core,18/07/2023,Other Goods & Services,Capital Directorate,COGNIZANT WORLDWIDE LIMITED,D-PINV056584,"52,987.20",Professional Services
Department for Education,Core,20/07/2023,Grants Expenditure,Capital Directorate,BEDFORD BOROUGH COUNCIL,CL069378,"3,060,716.22",Capital grants - Local Government
Department for Education,Core,20/07/2023,Grants Expenditure,Capital Directorate,BLACKPOOL BOROUGH COUNCIL,CL069379,"41,402.80",Capital grants - Local Government
Department for Education,Core,20/07/2023,Grants Expenditure,Capital Directorate,BOLTON METRO BOROUGH COUNCIL,CL069380,"384,289.37",Capital grants - Local Government
Department for Education,Core,20/07/2023,Grants Expenditure,Capital Directorate,BRACKNELL FOREST BOROUGH COUNCIL,CL069381,"146,557.77",Capital grants - Local Government
Department for Education,Core,20/07/2023,Grants Expenditure,Capital Directorate,BRADFORD CITY COUNCIL,CL069382,"1,025,683.85",Capital grants - Local Government
Department for Education,Core,20/07/2023,Grants Expenditure,Capital Directorate,Bristol City Council,CL069383,"1,622,151.65",Capital grants - Local Government
Department for Education,Core,20/07/2023,Grants Expenditure,Capital Directorate,Buckinghamshire Council,CL069384,"432,719.76",Capital grants - Local Government
Department for Education,Core,20/07/2023,Grants Expenditure,Capital Directorate,BURY METRO BOROUGH COUNCIL,CL069385,"648,790.70",Capital grants - Local Government
Department for Education,Core,20/07/2023,Grants Expenditure,Capital Directorate,CALDERDALE METRO BOROUGH COUNCIL,CL069386,"689,476.49",Capital grants - Local Government
Department for Education,Core,20/07/2023,Grants Expenditure,Capital Directorate,CAMBRIDGESHIRE COUNTY COUNCIL,CL069387,"251,028.67",Capital grants - Local Government
Department for Education,Core,20/07/2023,Grants Expenditure,Capital Directorate,Cheshire East Council,CL069388,"1,179,107.39",Capital grants - Local Government
Department for Education,Core,20/07/2023,Grants Expenditure,Capital Directorate,CHESHIRE WEST & CHESTER COUNCIL,CL069389,"548,598.33",Capital grants - Local Government
Department for Education,Core,20/07/2023,Grants Expenditure,Capital Directorate,CORNWALL COUNCIL,CL069391,"897,469.42",Capital grants - Local Government
Department for Education,Core,20/07/2023,Grants Expenditure,Capital Directorate,COVENTRY CITY COUNCIL,CL069392,"2,241,768.41",Capital grants - Local Government
Department for Education,Core,20/07/2023,Grants Expenditure,Capital Directorate,DARLINGTON BOROUGH COUNCIL,CL069393,"114,961.40",Capital grants - Local Government
Department for Education,Core,20/07/2023,Grants Expenditure,Capital Directorate,DERBY CITY COUNCIL,CL069394,"98,803.97",Capital grants - Local Government
Department for Education,Core,20/07/2023,Grants Expenditure,Capital Directorate,DERBYSHIRE COUNTY COUNCIL,CL069395,"1,861,774.71",Capital grants - Local Government
Department for Education,Core,20/07/2023,Grants Expenditure,Capital Directorate,DEVON COUNTY COUNCIL,CL069396,"629,627.65",Capital grants - Local Government
Department for Education,Core,20/07/2023,Grants Expenditure,Capital Directorate,DONCASTER METRO BOROUGH COUNCIL,CL069397,"371,551.23",Capital grants - Local Government
Department for Education,Core,20/07/2023,Grants Expenditure,Capital Directorate,DURHAM COUNTY COUNCIL,CL069399,"1,101,993.41",Capital grants - Local Government
Department for Education,Core,20/07/2023,Grants Expenditure,Capital Directorate,EALING LONDON BOROUGH COUNCIL,CL069400,"2,029,197.46",Capital grants - Local Government
Department for Education,Core,20/07/2023,Grants Expenditure,Capital Directorate,EAST RIDING OF YORKSHIRE COUNCIL,CL069401,"408,939.75",Capital grants - Local Government
Department for Education,Core,20/07/2023,Grants Expenditure,Capital Directorate,EAST SUSSEX COUNTY COUNCIL,CL069402,"318,023.39",Capital grants - Local Government
Department for Education,Core,20/07/2023,Grants Expenditure,Capital Directorate,GATESHEAD COUNCIL,CL069403,"1,398,929.02",Capital grants - Local Government
Department for Education,Core,20/07/2023,Grants Expenditure,Capital Directorate,HACKNEY LONDON BOROUGH COUNCIL,CL069404,"26,666.63",Capital grants - Local Government
Department for Education,Core,20/07/2023,Grants Expenditure,Capital Directorate,HAVERING LONDON BOROUGH COUNCIL,CL069406,"124,611.13",Capital grants - Local Government
Department for Education,Core,20/07/2023,Grants Expenditure,Capital Directorate,HEREFORDSHIRE COUNCIL,CL069407,"901,261.07",Capital grants - Local Government
Department for Education,Core,20/07/2023,Grants Expenditure,Capital Directorate,HERTFORDSHIRE COUNTY COUNCIL,CL069408,"2,146,072.70",Capital grants - Local Government
Department for Education,Core,20/07/2023,Grants Expenditure,Capital Directorate,London Borough of Hillingdon,CL069409,"53,653.34",Capital grants - Local Government
Department for Education,Core,20/07/2023,Grants Expenditure,Capital Directorate,ROYAL BOROUGH OF KENSINGTON & CHELSEA COUNCIL,CL069412,"847,782.93",Capital grants - Local Government
Department for Education,Core,20/07/2023,Grants Expenditure,Capital Directorate,ROYAL BOROUGH OF KINGSTON UPON THAMES COUNCIL,CL069413,"1,347,333.57",Capital grants - Local Government
Department for Education,Core,20/07/2023,Grants Expenditure,Capital Directorate,KIRKLEES METRO COUNCIL,CL069414,"1,226,540.60",Capital grants - Local Government
Department for Education,Core,20/07/2023,Grants Expenditure,Capital Directorate,KNOWSLEY METRO BOROUGH COUNCIL,CL069415,"606,584.65",Capital grants - Local Government
Department for Education,Core,20/07/2023,Grants Expenditure,Capital Directorate,Lancashire County Council,CL069416,"3,316,772.46",Capital grants - Local Government
Department for Education,Core,20/07/2023,Grants Expenditure,Capital Directorate,LEEDS CITY COUNCIL,CL069417,"2,886,832.78",Capital grants - Local Government
Department for Education,Core,20/07/2023,Grants Expenditure,Capital Directorate,LEICESTER CITY COUNCIL,CL069418,"831,412.26",Capital grants - Local Government
Department for Education,Core,20/07/2023,Grants Expenditure,Capital Directorate,LEICESTERSHIRE COUNTY COUNCIL,CL069419,"1,583,962.52",Capital grants - Local Government
Department for Education,Core,20/07/2023,Grants Expenditure,Capital Directorate,LINCOLNSHIRE COUNTY COUNCIL,CL069420,"182,136.79",Capital grants - Local Government
Department for Education,Core,20/07/2023,Grants Expenditure,Capital Directorate,LIVERPOOL CITY COUNCIL,CL069421,"2,260,815.13",Capital grants - Local Government
Department for Education,Core,20/07/2023,Grants Expenditure,Capital Directorate,LUTON BOROUGH COUNCIL,CL069422,"236,672.87",Capital grants - Local Government
Department for Education,Core,20/07/2023,Grants Expenditure,Capital Directorate,MANCHESTER CITY COUNCIL,CL069423,"450,667.78",Capital grants - Local Government
Department for Education,Core,20/07/2023,Grants Expenditure,Capital Directorate,MEDWAY COUNCIL,CL069424,"1,894,436.34",Capital grants - Local Government
Department for Education,Core,20/07/2023,Grants Expenditure,Capital Directorate,Newcastle upon Tyne City Council,CL069425,"1,044,385.37",Capital grants - Local Government
Department for Education,Core,20/07/2023,Grants Expenditure,Capital Directorate,NORFOLK COUNTY COUNCIL,CL069426,"1,770,958.27",Capital grants - Local Government
Department for Education,Core,20/07/2023,Grants Expenditure,Capital Directorate,North East Lincolnshire Council,CL069427,"225,629.09",Capital grants - Local Government
Department for Education,Core,20/07/2023,Grants Expenditure,Capital Directorate,NORTH LINCOLNSHIRE COUNCIL,CL069428,"55,959.57",Capital grants - Local Government
Department for Education,Core,20/07/2023,Grants Expenditure,Capital Directorate,North Somerset Council,CL069429,"743,862.00",Capital grants - Local Government
Department for Education,Core,20/07/2023,Grants Expenditure,Capital Directorate,NORTHUMBERLAND COUNTY COUNCIL,CL069430,"595,169.81",Capital grants - Local Government
Department for Education,Core,20/07/2023,Grants Expenditure,Capital Directorate,Nottingham City Council,CL069431,"53,151.32",Capital grants - Local Government
Department for Education,Core,20/07/2023,Grants Expenditure,Capital Directorate,NOTTINGHAMSHIRE COUNTY COUNCIL,CL069432,"4,262,006.75",Capital grants - Local Government
Department for Education,Core,20/07/2023,Grants Expenditure,Capital Directorate,OLDHAM METRO BOROUGH COUNCIL,CL069433,"611,982.22",Capital grants - Local Government
Department for Education,Core,20/07/2023,Grants Expenditure,Capital Directorate,Redcar & Cleveland Borough Council,CL069435,"360,776.66",Capital grants - Local Government
Department for Education,Core,20/07/2023,Grants Expenditure,Capital Directorate,RICHMOND UPON THAMES LONDON BOROUGH COUNCIL,CL069436,"243,653.99",Capital grants - Local Government
Department for Education,Core,20/07/2023,Grants Expenditure,Capital Directorate,RUTLAND COUNTY COUNCIL,CL069437,"195,330.34",Capital grants - Local Government
Department for Education,Core,20/07/2023,Grants Expenditure,Capital Directorate,Salford City Council,CL069438,"829,216.81",Capital grants - Local Government
Department for Education,Core,20/07/2023,Grants Expenditure,Capital Directorate,Sandwell Metro Borough Council,CL069439,"1,113,390.96",Capital grants - Local Government
Department for Education,Core,20/07/2023,Grants Expenditure,Capital Directorate,Sefton Metropolitan Borough Council,CL069440,"97,646.97",Capital grants - Local Government
Department for Education,Core,20/07/2023,Grants Expenditure,Capital Directorate,SHEFFIELD CITY COUNCIL,CL069441,"1,077,028.40",Capital grants - Local Government
Department for Education,Core,20/07/2023,Grants Expenditure,Capital Directorate,SHROPSHIRE COUNCIL,CL069442,"395,806.10",Capital grants - Local Government
Department for Education,Core,20/07/2023,Grants Expenditure,Capital Directorate,SOUTH GLOUCESTERSHIRE COUNCIL,CL069443,"76,771.40",Capital grants - Local Government
Department for Education,Core,20/07/2023,Grants Expenditure,Capital Directorate,SOUTH TYNESIDE COUNCIL,CL069444,"270,212.93",Capital grants - Local Government
Department for Education,Core,20/07/2023,Grants Expenditure,Capital Directorate,SOUTHEND ON SEA BOROUGH COUNCIL,CL069445,"102,392.24",Capital grants - Local Government
Department for Education,Core,20/07/2023,Grants Expenditure,Capital Directorate,Staffordshire County Council,CL069446,"1,420,527.41",Capital grants - Local Government
Department for Education,Core,20/07/2023,Grants Expenditure,Capital Directorate,STOCKPORT METRO BOROUGH COUNCIL,CL069447,"719,104.10",Capital grants - Local Government
Department for Education,Core,20/07/2023,Grants Expenditure,Capital Directorate,SURREY COUNTY COUNCIL,CL069448,"2,767,446.80",Capital grants - Local Government
Department for Education,Core,20/07/2023,Grants Expenditure,Capital Directorate,Swindon Borough Council,CL069449,"43,311.49",Capital grants - Local Government
Department for Education,Core,20/07/2023,Grants Expenditure,Capital Directorate,Telford and Wrekin Council,CL069450,"1,566,379.35",Capital grants - Local Government
Department for Education,Core,20/07/2023,Grants Expenditure,Capital Directorate,Trafford Borough Council,CL069451,"945,537.53",Capital grants - Local Government
Department for Education,Core,20/07/2023,Grants Expenditure,Capital Directorate,WALSALL METRO BOROUGH COUNCIL,CL069452,"1,194,250.16",Capital grants - Local Government
Department for Education,Core,20/07/2023,Grants Expenditure,Capital Directorate,WALTHAM FOREST LONDON BOROUGH COUNCIL,CL069453,"170,004.36",Capital grants - Local Government
Department for Education,Core,20/07/2023,Grants Expenditure,Capital Directorate,WARRINGTON BOROUGH COUNCIL,CL069455,"589,888.60",Capital grants - Local Government
Department for Education,Core,20/07/2023,Grants Expenditure,Capital Directorate,WARWICKSHIRE COUNTY COUNCIL,CL069456,"4,538,919.56",Capital grants - Local Government
Department for Education,Core,20/07/2023,Grants Expenditure,Capital Directorate,WEST BERKSHIRE COUNCIL,CL069457,"751,596.20",Capital grants - Local Government
Department for Education,Core,20/07/2023,Grants Expenditure,Capital Directorate,West Sussex County Council,CL069458,"2,201,080.35",Capital grants - Local Government
Department for Education,Core,20/07/2023,Grants Expenditure,Capital Directorate,WESTMINSTER CITY COUNCIL,CL069459,"452,940.01",Capital grants - Local Government
Department for Education,Core,20/07/2023,Grants Expenditure,Capital Directorate,Wigan Metropolitan Borough Council,CL069460,"1,522,242.62",Capital grants - Local Government
Department for Education,Core,20/07/2023,Grants Expenditure,Capital Directorate,WIRRAL METRO BOROUGH COUNCIL,CL069461,"42,338.78",Capital grants - Local Government
Department for Education,Core,20/07/2023,Grants Expenditure,Capital Directorate,WOKINGHAM COUNCIL,CL069462,"80,477.10",Capital grants - Local Government
Department for Education,Core,20/07/2023,Grants Expenditure,Capital Directorate,Worcestershire County Council,CL069463,"791,963.92",Capital grants - Local Government
Department for Education,Core,20/07/2023,Grants Expenditure,Capital Directorate,North Northamptonshire Council,CL069464,"603,771.11",Capital grants - Local Government
Department for Education,Core,20/07/2023,Grants Expenditure,Capital Directorate,West Northamptonshire Council,CL069465,"985,239.32",Capital grants - Local Government
Department for Education,Core,20/07/2023,Grants Expenditure,Capital Directorate,KENT COUNTY COUNCIL,CL069766,"4,750,287.25",Capital grants - Local Government
Department for Education,Core,20/07/2023,Grants Expenditure,Capital Directorate,Westmorland & Furness Council,CL069767,"103,865.18",Capital grants - Local Government
Department for Education,Core,25/07/2023,Grants Expenditure,Capital Directorate,Plantsbrook School,CAY146245,"31,382.50",Capital grants - Academy Trust
Department for Education,Core,25/07/2023,Grants Expenditure,Capital Directorate,Longdean School,CAY146295,"28,240.94",Capital grants - Academy Trust
Department for Education,Core,25/07/2023,Grants Expenditure,Capital Directorate,Goffs Academy,CAY146637,"31,936.56",Capital grants - Academy Trust
Department for Education,Core,25/07/2023,Grants Expenditure,Capital Directorate,Neston High School,CAY147229,"35,379.06",Capital grants - Academy Trust
Department for Education,Core,25/07/2023,Grants Expenditure,Capital Directorate,Westfield Academy,CAY148555,"25,318.75",Capital grants - Academy Trust
Department for Education,Core,20/07/2023,Grants Expenditure,Capital Directorate,President Kennedy School Academy,CAY148720,"35,561.88",Capital grants - Academy Trust
Department for Education,Core,25/07/2023,Grants Expenditure,Capital Directorate,Beckfoot Oakbank,CAY150964,"31,326.25",Capital grants - Academy Trust
Department for Education,Core,25/07/2023,Grants Expenditure,Capital Directorate,Carlton Bolling,CAY154001,"31,430.31",Capital grants - Academy Trust
Department for Education,Core,20/07/2023,Grants Expenditure,Capital Directorate,Belfairs Academy,CAY156399,"31,787.50",Capital grants - Academy Trust
Department for Education,Core,20/07/2023,Grants Expenditure,Capital Directorate,Abbey Multi Academy Trust,CAY156010,"201,668.15",Capital grants - Academy Trust
Department for Education,Core,20/07/2023,Grants Expenditure,Capital Directorate,Academy Transformation Trust,CAY156011,"679,333.53",Capital grants - Academy Trust
Department for Education,Core,20/07/2023,Grants Expenditure,Capital Directorate,Acer Trust,CAY156012,"269,408.39",Capital grants - Academy Trust
Department for Education,Core,20/07/2023,Grants Expenditure,Capital Directorate,Acorn Education Trust ,CAY156013,"126,907.10",Capital grants - Academy Trust
Department for Education,Core,20/07/2023,Grants Expenditure,Capital Directorate,Advance Learning Partnership,CAY156014,"330,596.96",Capital grants - Academy Trust
Department for Education,Core,20/07/2023,Grants Expenditure,Capital Directorate,ALBAN ACADEMIES TRUST,CAY156015,"273,569.64",Capital grants - Academy Trust
Department for Education,Core,20/07/2023,Grants Expenditure,Capital Directorate,Aldridge Education,CAY156016,"173,551.38",Capital grants - Academy Trust
Department for Education,Core,20/07/2023,Grants Expenditure,Capital Directorate,Aletheia Anglican Academies Trust,CAY156017,"174,720.78",Capital grants - Academy Trust
Department for Education,Core,20/07/2023,Grants Expenditure,Capital Directorate,Alpha Academies Trust,CAY156018,"70,157.66",Capital grants - Academy Trust
Department for Education,Core,20/07/2023,Grants Expenditure,Capital Directorate,Alpha Trust,CAY156019,"233,878.17",Capital grants - Academy Trust
Department for Education,Core,20/07/2023,Grants Expenditure,Capital Directorate,Ambitions Academies Trust,CAY156020,"351,047.06",Capital grants - Academy Trust
Department for Education,Core,20/07/2023,Grants Expenditure,Capital Directorate,Anglian Learning,CAY156021,"385,357.77",Capital grants - Academy Trust
Department for Education,Core,20/07/2023,Grants Expenditure,Capital Directorate,Anthem Schools Trust,CAY156022,"460,580.77",Capital grants - Academy Trust
Department for Education,Core,20/07/2023,Grants Expenditure,Capital Directorate,AQUINAS CHURCH OF ENGLAND EDUCATION TRUST LIMITED,CAY156023,"182,763.29",Capital grants - Academy Trust
Department for Education,Core,20/07/2023,Grants Expenditure,Capital Directorate,Archway Learning Trust,CAY156024,"330,201.69",Capital grants - Academy Trust
Department for Education,Core,20/07/2023,Grants Expenditure,Capital Directorate,ARK Schools,CAY156025,"1,084,543.97",Capital grants - Academy Trust
Department for Education,Core,20/07/2023,Grants Expenditure,Capital Directorate,Aspirations Academies Trust,CAY156026,"377,682.67",Capital grants - Academy Trust
Department for Education,Core,20/07/2023,Grants Expenditure,Capital Directorate,Aspire Academy Trust ,CAY156027,"178,175.02",Capital grants - Academy Trust
Department for Education,Core,20/07/2023,Grants Expenditure,Capital Directorate,ASSET Education,CAY156028,"132,554.49",Capital grants - Academy Trust
Department for Education,Core,20/07/2023,Grants Expenditure,Capital Directorate,ASSISI CATHOLIC TRUST,CAY156029,"173,901.83",Capital grants - Academy Trust
Department for Education,Core,20/07/2023,Grants Expenditure,Capital Directorate,Aston Community Education Trust,CAY156030,"296,994.80",Capital grants - Academy Trust
Department for Education,Core,20/07/2023,Grants Expenditure,Capital Directorate,Astrea Academy Trust,CAY156031,"545,901.17",Capital grants - Academy Trust
Department for Education,Core,20/07/2023,Grants Expenditure,Capital Directorate,Avanti Schools Trust,CAY156032,"144,932.07",Capital grants - Academy Trust
Department for Education,Core,20/07/2023,Grants Expenditure,Capital Directorate,Batley Multi Academy Trust,CAY156033,"148,101.15",Capital grants - Academy Trust
Department for Education,Core,20/07/2023,Grants Expenditure,Capital Directorate,Beckfoot Trust,CAY156034,"300,626.96",Capital grants - Academy Trust
Department for Education,Core,20/07/2023,Grants Expenditure,Capital Directorate,Bedfordshire Schools Trust Limited,CAY156035,"168,379.99",Capital grants - Academy Trust
Department for Education,Core,20/07/2023,Grants Expenditure,Capital Directorate,Berlesduna Academy Trust,CAY156036,"108,070.04",Capital grants - Academy Trust
Department for Education,Core,20/07/2023,Grants Expenditure,Capital Directorate,Beyond Schools Trust,CAY156037,"197,191.22",Capital grants - Academy Trust
Department for Education,Core,20/07/2023,Grants Expenditure,Capital Directorate,Birmingham Diocesan Academies Trust,CAY156038,"173,796.85",Capital grants - Academy Trust
Department for Education,Core,20/07/2023,Grants Expenditure,Capital Directorate,Bishop Bewick Catholic Education Trust,CAY156039,"572,970.85",Capital grants - Academy Trust
Department for Education,Core,20/07/2023,Grants Expenditure,Capital Directorate,Bishop chadwick catholic education trust,CAY156040,"475,333.04",Capital grants - Academy Trust
Department for Education,Core,20/07/2023,Grants Expenditure,Capital Directorate,Bishop Hogarth Catholic Education Trust,CAY156041,"604,417.50",Capital grants - Academy Trust
Department for Education,Core,20/07/2023,Grants Expenditure,Capital Directorate,Blessed Christopher Wharton Catholic Academy Trust,CAY156042,"191,862.86",Capital grants - Academy Trust
Department for Education,Core,20/07/2023,Grants Expenditure,Capital Directorate,Burnt Mill Academy Trust,CAY156043,"495,332.91",Capital grants - Academy Trust
Department for Education,Core,20/07/2023,Grants Expenditure,Capital Directorate,Boleyn Trust,CAY156044,"206,857.59",Capital grants - Academy Trust
Department for Education,Core,20/07/2023,Grants Expenditure,Capital Directorate,Broad Horizons Education Trust,CAY156045,"328,073.82",Capital grants - Academy Trust
Department for Education,Core,20/07/2023,Grants Expenditure,Capital Directorate,Bourne Education Trust,CAY156046,"597,898.38",Capital grants - Academy Trust
Department for Education,Core,20/07/2023,Grants Expenditure,Capital Directorate,Bradford Diocesan Academies Trust,CAY156047,"290,280.37",Capital grants - Academy Trust
Department for Education,Core,20/07/2023,Grants Expenditure,Capital Directorate,Bradgate Education Partnership,CAY156048,"292,185.91",Capital grants - Academy Trust
Department for Education,Core,20/07/2023,Grants Expenditure,Capital Directorate,Bridge Academy Trust,CAY156049,"246,006.04",Capital grants - Academy Trust
Department for Education,Core,20/07/2023,Grants Expenditure,Capital Directorate,Bridgwater & Taunton College Trust,CAY156050,"178,455.33",Capital grants - Academy Trust
Department for Education,Core,20/07/2023,Grants Expenditure,Capital Directorate,Brigantia Learning Trust Limited,CAY156051,"79,572.36",Capital grants - Academy Trust
Department for Education,Core,20/07/2023,Grants Expenditure,Capital Directorate,Bright Futures Educational Trust,CAY156052,"242,813.14",Capital grants - Academy Trust
Department for Education,Core,20/07/2023,Grants Expenditure,Capital Directorate,Brighter Futures Learning Partnership Trust,CAY156053,"120,101.95",Capital grants - Academy Trust
Department for Education,Core,20/07/2023,Grants Expenditure,Capital Directorate,Cabot Learning Federation,CAY156054,"382,409.76",Capital grants - Academy Trust
Department for Education,Core,20/07/2023,Grants Expenditure,Capital Directorate,Cambridge Meridian Academies Trust,CAY156055,"794,786.33",Capital grants - Academy Trust
Department for Education,Core,20/07/2023,Grants Expenditure,Capital Directorate,Castle Phoenix Trust,CAY156056,"221,808.73",Capital grants - Academy Trust
Department for Education,Core,20/07/2023,Grants Expenditure,Capital Directorate,Castle School Education Trust,CAY156057,"406,262.42",Capital grants - Academy Trust
Department for Education,Core,20/07/2023,Grants Expenditure,Capital Directorate,Castleford Academy Trust,CAY156058,"180,451.87",Capital grants - Academy Trust
Department for Education,Core,20/07/2023,Grants Expenditure,Capital Directorate,Cathedral Schools Trust,CAY156059,"148,578.06",Capital grants - Academy Trust
Department for Education,Core,20/07/2023,Grants Expenditure,Capital Directorate,Central Learning Partnership Trust,CAY156060,"368,504.47",Capital grants - Academy Trust
Department for Education,Core,20/07/2023,Grants Expenditure,Capital Directorate,Central RSA Academies Trust,CAY156061,"378,088.23",Capital grants - Academy Trust
Department for Education,Core,20/07/2023,Grants Expenditure,Capital Directorate,CHILDREN FIRST ACADEMY TRUST,CAY156062,"96,809.78",Capital grants - Academy Trust
Department for Education,Core,20/07/2023,Grants Expenditure,Capital Directorate,Chiltern Learning Trust,CAY156063,"587,437.80",Capital grants - Academy Trust
Department for Education,Core,20/07/2023,Grants Expenditure,Capital Directorate,City of London Academies Trust,CAY156064,"293,782.27",Capital grants - Academy Trust
Department for Education,Core,20/07/2023,Grants Expenditure,Capital Directorate,Coastal Learning Partnership,CAY156065,"196,686.37",Capital grants - Academy Trust
Department for Education,Core,20/07/2023,Grants Expenditure,Capital Directorate,Community Academies Trust,CAY156066,"346,016.59",Capital grants - Academy Trust
Department for Education,Core,20/07/2023,Grants Expenditure,Capital Directorate,Community Inclusive Trust,CAY156067,"214,687.17",Capital grants - Academy Trust
Department for Education,Core,20/07/2023,Grants Expenditure,Capital Directorate,Consilium Academies,CAY156068,"202,059.71",Capital grants - Academy Trust
Department for Education,Core,20/07/2023,Grants Expenditure,Capital Directorate,COOMBE ACADEMY TRUST,CAY156069,"234,684.27",Capital grants - Academy Trust
Department for Education,Core,20/07/2023,Grants Expenditure,Capital Directorate,Cornwall Education Learning Trust,CAY156070,"313,835.47",Capital grants - Academy Trust
Department for Education,Core,20/07/2023,Grants Expenditure,Capital Directorate,Creative Education Trust,CAY156071,"775,155.38",Capital grants - Academy Trust
Department for Education,Core,20/07/2023,Grants Expenditure,Capital Directorate,Cumbria Education Trust,CAY156072,"295,215.20",Capital grants - Academy Trust
Department for Education,Core,20/07/2023,Grants Expenditure,Capital Directorate,Danes Educational Trust,CAY156073,"319,579.60",Capital grants - Academy Trust
Department for Education,Core,20/07/2023,Grants Expenditure,Capital Directorate,Dartmoor Multi Academy Trust,CAY156074,"237,449.12",Capital grants - Academy Trust
Department for Education,Core,20/07/2023,Grants Expenditure,Capital Directorate,Delta Academies Trust,CAY156075,"929,527.35",Capital grants - Academy Trust
Department for Education,Core,20/07/2023,Grants Expenditure,Capital Directorate,Diocese of Bristol Academies Trust,CAY156076,"106,184.64",Capital grants - Academy Trust
Department for Education,Core,20/07/2023,Grants Expenditure,Capital Directorate,Diocese of Chichester Academy Trust,CAY156077,"201,473.11",Capital grants - Academy Trust
Department for Education,Core,20/07/2023,Grants Expenditure,Capital Directorate,The Diocese of Hereford Multi Academy Trust,CAY156078,"115,887.47",Capital grants - Academy Trust
Department for Education,Core,20/07/2023,Grants Expenditure,Capital Directorate,Diocese of Salisbury Multi Academy Trust,CAY156079,"113,172.86",Capital grants - Academy Trust
Department for Education,Core,20/07/2023,Grants Expenditure,Capital Directorate,Diocese of Southwell and Nottingham MAT,CAY156080,"289,134.69",Capital grants - Academy Trust
Department for Education,Core,20/07/2023,Grants Expenditure,Capital Directorate,Discovery Schools Academies Trust,CAY156081,"201,765.55",Capital grants - Academy Trust
Department for Education,Core,20/07/2023,Grants Expenditure,Capital Directorate,Diverse Academies Trust,CAY156082,"531,094.12",Capital grants - Academy Trust
Department for Education,Core,20/07/2023,Grants Expenditure,Capital Directorate,Dixons Academies Trust,CAY156083,"393,027.93",Capital grants - Academy Trust
Department for Education,Core,20/07/2023,Grants Expenditure,Capital Directorate,DRB Ignite Multi Academy Trust,CAY156084,"153,509.63",Capital grants - Academy Trust
Department for Education,Core,20/07/2023,Grants Expenditure,Capital Directorate,DUDLEY ACADEMIES TRUST,CAY156085,"282,383.13",Capital grants - Academy Trust
Department for Education,Core,20/07/2023,Grants Expenditure,Capital Directorate,E-ACT,CAY156086,"866,235.24",Capital grants - Academy Trust
Department for Education,Core,20/07/2023,Grants Expenditure,Capital Directorate,East Midlands Academy Trust,CAY156087,"177,322.92",Capital grants - Academy Trust
Department for Education,Core,20/07/2023,Grants Expenditure,Capital Directorate,East Midlands Education Trust,CAY156088,"1,225,056.57",Capital grants - Academy Trust
Department for Education,Core,20/07/2023,Grants Expenditure,Capital Directorate,Eastern Learning Alliance,CAY156089,"228,991.47",Capital grants - Academy Trust
Department for Education,Core,20/07/2023,Grants Expenditure,Capital Directorate,Eastern Multi-Academy Trust,CAY156090,"134,029.60",Capital grants - Academy Trust
Department for Education,Core,20/07/2023,Grants Expenditure,Capital Directorate,EBOR Academy Trust,CAY156091,"172,431.41",Capital grants - Academy Trust
Department for Education,Core,20/07/2023,Grants Expenditure,Capital Directorate,Eden Learning Trust,CAY156092,"316,995.00",Capital grants - Academy Trust
Department for Education,Core,20/07/2023,Grants Expenditure,Capital Directorate,Education for the 21st Century,CAY156093,"323,409.08",Capital grants - Academy Trust
Department for Education,Core,20/07/2023,Grants Expenditure,Capital Directorate,Education Learning Trust,CAY156094,"149,955.89",Capital grants - Academy Trust
Department for Education,Core,20/07/2023,Grants Expenditure,Capital Directorate,Education Partnership Trust,CAY156095,"75,341.51",Capital grants - Academy Trust
Department for Education,Core,20/07/2023,Grants Expenditure,Capital Directorate,Education South West,CAY156096,"146,561.48",Capital grants - Academy Trust
Department for Education,Core,20/07/2023,Grants Expenditure,Capital Directorate,Connect Education Trust,CAY156097,"179,290.71",Capital grants - Academy Trust
Department for Education,Core,20/07/2023,Grants Expenditure,Capital Directorate,Emmaus Catholic Multi Academy Company,CAY156098,"114,784.97",Capital grants - Academy Trust
Department for Education,Core,20/07/2023,Grants Expenditure,Capital Directorate,ENHANCE ACADEMY TRUST,CAY156099,"129,548.25",Capital grants - Academy Trust
Department for Education,Core,20/07/2023,Grants Expenditure,Capital Directorate,Enrich Learning Trust,CAY156100,"244,265.57",Capital grants - Academy Trust
Department for Education,Core,20/07/2023,Grants Expenditure,Capital Directorate,Epping Forest Schools Partnership Trust,CAY156101,"165,909.06",Capital grants - Academy Trust
Department for Education,Core,20/07/2023,Grants Expenditure,Capital Directorate,Equals Trust,CAY156102,"264,978.17",Capital grants - Academy Trust
Department for Education,Core,20/07/2023,Grants Expenditure,Capital Directorate,Esteem Multi-Academy Trust,CAY156103,"189,263.77",Capital grants - Academy Trust
Department for Education,Core,20/07/2023,Grants Expenditure,Capital Directorate,Evolution Academy Trust,CAY156104,"135,694.58",Capital grants - Academy Trust
Department for Education,Core,20/07/2023,Grants Expenditure,Capital Directorate,Excalibur Academies Trust,CAY156105,"225,013.14",Capital grants - Academy Trust
Department for Education,Core,20/07/2023,Grants Expenditure,Capital Directorate,Exceed Academies Trust,CAY156106,"167,581.11",Capital grants - Academy Trust
Department for Education,Core,20/07/2023,Grants Expenditure,Capital Directorate,Faringdon Academy of Schools,CAY156107,"144,080.90",Capital grants - Academy Trust
Department for Education,Core,20/07/2023,Grants Expenditure,Capital Directorate,Finham Park Multi Academy Trust,CAY156108,"255,557.72",Capital grants - Academy Trust
Department for Education,Core,20/07/2023,Grants Expenditure,Capital Directorate,Flying High Trust,CAY156109,"400,421.09",Capital grants - Academy Trust
Department for Education,Core,20/07/2023,Grants Expenditure,Capital Directorate,Focus Academy Trust (UK) Ltd,CAY156110,"155,045.71",Capital grants - Academy Trust
Department for Education,Core,20/07/2023,Grants Expenditure,Capital Directorate,FORWARD EDUCATION TRUST,CAY156111,"86,647.38",Capital grants - Academy Trust
Department for Education,Core,20/07/2023,Grants Expenditure,Capital Directorate,Futura Learning Partnership,CAY156112,"320,312.36",Capital grants - Academy Trust
Department for Education,Core,20/07/2023,Grants Expenditure,Capital Directorate,Future academies,CAY156113,"425,294.38",Capital grants - Academy Trust
Department for Education,Core,20/07/2023,Grants Expenditure,Capital Directorate,Fylde Coast Academy Trust,CAY156114,"273,017.40",Capital grants - Academy Trust
Department for Education,Core,20/07/2023,Grants Expenditure,Capital Directorate,Galileo Multi Academy Trust,CAY156115,"96,220.72",Capital grants - Academy Trust
Department for Education,Core,20/07/2023,Grants Expenditure,Capital Directorate,Gatehouse Green Learning Trust,CAY156116,"112,867.87",Capital grants - Academy Trust
Department for Education,Core,20/07/2023,Grants Expenditure,Capital Directorate,GFM EDUCATION,CAY156117,"317,113.43",Capital grants - Academy Trust
Department for Education,Core,20/07/2023,Grants Expenditure,Capital Directorate,GLF Schools,CAY156118,"673,743.44",Capital grants - Academy Trust
Department for Education,Core,20/07/2023,Grants Expenditure,Capital Directorate,GREENSAND MULTI-ACADEMY TRUST,CAY156119,"91,514.63",Capital grants - Academy Trust
Department for Education,Core,20/07/2023,Grants Expenditure,Capital Directorate,Greenshaw Learning Trust,CAY156120,"1,134,905.02",Capital grants - Academy Trust
Department for Education,Core,20/07/2023,Grants Expenditure,Capital Directorate,Greenwood Academies Trust,CAY156121,"743,831.09",Capital grants - Academy Trust
Department for Education,Core,20/07/2023,Grants Expenditure,Capital Directorate,Haberdashers' Aske's Federation Trust,CAY156122,"212,897.16",Capital grants - Academy Trust
Department for Education,Core,20/07/2023,Grants Expenditure,Capital Directorate,Hamwic Education Trust,CAY156123,"495,326.86",Capital grants - Academy Trust
Department for Education,Core,20/07/2023,Grants Expenditure,Capital Directorate,Harbour Learning Trust,CAY156124,"223,511.59",Capital grants - Academy Trust
Department for Education,Core,20/07/2023,Grants Expenditure,Capital Directorate,Harris Federation,CAY156125,"1,590,613.97",Capital grants - Academy Trust
Department for Education,Core,20/07/2023,Grants Expenditure,Capital Directorate,HCAT,CAY156126,"60,971.94",Capital grants - Academy Trust
Department for Education,Core,20/07/2023,Grants Expenditure,Capital Directorate,Holy Cross Catholic Multi Academy Company,CAY156127,"286,932.44",Capital grants - Academy Trust
Department for Education,Core,20/07/2023,Grants Expenditure,Capital Directorate,Holy Family Catholic Multi Academy Trust,CAY156128,"174,274.89",Capital grants - Academy Trust
Department for Education,Core,20/07/2023,Grants Expenditure,Capital Directorate,"Hope Learning Trust, York",CAY156129,"266,511.75",Capital grants - Academy Trust
Department for Education,Core,20/07/2023,Grants Expenditure,Capital Directorate,Hull Collaborative Academy Trust,CAY156130,"199,044.94",Capital grants - Academy Trust
Department for Education,Core,20/07/2023,Grants Expenditure,Capital Directorate,Humber Education Trust,CAY156131,"152,412.84",Capital grants - Academy Trust
Department for Education,Core,20/07/2023,Grants Expenditure,Capital Directorate,Impact Education Multi Academy Trust,CAY156132,"236,183.66",Capital grants - Academy Trust
Department for Education,Core,20/07/2023,Grants Expenditure,Capital Directorate,InMAT,CAY156133,"129,250.52",Capital grants - Academy Trust
Department for Education,Core,20/07/2023,Grants Expenditure,Capital Directorate,Inspiration Trust,CAY156134,"507,619.55",Capital grants - Academy Trust
Department for Education,Core,20/07/2023,Grants Expenditure,Capital Directorate,Inspire Education Trust,CAY156135,"146,683.44",Capital grants - Academy Trust
Department for Education,Core,20/07/2023,Grants Expenditure,Capital Directorate,INSPIRE PARTNERSHIP ACADEMY TRUST,CAY156136,"170,143.11",Capital grants - Academy Trust
Department for Education,Core,20/07/2023,Grants Expenditure,Capital Directorate,Inspiring Futures Through Learning,CAY156137,"214,755.67",Capital grants - Academy Trust
Department for Education,Core,20/07/2023,Grants Expenditure,Capital Directorate,Invictus Education Trust,CAY156138,"634,487.46",Capital grants - Academy Trust
Department for Education,Core,20/07/2023,Grants Expenditure,Capital Directorate,IVY LEARNING TRUST,CAY156139,"230,068.62",Capital grants - Academy Trust
Department for Education,Core,20/07/2023,Grants Expenditure,Capital Directorate,James Montgomery Academy Trust,CAY156140,"155,085.64",Capital grants - Academy Trust
Department for Education,Core,20/07/2023,Grants Expenditure,Capital Directorate,John Taylor MAT,CAY156141,"674,179.24",Capital grants - Academy Trust
Department for Education,Core,20/07/2023,Grants Expenditure,Capital Directorate,Kent Catholic Schools' Partnership,CAY156142,"432,984.74",Capital grants - Academy Trust
Department for Education,Core,20/07/2023,Grants Expenditure,Capital Directorate,Kernow Learning Multi Academy Trust,CAY156143,"117,260.80",Capital grants - Academy Trust
Department for Education,Core,20/07/2023,Grants Expenditure,Capital Directorate,King's Group Academies,CAY156144,"195,560.96",Capital grants - Academy Trust
Department for Education,Core,20/07/2023,Grants Expenditure,Capital Directorate,KING EDWARD VI ACADEMY TRUST BIRMINGHAM,CAY156145,"677,520.62",Capital grants - Academy Trust
Department for Education,Core,20/07/2023,Grants Expenditure,Capital Directorate,L.E.A.D. Academy Trust,CAY156146,"503,292.77",Capital grants - Academy Trust
Department for Education,Core,20/07/2023,Grants Expenditure,Capital Directorate,Landau Forte Charitable Trust,CAY156147,"235,475.15",Capital grants - Academy Trust
Department for Education,Core,20/07/2023,Grants Expenditure,Capital Directorate,Langley Park Learning Trust,CAY156148,"360,618.99",Capital grants - Academy Trust
Department for Education,Core,20/07/2023,Grants Expenditure,Capital Directorate,Learners trust,CAY156149,"154,276.16",Capital grants - Academy Trust
Department for Education,Core,20/07/2023,Grants Expenditure,Capital Directorate,Learning Community Trust,CAY156150,"230,134.34",Capital grants - Academy Trust
Department for Education,Core,20/07/2023,Grants Expenditure,Capital Directorate,Learning in Harmony Multi Academy Trust,CAY156151,"207,070.87",Capital grants - Academy Trust
Department for Education,Core,20/07/2023,Grants Expenditure,Capital Directorate,Learning partners academy trust,CAY156152,"446,788.98",Capital grants - Academy Trust
Department for Education,Core,20/07/2023,Grants Expenditure,Capital Directorate,Learning Without Limits Academy Trust,CAY156153,"198,008.18",Capital grants - Academy Trust
Department for Education,Core,20/07/2023,Grants Expenditure,Capital Directorate,Leigh Academies Trust,CAY156154,"775,934.97",Capital grants - Academy Trust
Department for Education,Core,20/07/2023,Grants Expenditure,Capital Directorate,Leigh Trust,CAY156155,"112,672.72",Capital grants - Academy Trust
Department for Education,Core,20/07/2023,Grants Expenditure,Capital Directorate,LEO Academy Trust,CAY156156,"126,618.73",Capital grants - Academy Trust
Department for Education,Core,20/07/2023,Grants Expenditure,Capital Directorate,Leodis Academies Trust,CAY156157,"152,448.68",Capital grants - Academy Trust
Department for Education,Core,20/07/2023,Grants Expenditure,Capital Directorate,LiFE Multi Academy Trust,CAY156158,"840,954.20",Capital grants - Academy Trust
Department for Education,Core,20/07/2023,Grants Expenditure,Capital Directorate,Lighthouse Schools Partnership,CAY156159,"390,520.56",Capital grants - Academy Trust
Department for Education,Core,20/07/2023,Grants Expenditure,Capital Directorate,Lime Trust,CAY156160,"207,034.48",Capital grants - Academy Trust
Department for Education,Core,20/07/2023,Grants Expenditure,Capital Directorate,Lincoln Anglican Academy Trust,CAY156161,"131,486.88",Capital grants - Academy Trust
Department for Education,Core,20/07/2023,Grants Expenditure,Capital Directorate,Lion Academy Trust,CAY156162,"133,150.67",Capital grants - Academy Trust
Department for Education,Core,20/07/2023,Grants Expenditure,Capital Directorate,Lionheart Educational Trust,CAY156163,"857,881.81",Capital grants - Academy Trust
Department for Education,Core,20/07/2023,Grants Expenditure,Capital Directorate,Liverpool Diocesan Schools Trust,CAY156164,"171,815.77",Capital grants - Academy Trust
Department for Education,Core,20/07/2023,Grants Expenditure,Capital Directorate,Magna Learning Partnership,CAY156165,"119,539.06",Capital grants - Academy Trust
Department for Education,Core,20/07/2023,Grants Expenditure,Capital Directorate,Maiden Erlegh Trust,CAY156166,"267,198.98",Capital grants - Academy Trust
Department for Education,Core,20/07/2023,Grants Expenditure,Capital Directorate,Maltby Learning Trust,CAY156167,"143,374.08",Capital grants - Academy Trust
Department for Education,Core,20/07/2023,Grants Expenditure,Capital Directorate,Manor Hall Academy Trust,CAY156168,"174,168.00",Capital grants - Academy Trust
Department for Education,Core,20/07/2023,Grants Expenditure,Capital Directorate,Manor Multi Academy Trust,CAY156169,"170,760.36",Capital grants - Academy Trust
Department for Education,Core,20/07/2023,Grants Expenditure,Capital Directorate,Marches Academy Trust,CAY156170,"286,016.26",Capital grants - Academy Trust
Department for Education,Core,20/07/2023,Grants Expenditure,Capital Directorate,Maritime AcademyTrust,CAY156171,"174,101.25",Capital grants - Academy Trust
Department for Education,Core,20/07/2023,Grants Expenditure,Capital Directorate,Matrix Academy Trust,CAY156172,"347,655.71",Capital grants - Academy Trust
Department for Education,Core,20/07/2023,Grants Expenditure,Capital Directorate,Mercia Learning Trust,CAY156173,"100,878.82",Capital grants - Academy Trust
Department for Education,Core,20/07/2023,Grants Expenditure,Capital Directorate,Midsomer Norton Schools Partnership,CAY156174,"468,565.14",Capital grants - Academy Trust
Department for Education,Core,20/07/2023,Grants Expenditure,Capital Directorate,Minerva Learning Trust,CAY156175,"233,952.27",Capital grants - Academy Trust
Department for Education,Core,20/07/2023,Grants Expenditure,Capital Directorate,Minster Trust for Education ,CAY156176,"318,145.94",Capital grants - Academy Trust
Department for Education,Core,20/07/2023,Grants Expenditure,Capital Directorate,NEAT Academy Trust,CAY156177,"138,841.27",Capital grants - Academy Trust
Department for Education,Core,20/07/2023,Grants Expenditure,Capital Directorate,New Bridge Multi Academy Trust,CAY156178,"163,638.72",Capital grants - Academy Trust
Department for Education,Core,20/07/2023,Grants Expenditure,Capital Directorate,Nexus Education Schools Trust,CAY156179,"271,313.65",Capital grants - Academy Trust
Department for Education,Core,20/07/2023,Grants Expenditure,Capital Directorate,Nexus Multi Academy Trust,CAY156180,"180,570.52",Capital grants - Academy Trust
Department for Education,Core,20/07/2023,Grants Expenditure,Capital Directorate,Nicholas Postgate Academy Trust,CAY156181,"310,838.45",Capital grants - Academy Trust
Department for Education,Core,20/07/2023,Grants Expenditure,Capital Directorate,North East Learning Trust,CAY156182,"331,913.10",Capital grants - Academy Trust
Department for Education,Core,20/07/2023,Grants Expenditure,Capital Directorate,Northampton Primary Academy Trust,CAY156183,"114,444.57",Capital grants - Academy Trust
Department for Education,Core,20/07/2023,Grants Expenditure,Capital Directorate,Northern Education Trust,CAY156184,"450,781.37",Capital grants - Academy Trust
Department for Education,Core,20/07/2023,Grants Expenditure,Capital Directorate,Northern Star Academies Trust,CAY156185,"107,958.56",Capital grants - Academy Trust
Department for Education,Core,20/07/2023,Grants Expenditure,Capital Directorate,Northumberland Church of England Academy Trust,CAY156186,"77,140.97",Capital grants - Academy Trust
Department for Education,Core,20/07/2023,Grants Expenditure,Capital Directorate,Nova Education Trust,CAY156187,"822,243.20",Capital grants - Academy Trust
Department for Education,Core,20/07/2023,Grants Expenditure,Capital Directorate,Oasis Community Learning,CAY156188,"911,911.83",Capital grants - Academy Trust
Department for Education,Core,20/07/2023,Grants Expenditure,Capital Directorate,Omega Multi Academy Trust,CAY156189,"154,630.38",Capital grants - Academy Trust
Department for Education,Core,20/07/2023,Grants Expenditure,Capital Directorate,Orchard Community Trust,CAY156190,"56,376.30",Capital grants - Academy Trust
Department for Education,Core,20/07/2023,Grants Expenditure,Capital Directorate,Orchard Hill College Academy Trust,CAY156191,"348,483.12",Capital grants - Academy Trust
Department for Education,Core,20/07/2023,Grants Expenditure,Capital Directorate,Ormiston Academies Trust,CAY156192,"1,503,200.59",Capital grants - Academy Trust
Department for Education,Core,20/07/2023,Grants Expenditure,Capital Directorate,Osborne Co-operative Academy Trust,CAY156193,"231,989.04",Capital grants - Academy Trust
Department for Education,Core,20/07/2023,Grants Expenditure,Capital Directorate,Our Lady and All Saints Catholic MAC,CAY156194,"206,180.34",Capital grants - Academy Trust
Department for Education,Core,20/07/2023,Grants Expenditure,Capital Directorate,Our Lady Immaculate Catholic Academies Trust,CAY156195,"263,085.92",Capital grants - Academy Trust
Department for Education,Core,20/07/2023,Grants Expenditure,Capital Directorate,Outwood Grange Academies Trust,CAY156196,"1,095,307.00",Capital grants - Academy Trust
Department for Education,Core,20/07/2023,Grants Expenditure,Capital Directorate,Palladian Academy Trust,CAY156197,"122,499.47",Capital grants - Academy Trust
Department for Education,Core,20/07/2023,Grants Expenditure,Capital Directorate,Paradigm Trust,CAY156198,"90,291.58",Capital grants - Academy Trust
Department for Education,Core,20/07/2023,Grants Expenditure,Capital Directorate,Partnership Learning,CAY156199,"407,729.59",Capital grants - Academy Trust
Department for Education,Core,20/07/2023,Grants Expenditure,Capital Directorate,Pathfinder Multi Academy Trust,CAY156200,"224,636.29",Capital grants - Academy Trust
Department for Education,Core,20/07/2023,Grants Expenditure,Capital Directorate,Pathfinder Schools,CAY156201,"168,505.50",Capital grants - Academy Trust
Department for Education,Core,20/07/2023,Grants Expenditure,Capital Directorate,Pele Trust,CAY156202,"146,779.86",Capital grants - Academy Trust
Department for Education,Core,20/07/2023,Grants Expenditure,Capital Directorate,Peterborough Diocese Education Trust,CAY156203,"205,341.87",Capital grants - Academy Trust
Department for Education,Core,20/07/2023,Grants Expenditure,Capital Directorate,PETERBOROUGH KEYS ACADEMIES TRUST,CAY156204,"110,013.27",Capital grants - Academy Trust
Department for Education,Core,20/07/2023,Grants Expenditure,Capital Directorate,Plymouth CAST,CAY156205,"232,052.46",Capital grants - Academy Trust
Department for Education,Core,20/07/2023,Grants Expenditure,Capital Directorate,Pontefract Academies Trust,CAY156206,"232,802.97",Capital grants - Academy Trust
Department for Education,Core,20/07/2023,Grants Expenditure,Capital Directorate,Prospere Learning Trust,CAY156207,"260,230.33",Capital grants - Academy Trust
Department for Education,Core,20/07/2023,Grants Expenditure,Capital Directorate,Reach South Academy Trust,CAY156208,"213,791.35",Capital grants - Academy Trust
Department for Education,Core,20/07/2023,Grants Expenditure,Capital Directorate,REAch2 Academy Trust,CAY156209,"728,202.17",Capital grants - Academy Trust
Department for Education,Core,20/07/2023,Grants Expenditure,Capital Directorate,Red Kite Learning Trust,CAY156210,"297,590.95",Capital grants - Academy Trust
Department for Education,Core,20/07/2023,Grants Expenditure,Capital Directorate,Redhill Academy Trust,CAY156211,"579,112.61",Capital grants - Academy Trust
Department for Education,Core,20/07/2023,Grants Expenditure,Capital Directorate,River Learning Trust,CAY156212,"927,881.17",Capital grants - Academy Trust
Department for Education,Core,20/07/2023,Grants Expenditure,Capital Directorate,Ascend learning trust,CAY156213,"176,545.86",Capital grants - Academy Trust
Department for Education,Core,20/07/2023,Grants Expenditure,Capital Directorate,Russell Education Trust,CAY156214,"177,110.16",Capital grants - Academy Trust
Department for Education,Core,20/07/2023,Grants Expenditure,Capital Directorate,Saffron Academy Trust,CAY156215,"454,458.30",Capital grants - Academy Trust
Department for Education,Core,20/07/2023,Grants Expenditure,Capital Directorate,Sapientia Education Trust,CAY156216,"436,560.29",Capital grants - Academy Trust
Department for Education,Core,20/07/2023,Grants Expenditure,Capital Directorate,Scholars' Education Trust,CAY156217,"407,366.76",Capital grants - Academy Trust
Department for Education,Core,20/07/2023,Grants Expenditure,Capital Directorate,Severn Academies Educational Trust,CAY156218,"150,417.55",Capital grants - Academy Trust
Department for Education,Core,20/07/2023,Grants Expenditure,Capital Directorate,SHARE Multi Academy Trust,CAY156219,"145,900.34",Capital grants - Academy Trust
Department for Education,Core,20/07/2023,Grants Expenditure,Capital Directorate,Sherborne Area Schools' Trust,CAY156220,"160,018.55",Capital grants - Academy Trust
Department for Education,Core,20/07/2023,Grants Expenditure,Capital Directorate,Shireland Collegiate Academy Trust,CAY156221,"217,224.99",Capital grants - Academy Trust
Department for Education,Core,20/07/2023,Grants Expenditure,Capital Directorate,Sidney Stringer Multi Academy Trust,CAY156222,"91,746.36",Capital grants - Academy Trust
Department for Education,Core,20/07/2023,Grants Expenditure,Capital Directorate,Skills For Life Trust,CAY156223,"118,983.54",Capital grants - Academy Trust
Department for Education,Core,20/07/2023,Grants Expenditure,Capital Directorate,South Bank Multi Academy Trust,CAY156224,"209,880.51",Capital grants - Academy Trust
Department for Education,Core,20/07/2023,Grants Expenditure,Capital Directorate,South East Cornwall Multi Academy Trust,CAY156225,"103,031.79",Capital grants - Academy Trust
Department for Education,Core,20/07/2023,Grants Expenditure,Capital Directorate,South Pennine Academies,CAY156226,"151,346.67",Capital grants - Academy Trust
Department for Education,Core,20/07/2023,Grants Expenditure,Capital Directorate,South Suffolk Learning Trust,CAY156227,"191,222.25",Capital grants - Academy Trust
Department for Education,Core,20/07/2023,Grants Expenditure,Capital Directorate,South West Essex Community Education Trust Limited,CAY156228,"190,133.14",Capital grants - Academy Trust
Department for Education,Core,20/07/2023,Grants Expenditure,Capital Directorate,Southend East Community Academy Trust,CAY156229,"142,296.17",Capital grants - Academy Trust
Department for Education,Core,20/07/2023,Grants Expenditure,Capital Directorate,St. Bart's Multi Academy Trust,CAY156230,"241,284.62",Capital grants - Academy Trust
Department for Education,Core,20/07/2023,Grants Expenditure,Capital Directorate,St Chad's Academies Trust,CAY156231,"252,541.30",Capital grants - Academy Trust
Department for Education,Core,20/07/2023,Grants Expenditure,Capital Directorate,St Cuthbert's Roman Catholic Academy Trust,CAY156232,"218,578.22",Capital grants - Academy Trust
Department for Education,Core,20/07/2023,Grants Expenditure,Capital Directorate,St Francis and St Clare Multi Academy Company,CAY156233,"358,144.11",Capital grants - Academy Trust
Department for Education,Core,20/07/2023,Grants Expenditure,Capital Directorate,St John The Baptist Catholic Multi Academy Trust,CAY156234,"150,966.43",Capital grants - Academy Trust
Department for Education,Core,20/07/2023,Grants Expenditure,Capital Directorate,St Teresa of Calcutta Academy Trust,CAY156235,"191,841.71",Capital grants - Academy Trust
Department for Education,Core,20/07/2023,Grants Expenditure,Capital Directorate,St Teresa of Calcutta MAC,CAY156236,"142,581.86",Capital grants - Academy Trust
Department for Education,Core,20/07/2023,Grants Expenditure,Capital Directorate,St Thomas Catholic Academies Trust,CAY156237,"367,502.90",Capital grants - Academy Trust
Department for Education,Core,20/07/2023,Grants Expenditure,Capital Directorate,John Paul II Multi-academy,CAY156238,"222,073.74",Capital grants - Academy Trust
Department for Education,Core,20/07/2023,Grants Expenditure,Capital Directorate,Staffordshire University Academies Trust,CAY156239,"184,266.77",Capital grants - Academy Trust
Department for Education,Core,20/07/2023,Grants Expenditure,Capital Directorate,Star Academies,CAY156240,"844,092.76",Capital grants - Academy Trust
Department for Education,Core,20/07/2023,Grants Expenditure,Capital Directorate,Steel City Schools Partnership,CAY156241,"129,101.14",Capital grants - Academy Trust
Department for Education,Core,20/07/2023,Grants Expenditure,Capital Directorate,STEP ACADEMY TRUST,CAY156242,"194,756.59",Capital grants - Academy Trust
Department for Education,Core,20/07/2023,Grants Expenditure,Capital Directorate,Stour Vale Academy Trust,CAY156243,"376,597.24",Capital grants - Academy Trust
Department for Education,Core,20/07/2023,Grants Expenditure,Capital Directorate,STOWE VALLEY MULTI ACADEMY TRUST,CAY156244,"272,221.90",Capital grants - Academy Trust
Department for Education,Core,20/07/2023,Grants Expenditure,Capital Directorate,Summit Learning Trust,CAY156245,"338,451.98",Capital grants - Academy Trust
Department for Education,Core,20/07/2023,Grants Expenditure,Capital Directorate,Swale Academies Trust,CAY156246,"561,547.47",Capital grants - Academy Trust
Department for Education,Core,20/07/2023,Grants Expenditure,Capital Directorate,Synergy Multi Academy Trust,CAY156247,"245,155.73",Capital grants - Academy Trust
Department for Education,Core,20/07/2023,Grants Expenditure,Capital Directorate,Tapton School Academy Trust,CAY156248,"151,236.17",Capital grants - Academy Trust
Department for Education,Core,20/07/2023,Grants Expenditure,Capital Directorate,TARKA LEARNING PARTNERSHIP,CAY156249,"85,752.45",Capital grants - Academy Trust
Department for Education,Core,20/07/2023,Grants Expenditure,Capital Directorate,The 3-18 Education Trust,CAY156250,"248,548.72",Capital grants - Academy Trust
Department for Education,Core,20/07/2023,Grants Expenditure,Capital Directorate,The Active Learning Trust Limited,CAY156251,"432,017.62",Capital grants - Academy Trust
Department for Education,Core,20/07/2023,Grants Expenditure,Capital Directorate,The Arthur Terry Learning Partnership,CAY156252,"499,924.13",Capital grants - Academy Trust
Department for Education,Core,20/07/2023,Grants Expenditure,Capital Directorate,THE ASPIRE EDUCATIONAL TRUST,CAY156253,"130,552.99",Capital grants - Academy Trust
Department for Education,Core,20/07/2023,Grants Expenditure,Capital Directorate,The Athelstan Trust,CAY156254,"222,949.64",Capital grants - Academy Trust
Department for Education,Core,20/07/2023,Grants Expenditure,Capital Directorate,The Bath and Wells Diocesan Academies Trust,CAY156255,"199,285.45",Capital grants - Academy Trust
Department for Education,Core,20/07/2023,Grants Expenditure,Capital Directorate,The Bishop Konstant Catholic Academy Trust,CAY156256,"169,598.01",Capital grants - Academy Trust
Department for Education,Core,20/07/2023,Grants Expenditure,Capital Directorate,The Bishop Wheeler Catholic Academy Trust,CAY156257,"176,623.96",Capital grants - Academy Trust
Department for Education,Core,20/07/2023,Grants Expenditure,Capital Directorate,The Brigshaw Learning Partnership,CAY156258,"113,897.69",Capital grants - Academy Trust
Department for Education,Core,20/07/2023,Grants Expenditure,Capital Directorate,Brooke Weston Trust,CAY156259,"364,180.72",Capital grants - Academy Trust
Department for Education,Core,20/07/2023,Grants Expenditure,Capital Directorate,The Cam Academy Trust,CAY156260,"242,892.31",Capital grants - Academy Trust
Department for Education,Core,20/07/2023,Grants Expenditure,Capital Directorate,The Challenge Academy Trust,CAY156261,"534,089.56",Capital grants - Academy Trust
Department for Education,Core,20/07/2023,Grants Expenditure,Capital Directorate,The Charter Schools Educational Trust ,CAY156262,"169,899.16",Capital grants - Academy Trust
Department for Education,Core,20/07/2023,Grants Expenditure,Capital Directorate,The Chelmsford Learning Partnership ,CAY156263,"213,181.16",Capital grants - Academy Trust
Department for Education,Core,20/07/2023,Grants Expenditure,Capital Directorate,THE CIRCLE TRUST,CAY156264,"163,522.45",Capital grants - Academy Trust
Department for Education,Core,20/07/2023,Grants Expenditure,Capital Directorate,Co-operative Academies Trust,CAY156265,"551,976.00",Capital grants - Academy Trust
Department for Education,Core,20/07/2023,Grants Expenditure,Capital Directorate,The Collegiate Trust,CAY156266,"203,271.94",Capital grants - Academy Trust
Department for Education,Core,20/07/2023,Grants Expenditure,Capital Directorate,The Compass Partnership of Schools,CAY156267,"156,326.62",Capital grants - Academy Trust
Department for Education,Core,20/07/2023,Grants Expenditure,Capital Directorate,The Consortium Academy Trust,CAY156268,"255,646.70",Capital grants - Academy Trust
Department for Education,Core,20/07/2023,Grants Expenditure,Capital Directorate,The Constellation Trust,CAY156269,"183,857.10",Capital grants - Academy Trust
Department for Education,Core,20/07/2023,Grants Expenditure,Capital Directorate,The David Ross Education Trust,CAY156270,"550,492.71",Capital grants - Academy Trust
Department for Education,Core,20/07/2023,Grants Expenditure,Capital Directorate,The De Ferrers Trust,CAY156271,"330,049.19",Capital grants - Academy Trust
Department for Education,Core,20/07/2023,Grants Expenditure,Capital Directorate,THE DEAN TRUST,CAY156272,"205,245.62",Capital grants - Academy Trust
Department for Education,Core,20/07/2023,Grants Expenditure,Capital Directorate,The Diamond Learning Partnership Trust,CAY156273,"149,484.49",Capital grants - Academy Trust
Department for Education,Core,20/07/2023,Grants Expenditure,Capital Directorate,The Diocese of Canterbury Academies Trust,CAY156274,"138,770.40",Capital grants - Academy Trust
Department for Education,Core,20/07/2023,Grants Expenditure,Capital Directorate,The Diocese of Chemsford Vine Schools Trust,CAY156275,"164,189.56",Capital grants - Academy Trust
Department for Education,Core,20/07/2023,Grants Expenditure,Capital Directorate,The Diocese of Coventry Multi-Academy Trust,CAY156276,"193,462.78",Capital grants - Academy Trust
Department for Education,Core,20/07/2023,Grants Expenditure,Capital Directorate,The Diocese of Ely Multi-academy Trust,CAY156277,"261,200.71",Capital grants - Academy Trust
Department for Education,Core,20/07/2023,Grants Expenditure,Capital Directorate,The Diocese of Gloucester Academies Trust,CAY156278,"113,323.57",Capital grants - Academy Trust
Department for Education,Core,20/07/2023,Grants Expenditure,Capital Directorate,The Diocese of Sheffield Academies Trust,CAY156279,"109,834.59",Capital grants - Academy Trust
Department for Education,Core,20/07/2023,Grants Expenditure,Capital Directorate,The Diocese of Westminster Academy Trust,CAY156280,"479,691.43",Capital grants - Academy Trust
Department for Education,Core,20/07/2023,Grants Expenditure,Capital Directorate,DUNRAVEN EDUCATIONAL TRUST,CAY156281,"163,631.20",Capital grants - Academy Trust
Department for Education,Core,20/07/2023,Grants Expenditure,Capital Directorate,THE EDEN ACADEMY,CAY156282,"119,813.72",Capital grants - Academy Trust
Department for Education,Core,20/07/2023,Grants Expenditure,Capital Directorate,The Education Alliance,CAY156283,"212,387.93",Capital grants - Academy Trust
Department for Education,Core,20/07/2023,Grants Expenditure,Capital Directorate,The Elliot Foundation Academies Trust,CAY156284,"515,479.45",Capital grants - Academy Trust
Department for Education,Core,20/07/2023,Grants Expenditure,Capital Directorate,The Enquire Learning Trust,CAY156285,"355,356.02",Capital grants - Academy Trust
Department for Education,Core,20/07/2023,Grants Expenditure,Capital Directorate,The Fallibroome Trust,CAY156286,"262,031.82",Capital grants - Academy Trust
Department for Education,Core,20/07/2023,Grants Expenditure,Capital Directorate,The First Federation Trust,CAY156287,"108,704.57",Capital grants - Academy Trust
Department for Education,Core,20/07/2023,Grants Expenditure,Capital Directorate,The Futures Trust,CAY156288,"344,060.74",Capital grants - Academy Trust
Department for Education,Core,20/07/2023,Grants Expenditure,Capital Directorate,THE GOOD SHEPHERD CATHOLIC TRUST,CAY156289,"156,850.29",Capital grants - Academy Trust
Department for Education,Core,20/07/2023,Grants Expenditure,Capital Directorate,THE GOOD SHEPHERD TRUST,CAY156290,"171,499.87",Capital grants - Academy Trust
Department for Education,Core,20/07/2023,Grants Expenditure,Capital Directorate,The GORSE Academies Trust,CAY156291,"356,303.65",Capital grants - Academy Trust
Department for Education,Core,20/07/2023,Grants Expenditure,Capital Directorate,The Gosforth Federated Academies Limited,CAY156292,"160,932.03",Capital grants - Academy Trust
Department for Education,Core,20/07/2023,Grants Expenditure,Capital Directorate,The Griffin Schools Trust,CAY156293,"215,319.32",Capital grants - Academy Trust
Department for Education,Core,20/07/2023,Grants Expenditure,Capital Directorate,The Harmony Trust Ltd,CAY156294,"128,473.65",Capital grants - Academy Trust
Department for Education,Core,20/07/2023,Grants Expenditure,Capital Directorate,The Heath Family (North West),CAY156295,"87,504.36",Capital grants - Academy Trust
Department for Education,Core,20/07/2023,Grants Expenditure,Capital Directorate,The Howard Partnership Trust ,CAY156296,"386,389.50",Capital grants - Academy Trust
Department for Education,Core,20/07/2023,Grants Expenditure,Capital Directorate,The Kemnal Academies Trust,CAY156297,"1,117,559.51",Capital grants - Academy Trust
Department for Education,Core,20/07/2023,Grants Expenditure,Capital Directorate,THE LAIDLAW SCHOOLS TRUST,CAY156298,"134,632.83",Capital grants - Academy Trust
Department for Education,Core,20/07/2023,Grants Expenditure,Capital Directorate,The Laurus Trust,CAY156299,"292,936.01",Capital grants - Academy Trust
Department for Education,Core,20/07/2023,Grants Expenditure,Capital Directorate,The Learning Alliance,CAY156300,"252,510.26",Capital grants - Academy Trust
Department for Education,Core,20/07/2023,Grants Expenditure,Capital Directorate,The Mead Educational Trust,CAY156301,"323,494.68",Capital grants - Academy Trust
Department for Education,Core,20/07/2023,Grants Expenditure,Capital Directorate,The Mercian Trust,CAY156302,"455,071.80",Capital grants - Academy Trust
Department for Education,Core,20/07/2023,Grants Expenditure,Capital Directorate,The Midland Academies Trust,CAY156303,"506,330.10",Capital grants - Academy Trust
Department for Education,Core,20/07/2023,Grants Expenditure,Capital Directorate,The Olympus Academy Trust,CAY156304,"240,735.97",Capital grants - Academy Trust
Department for Education,Core,20/07/2023,Grants Expenditure,Capital Directorate,The Painsley Catholic Academy,CAY156305,"191,499.61",Capital grants - Academy Trust
Department for Education,Core,20/07/2023,Grants Expenditure,Capital Directorate,The Park Federation Academy Trust,CAY156306,"160,666.15",Capital grants - Academy Trust
Department for Education,Core,20/07/2023,Grants Expenditure,Capital Directorate,The Partnership Trust,CAY156307,"101,131.82",Capital grants - Academy Trust
Department for Education,Core,20/07/2023,Grants Expenditure,Capital Directorate,The Pioneer Academy,CAY156308,"226,327.98",Capital grants - Academy Trust
Department for Education,Core,20/07/2023,Grants Expenditure,Capital Directorate,The Pope Francis Catholic Multi Academy Company,CAY156309,"158,662.53",Capital grants - Academy Trust
Department for Education,Core,20/07/2023,Grants Expenditure,Capital Directorate,THE PRIMARY FIRST TRUST,CAY156310,"105,822.59",Capital grants - Academy Trust
Department for Education,Core,20/07/2023,Grants Expenditure,Capital Directorate,The Priory Federation of Academies,CAY156311,"410,723.21",Capital grants - Academy Trust
Department for Education,Core,20/07/2023,Grants Expenditure,Capital Directorate,The Priory Learning Trust,CAY156312,"225,637.29",Capital grants - Academy Trust
Department for Education,Core,20/07/2023,Grants Expenditure,Capital Directorate,The Rivers C of E Multi Academy Trust,CAY156313,"168,043.87",Capital grants - Academy Trust
Department for Education,Core,20/07/2023,Grants Expenditure,Capital Directorate,The Romero Catholic Academy,CAY156314,"157,622.11",Capital grants - Academy Trust
Department for Education,Core,20/07/2023,Grants Expenditure,Capital Directorate,The Rowan Learning Trust,CAY156315,"154,535.74",Capital grants - Academy Trust
Department for Education,Core,20/07/2023,Grants Expenditure,Capital Directorate,The Sea View Trust,CAY156316,"109,057.93",Capital grants - Academy Trust
Department for Education,Core,20/07/2023,Grants Expenditure,Capital Directorate,The Shared Learning Trust,CAY156317,"194,747.50",Capital grants - Academy Trust
Department for Education,Core,20/07/2023,Grants Expenditure,Capital Directorate,The Shaw Education Trust,CAY156318,"945,488.75",Capital grants - Academy Trust
Department for Education,Core,20/07/2023,Grants Expenditure,Capital Directorate,The Sigma Trust,CAY156319,"623,734.41",Capital grants - Academy Trust
Department for Education,Core,20/07/2023,Grants Expenditure,Capital Directorate,The Spencer Academies Trust,CAY156320,"971,746.20",Capital grants - Academy Trust
Department for Education,Core,20/07/2023,Grants Expenditure,Capital Directorate,The STAR Multi Academy Trust,CAY156321,"213,931.72",Capital grants - Academy Trust
Department for Education,Core,20/07/2023,Grants Expenditure,Capital Directorate,The Ted Wragg Multi Academy Trust,CAY156322,"389,852.12",Capital grants - Academy Trust
Department for Education,Core,20/07/2023,Grants Expenditure,Capital Directorate,The Tenax Schools Trust,CAY156323,"114,246.01",Capital grants - Academy Trust
Department for Education,Core,20/07/2023,Grants Expenditure,Capital Directorate,THE THINKING SCHOOLS ACADEMY TRUST,CAY156324,"475,740.76",Capital grants - Academy Trust
Department for Education,Core,20/07/2023,Grants Expenditure,Capital Directorate,THE THREE RIVERS LEARNING TRUST,CAY156325,"187,706.52",Capital grants - Academy Trust
Department for Education,Core,20/07/2023,Grants Expenditure,Capital Directorate,The True Learning Partnership,CAY156326,"230,088.03",Capital grants - Academy Trust
Department for Education,Core,20/07/2023,Grants Expenditure,Capital Directorate,The Two Counties Trust,CAY156327,"958,965.06",Capital grants - Academy Trust
Department for Education,Core,20/07/2023,Grants Expenditure,Capital Directorate,The Wensum Trust,CAY156328,"216,358.28",Capital grants - Academy Trust
Department for Education,Core,20/07/2023,Grants Expenditure,Capital Directorate,The White Horse Federation,CAY156329,"381,845.41",Capital grants - Academy Trust
Department for Education,Core,20/07/2023,Grants Expenditure,Capital Directorate,Thomas Deacon Education Trust,CAY156330,"174,777.99",Capital grants - Academy Trust
Department for Education,Core,20/07/2023,Grants Expenditure,Capital Directorate,Thomas Telford Multi Academy Trust,CAY156331,"196,936.82",Capital grants - Academy Trust
Department for Education,Core,20/07/2023,Grants Expenditure,Capital Directorate,Thrive Cooperative Learning Trust  ,CAY156332,"144,032.73",Capital grants - Academy Trust
Department for Education,Core,20/07/2023,Grants Expenditure,Capital Directorate,Together Learning Trust,CAY156333,"72,900.79",Capital grants - Academy Trust
Department for Education,Core,20/07/2023,Grants Expenditure,Capital Directorate,Lincolnshire Gateway Academies Trust,CAY156334,"209,328.95",Capital grants - Academy Trust
Department for Education,Core,20/07/2023,Grants Expenditure,Capital Directorate,Tove Learning Trust,CAY156335,"672,934.42",Capital grants - Academy Trust
Department for Education,Core,20/07/2023,Grants Expenditure,Capital Directorate,Transform Trust,CAY156336,"388,042.67",Capital grants - Academy Trust
Department for Education,Core,20/07/2023,Grants Expenditure,Capital Directorate,Trinity Multi Academy Trust,CAY156337,"249,027.71",Capital grants - Academy Trust
Department for Education,Core,20/07/2023,Grants Expenditure,Capital Directorate,Truro & Penwith Academy Trust,CAY156338,"416,430.56",Capital grants - Academy Trust
Department for Education,Core,20/07/2023,Grants Expenditure,Capital Directorate,Tudor Grange Academies Trust,CAY156339,"363,535.60",Capital grants - Academy Trust
Department for Education,Core,20/07/2023,Grants Expenditure,Capital Directorate,Twynham Learning,CAY156340,"140,461.92",Capital grants - Academy Trust
Department for Education,Core,20/07/2023,Grants Expenditure,Capital Directorate,Uffculme Academy Trust,CAY156341,"139,935.86",Capital grants - Academy Trust
Department for Education,Core,20/07/2023,Grants Expenditure,Capital Directorate,United Learning Trust,CAY156342,"2,279,414.62",Capital grants - Academy Trust
Department for Education,Core,20/07/2023,Grants Expenditure,Capital Directorate,Unity Education Trust,CAY156343,"194,389.41",Capital grants - Academy Trust
Department for Education,Core,20/07/2023,Grants Expenditure,Capital Directorate,Unity Schools Partnership,CAY156344,"688,519.99",Capital grants - Academy Trust
Department for Education,Core,20/07/2023,Grants Expenditure,Capital Directorate,University of Brighton Academies Trust,CAY156345,"411,890.12",Capital grants - Academy Trust
Department for Education,Core,20/07/2023,Grants Expenditure,Capital Directorate,University of Chichester (Multi) Academy Trust,CAY156346,"263,468.10",Capital grants - Academy Trust
Department for Education,Core,20/07/2023,Grants Expenditure,Capital Directorate,Greenheart Learning Partnership,CAY156347,"168,863.95",Capital grants - Academy Trust
Department for Education,Core,20/07/2023,Grants Expenditure,Capital Directorate,Vale Academy Trust,CAY156348,"379,606.23",Capital grants - Academy Trust
Department for Education,Core,20/07/2023,Grants Expenditure,Capital Directorate,Valley Invicta Academies Trust,CAY156349,"305,403.62",Capital grants - Academy Trust
Department for Education,Core,20/07/2023,Grants Expenditure,Capital Directorate,Vanguard Learning Trust,CAY156350,"155,409.80",Capital grants - Academy Trust
Department for Education,Core,20/07/2023,Grants Expenditure,Capital Directorate,Ventrus Limited,CAY156351,"150,981.38",Capital grants - Academy Trust
Department for Education,Core,20/07/2023,Grants Expenditure,Capital Directorate,Venturers Trust,CAY156352,"126,571.17",Capital grants - Academy Trust
Department for Education,Core,20/07/2023,Grants Expenditure,Capital Directorate,Victoria Academies Trust,CAY156353,"151,154.10",Capital grants - Academy Trust
Department for Education,Core,20/07/2023,Grants Expenditure,Capital Directorate,Vision Academy Learning Trust,CAY156354,"169,263.98",Capital grants - Academy Trust
Department for Education,Core,20/07/2023,Grants Expenditure,Capital Directorate,Voyage Education Partnership,CAY156355,"147,373.53",Capital grants - Academy Trust
Department for Education,Core,20/07/2023,Grants Expenditure,Capital Directorate,Wade Deacon Trust,CAY156356,"228,727.06",Capital grants - Academy Trust
Department for Education,Core,20/07/2023,Grants Expenditure,Capital Directorate,Washwood Heath Multi Academy Trust,CAY156357,"207,132.49",Capital grants - Academy Trust
Department for Education,Core,20/07/2023,Grants Expenditure,Capital Directorate,Watergrove Trust,CAY156358,"132,431.59",Capital grants - Academy Trust
Department for Education,Core,20/07/2023,Grants Expenditure,Capital Directorate,Waterton Academy Trust,CAY156359,"120,245.44",Capital grants - Academy Trust
Department for Education,Core,20/07/2023,Grants Expenditure,Capital Directorate,Waveney Valley Academies Trust,CAY156360,"258,871.60",Capital grants - Academy Trust
Department for Education,Core,20/07/2023,Grants Expenditure,Capital Directorate,Wellspring Academy Trust,CAY156361,"498,949.75",Capital grants - Academy Trust
Department for Education,Core,20/07/2023,Grants Expenditure,Capital Directorate,Wessex Learning Trust,CAY156362,"166,377.83",Capital grants - Academy Trust
Department for Education,Core,20/07/2023,Grants Expenditure,Capital Directorate,West Norfolk Academies Trust,CAY156363,"405,044.06",Capital grants - Academy Trust
Department for Education,Core,20/07/2023,Grants Expenditure,Capital Directorate,Westcountry Schools Trust,CAY156364,"610,866.51",Capital grants - Academy Trust
Department for Education,Core,20/07/2023,Grants Expenditure,Capital Directorate,Weydon Multi Academy Trust,CAY156365,"346,715.50",Capital grants - Academy Trust
Department for Education,Core,20/07/2023,Grants Expenditure,Capital Directorate,White Woods Primary Academy Trust,CAY156366,"153,201.00",Capital grants - Academy Trust
Department for Education,Core,20/07/2023,Grants Expenditure,Capital Directorate,Wickersley Partnership Trust,CAY156367,"224,309.92",Capital grants - Academy Trust
Department for Education,Core,20/07/2023,Grants Expenditure,Capital Directorate,Windsor Academy Trust,CAY156368,"361,784.61",Capital grants - Academy Trust
Department for Education,Core,20/07/2023,Grants Expenditure,Capital Directorate,Wise Academies,CAY156369,"161,301.19",Capital grants - Academy Trust
Department for Education,Core,20/07/2023,Grants Expenditure,Capital Directorate,Woodard Academies Trust,CAY156370,"303,216.04",Capital grants - Academy Trust
Department for Education,Core,20/07/2023,Grants Expenditure,Capital Directorate,Xavier Catholic Education Trust,CAY156371,"395,942.34",Capital grants - Academy Trust
Department for Education,Core,20/07/2023,Grants Expenditure,Capital Directorate,Yorkshire Causeway Schools Trust,CAY156372,"151,389.68",Capital grants - Academy Trust
Department for Education,Core,20/07/2023,Grants Expenditure,Capital Directorate,Academies Enterprise Trust,CAY156373,"1,350,189.28",Capital grants - Academy Trust
Department for Education,Core,20/07/2023,Grants Expenditure,Capital Directorate,Bohunt Education Trust,CAY156374,"648,436.39",Capital grants - Academy Trust
Department for Education,Core,20/07/2023,Grants Expenditure,Capital Directorate,Derby Diocesan Academy Trust,CAY156375,"164,353.72",Capital grants - Academy Trust
Department for Education,Core,20/07/2023,Grants Expenditure,Capital Directorate,Oxford Diocesan Schools Trust,CAY156376,"430,459.12",Capital grants - Academy Trust
Department for Education,Core,20/07/2023,Grants Expenditure,Capital Directorate,St Christopher's C of E (Primary) MAT,CAY156377,"82,184.29",Capital grants - Academy Trust
Department for Education,Core,20/07/2023,Grants Expenditure,Capital Directorate,Emmanuel Schools Foundation,CAY156378,"401,271.90",Capital grants - Academy Trust
Department for Education,Core,20/07/2023,Grants Expenditure,Capital Directorate,The Diocese of Norwich Education & Academies Trust,CAY156379,"194,365.11",Capital grants - Academy Trust
Department for Education,Core,20/07/2023,Grants Expenditure,Capital Directorate,The Skinners' Kent Academy,CAY156380,"223,320.13",Capital grants - Academy Trust
Department for Education,Core,20/07/2023,Grants Expenditure,Capital Directorate,Loxford School Trust Limited,CAY156390,"330,337.21",Capital grants - Academy Trust
Department for Education,Core,20/07/2023,Grants Expenditure,Capital Directorate,South East Essex Academy Trust,CAY156391,"212,340.67",Capital grants - Academy Trust
Department for Education,Core,20/07/2023,Grants Expenditure,Capital Directorate,Schoolsworks Academy Trust,CAY156392,"131,679.60",Capital grants - Academy Trust
Department for Education,Core,20/07/2023,Grants Expenditure,Capital Directorate,London South East Academies Trust,CAY156396,"141,899.13",Capital grants - Academy Trust
Department for Education,Core,20/07/2023,Grants Expenditure,Capital Directorate,THE SLOUGH AND EAST BERKSHIRE C OF E MULTI ACADEMY TRUST,CAY156397,"215,038.71",Capital grants - Academy Trust
Department for Education,Core,20/07/2023,Grants Expenditure,Capital Directorate,Activate Learning Education Trust,CAY156620,"248,333.62",Capital grants - Academy Trust
Department for Education,Core,20/07/2023,Grants Expenditure,Capital Directorate,Ad Astra Academy Trust,CAY156621,"74,736.70",Capital grants - Academy Trust
Department for Education,Core,20/07/2023,Grants Expenditure,Capital Directorate,Bishop Wilkinson Catholic Education Trust,CAY156622,"595,943.48",Capital grants - Academy Trust
Department for Education,Core,20/07/2023,Grants Expenditure,Capital Directorate,Bosco Catholic Education Trust,CAY156623,"120,093.55",Capital grants - Academy Trust
Department for Education,Core,20/07/2023,Grants Expenditure,Capital Directorate,CARLTON ACADEMY TRUST,CAY156624,"63,845.33",Capital grants - Academy Trust
Department for Education,Core,20/07/2023,Grants Expenditure,Capital Directorate,Cidari Education Limited,CAY156625,"162,013.07",Capital grants - Academy Trust
Department for Education,Core,20/07/2023,Grants Expenditure,Capital Directorate,Coast and Vale Learning Trust,CAY156626,"184,273.98",Capital grants - Academy Trust
Department for Education,Core,20/07/2023,Grants Expenditure,Capital Directorate,Cockburn Multi Academy Trust,CAY156627,"64,957.16",Capital grants - Academy Trust
Department for Education,Core,20/07/2023,Grants Expenditure,Capital Directorate,Connect Academy Trust,CAY156628,"82,716.25",Capital grants - Academy Trust
Department for Education,Core,20/07/2023,Grants Expenditure,Capital Directorate,Crofty Multi Academy Trust,CAY156629,"69,380.87",Capital grants - Academy Trust
Department for Education,Core,20/07/2023,Grants Expenditure,Capital Directorate,Cygnus Academies Trust,CAY156630,"83,945.56",Capital grants - Academy Trust
Department for Education,Core,20/07/2023,Grants Expenditure,Capital Directorate,Embark Multi Academy Trust,CAY156631,"283,449.74",Capital grants - Academy Trust
Department for Education,Core,20/07/2023,Grants Expenditure,Capital Directorate,Emmaus catholic academy trust,CAY156632,"156,788.19",Capital grants - Academy Trust
Department for Education,Core,20/07/2023,Grants Expenditure,Capital Directorate,Endeavour Learning Trust,CAY156633,"162,711.28",Capital grants - Academy Trust
Department for Education,Core,20/07/2023,Grants Expenditure,Capital Directorate,Four Cs MAT,CAY156634,"136,886.06",Capital grants - Academy Trust
Department for Education,Core,20/07/2023,Grants Expenditure,Capital Directorate,Horizon Academy Trust,CAY156635,"83,226.14",Capital grants - Academy Trust
Department for Education,Core,20/07/2023,Grants Expenditure,Capital Directorate,Horizons Specialist Academy Trust,CAY156636,"153,643.54",Capital grants - Academy Trust
Department for Education,Core,20/07/2023,Grants Expenditure,Capital Directorate,Ivy Education Trust,CAY156637,"187,312.12",Capital grants - Academy Trust
Department for Education,Core,20/07/2023,Grants Expenditure,Capital Directorate,Learning Academies Trust,CAY156638,"70,628.42",Capital grants - Academy Trust
Department for Education,Core,20/07/2023,Grants Expenditure,Capital Directorate,Lee Chapel Multi Academy Trust,CAY156639,"100,348.97",Capital grants - Academy Trust
Department for Education,Core,20/07/2023,Grants Expenditure,Capital Directorate,MULBERRY SCHOOLS TRUST,CAY156640,"119,998.32",Capital grants - Academy Trust
Department for Education,Core,20/07/2023,Grants Expenditure,Capital Directorate,Newham Community Learning,CAY156641,"220,722.91",Capital grants - Academy Trust
Department for Education,Core,20/07/2023,Grants Expenditure,Capital Directorate,Our Lady of Lourdes Catholic Multi Academy Trust,CAY156642,"659,682.61",Capital grants - Academy Trust
Department for Education,Core,20/07/2023,Grants Expenditure,Capital Directorate,Our Lady of the Magnificat MAC,CAY156643,"250,882.49",Capital grants - Academy Trust
Department for Education,Core,20/07/2023,Grants Expenditure,Capital Directorate,our lady of walsingham cmat,CAY156644,"167,841.99",Capital grants - Academy Trust
Department for Education,Core,20/07/2023,Grants Expenditure,Capital Directorate,PA Community Trust,CAY156645,"107,487.16",Capital grants - Academy Trust
Department for Education,Core,20/07/2023,Grants Expenditure,Capital Directorate,Perry Hall Multi-academy Trust,CAY156646,"183,873.42",Capital grants - Academy Trust
Department for Education,Core,20/07/2023,Grants Expenditure,Capital Directorate,QEGSMAT,CAY156647,"285,373.92",Capital grants - Academy Trust
Department for Education,Core,20/07/2023,Grants Expenditure,Capital Directorate,Richard Huish Trust,CAY156648,"178,340.16",Capital grants - Academy Trust
Department for Education,Core,20/07/2023,Grants Expenditure,Capital Directorate,Romero Catholic Academy Trust ,CAY156649,"222,765.22",Capital grants - Academy Trust
Department for Education,Core,20/07/2023,Grants Expenditure,Capital Directorate,SDBE Multi Academy Trust,CAY156650,"116,766.77",Capital grants - Academy Trust
Department for Education,Core,20/07/2023,Grants Expenditure,Capital Directorate,Southport Learning Trust,CAY156651,"317,792.77",Capital grants - Academy Trust
Department for Education,Core,20/07/2023,Grants Expenditure,Capital Directorate,St Clare Catholic Multi Academy Trust ,CAY156652,"230,748.10",Capital grants - Academy Trust
Department for Education,Core,20/07/2023,Grants Expenditure,Capital Directorate,ST GREGORY THE GREAT CATHOLIC ACADEMY TRUST,CAY156653,"98,218.32",Capital grants - Academy Trust
Department for Education,Core,20/07/2023,Grants Expenditure,Capital Directorate,ST RALPH SHERWIN CATHOLIC MULTI ACADEMY TRUST,CAY156654,"415,741.15",Capital grants - Academy Trust
Department for Education,Core,20/07/2023,Grants Expenditure,Capital Directorate,St Thomas Aquinas Catholic Multi Academy Trust,CAY156655,"485,922.08",Capital grants - Academy Trust
Department for Education,Core,20/07/2023,Grants Expenditure,Capital Directorate,Symphony Learning Trust,CAY156656,"129,790.02",Capital grants - Academy Trust
Department for Education,Core,20/07/2023,Grants Expenditure,Capital Directorate,The Blue Kite Academy Trust,CAY156657,"99,008.29",Capital grants - Academy Trust
Department for Education,Core,20/07/2023,Grants Expenditure,Capital Directorate,The Cornovii Trust,CAY156658,"194,278.49",Capital grants - Academy Trust
Department for Education,Core,20/07/2023,Grants Expenditure,Capital Directorate,The Corvus Learning Trust,CAY156659,"185,968.63",Capital grants - Academy Trust
Department for Education,Core,20/07/2023,Grants Expenditure,Capital Directorate,The Howard Academy Trust,CAY156660,"120,028.87",Capital grants - Academy Trust
Department for Education,Core,20/07/2023,Grants Expenditure,Capital Directorate,St John Bosco Catholic Academy,CAY156661,"206,343.35",Capital grants - Academy Trust
Department for Education,Core,20/07/2023,Grants Expenditure,Capital Directorate,TrustEd CSAT Alliance,CAY156662,"307,557.75",Capital grants - Academy Trust
Department for Education,Core,20/07/2023,Grants Expenditure,Capital Directorate,Gateway Learning Community,CAY156671,"96,718.20",Capital grants - Academy Trust
Department for Education,Core,20/07/2023,Grants Expenditure,Capital Directorate,Initio Learning Trust,CAY156672,"190,070.31",Capital grants - Academy Trust
Department for Education,Core,20/07/2023,Grants Expenditure,Capital Directorate,Tyne Coast Academy Trust,CAY156673,"153,419.46",Capital grants - Academy Trust
Department for Education,Core,20/07/2023,Grants Expenditure,Capital Directorate,Vantage CE Academies Trust,CAY156674,"127,296.25",Capital grants - Academy Trust
Department for Education,Core,20/07/2023,Grants Expenditure,Capital Directorate,Wessex Multi Academy Trust,CAY156675,"183,479.82",Capital grants - Academy Trust
Department for Education,Core,20/07/2023,Grants Expenditure,Capital Directorate,Derby Diocesan Academy Trust 2,CL069773,"383,952.54",Capital grants - Local Government
Department for Education,Core,20/07/2023,Grants Expenditure,Capital Directorate,ATHENA LEARNING TRUST,DU00101295,"115,892.54",Capital grants - Academy Trust
Department for Education,Core,20/07/2023,Grants Expenditure,Capital Directorate,CAMDEN LONDON BOROUGH COUNCIL,CL069466,"197,361.50",Capital grants - Local Government
Department for Education,Core,20/07/2023,Grants Expenditure,Capital Directorate,GREENWICH LONDON BOROUGH COUNCIL,CL069467,"321,838.02",Capital grants - Local Government
Department for Education,Core,20/07/2023,Grants Expenditure,Capital Directorate,HACKNEY LONDON BOROUGH COUNCIL,CL069468,"370,520.44",Capital grants - Local Government
Department for Education,Core,20/07/2023,Grants Expenditure,Capital Directorate,HAMMERSMITH & FULHAM LONDON BOROUGH COUNCIL,CL069469,"157,454.35",Capital grants - Local Government
Department for Education,Core,20/07/2023,Grants Expenditure,Capital Directorate,ISLINGTON LONDON BOROUGH COUNCIL,CL069470,"219,254.12",Capital grants - Local Government
Department for Education,Core,20/07/2023,Grants Expenditure,Capital Directorate,ROYAL BOROUGH OF KENSINGTON & CHELSEA COUNCIL,CL069471,"76,939.30",Capital grants - Local Government
Department for Education,Core,20/07/2023,Grants Expenditure,Capital Directorate,LAMBETH LONDON BOROUGH COUNCIL,CL069472,"344,958.61",Capital grants - Local Government
Department for Education,Core,20/07/2023,Grants Expenditure,Capital Directorate,LEWISHAM LONDON BOROUGH COUNCIL,CL069473,"444,931.24",Capital grants - Local Government
Department for Education,Core,20/07/2023,Grants Expenditure,Capital Directorate,SOUTHWARK LONDON BOROUGH COUNCIL,CL069474,"232,088.26",Capital grants - Local Government
Department for Education,Core,20/07/2023,Grants Expenditure,Capital Directorate,London Borough of Tower Hamlets,CL069475,"526,277.60",Capital grants - Local Government
Department for Education,Core,20/07/2023,Grants Expenditure,Capital Directorate,Wandsworth Borough Council,CL069476,"189,528.14",Capital grants - Local Government
Department for Education,Core,20/07/2023,Grants Expenditure,Capital Directorate,WESTMINSTER CITY COUNCIL,CL069477,"37,236.40",Capital grants - Local Government
Department for Education,Core,20/07/2023,Grants Expenditure,Capital Directorate,BARKING & DAGENHAM LONDON BOROUGH COUNCIL,CL069478,"583,355.04",Capital grants - Local Government
Department for Education,Core,20/07/2023,Grants Expenditure,Capital Directorate,BARNET LONDON BOROUGH COUNCIL,CL069479,"385,912.27",Capital grants - Local Government
Department for Education,Core,20/07/2023,Grants Expenditure,Capital Directorate,BEXLEY LONDON BOROUGH COUNCIL,CL069480,"75,975.55",Capital grants - Local Government
Department for Education,Core,20/07/2023,Grants Expenditure,Capital Directorate,BRENT LONDON BOROUGH COUNCIL,CL069481,"269,722.33",Capital grants - Local Government
Department for Education,Core,20/07/2023,Grants Expenditure,Capital Directorate,BROMLEY LONDON BOROUGH COUNCIL,CL069482,"43,164.59",Capital grants - Local Government
Department for Education,Core,20/07/2023,Grants Expenditure,Capital Directorate,CROYDON LONDON BOROUGH COUNCIL,CL069483,"221,947.45",Capital grants - Local Government
Department for Education,Core,20/07/2023,Grants Expenditure,Capital Directorate,EALING LONDON BOROUGH COUNCIL,CL069484,"661,094.26",Capital grants - Local Government
Department for Education,Core,20/07/2023,Grants Expenditure,Capital Directorate,ENFIELD LONDON BOROUGH COUNCIL,CL069485,"548,660.69",Capital grants - Local Government
Department for Education,Core,20/07/2023,Grants Expenditure,Capital Directorate,HARINGEY LONDON BOROUGH COUNCIL,CL069486,"480,996.34",Capital grants - Local Government
Department for Education,Core,20/07/2023,Grants Expenditure,Capital Directorate,HARROW LONDON BOROUGH COUNCIL,CL069487,"299,483.84",Capital grants - Local Government
Department for Education,Core,20/07/2023,Grants Expenditure,Capital Directorate,HAVERING LONDON BOROUGH COUNCIL,CL069488,"280,220.89",Capital grants - Local Government
Department for Education,Core,20/07/2023,Grants Expenditure,Capital Directorate,London Borough of Hillingdon,CL069489,"364,496.95",Capital grants - Local Government
Department for Education,Core,20/07/2023,Grants Expenditure,Capital Directorate,HOUNSLOW LONDON BOROUGH COUNCIL,CL069490,"476,548.69",Capital grants - Local Government
Department for Education,Core,20/07/2023,Grants Expenditure,Capital Directorate,ROYAL BOROUGH OF KINGSTON UPON THAMES COUNCIL,CL069491,"93,362.41",Capital grants - Local Government
Department for Education,Core,20/07/2023,Grants Expenditure,Capital Directorate,MERTON BOROUGH COUNCIL,CL069492,"264,603.34",Capital grants - Local Government
Department for Education,Core,20/07/2023,Grants Expenditure,Capital Directorate,NEWHAM LONDON BOROUGH COUNCIL,CL069493,"388,731.86",Capital grants - Local Government
Department for Education,Core,20/07/2023,Grants Expenditure,Capital Directorate,REDBRIDGE LONDON BOROUGH COUNCIL,CL069494,"810,514.97",Capital grants - Local Government
Department for Education,Core,20/07/2023,Grants Expenditure,Capital Directorate,RICHMOND UPON THAMES LONDON BOROUGH COUNCIL,CL069495,"130,914.12",Capital grants - Local Government
Department for Education,Core,20/07/2023,Grants Expenditure,Capital Directorate,London Borough of Sutton,CL069496,"97,037.38",Capital grants - Local Government
Department for Education,Core,20/07/2023,Grants Expenditure,Capital Directorate,WALTHAM FOREST LONDON BOROUGH COUNCIL,CL069497,"307,020.28",Capital grants - Local Government
Department for Education,Core,20/07/2023,Grants Expenditure,Capital Directorate,BIRMINGHAM CITY COUNCIL,CL069498,"1,384,246.27",Capital grants - Local Government
Department for Education,Core,20/07/2023,Grants Expenditure,Capital Directorate,COVENTRY CITY COUNCIL,CL069499,"389,613.17",Capital grants - Local Government
Department for Education,Core,20/07/2023,Grants Expenditure,Capital Directorate,DUDLEY METRO BOROUGH COUNCIL,CL069500,"427,174.36",Capital grants - Local Government
Department for Education,Core,20/07/2023,Grants Expenditure,Capital Directorate,Sandwell Metro Borough Council,CL069501,"599,833.21",Capital grants - Local Government
Department for Education,Core,20/07/2023,Grants Expenditure,Capital Directorate,SOLIHULL METRO BOROUGH COUNCIL,CL069502,"203,381.94",Capital grants - Local Government
Department for Education,Core,20/07/2023,Grants Expenditure,Capital Directorate,WALSALL METRO BOROUGH COUNCIL,CL069503,"440,623.94",Capital grants - Local Government
Department for Education,Core,20/07/2023,Grants Expenditure,Capital Directorate,WOLVERHAMPTON CITY COUNCIL,CL069504,"328,964.46",Capital grants - Local Government
Department for Education,Core,20/07/2023,Grants Expenditure,Capital Directorate,KNOWSLEY METRO BOROUGH COUNCIL,CL069505,"98,959.89",Capital grants - Local Government
Department for Education,Core,20/07/2023,Grants Expenditure,Capital Directorate,LIVERPOOL CITY COUNCIL,CL069506,"444,825.49",Capital grants - Local Government
Department for Education,Core,20/07/2023,Grants Expenditure,Capital Directorate,ST HELENS METRO BOROUGH COUNCIL,CL069507,"204,615.56",Capital grants - Local Government
Department for Education,Core,20/07/2023,Grants Expenditure,Capital Directorate,Sefton Metropolitan Borough Council,CL069508,"245,326.02",Capital grants - Local Government
Department for Education,Core,20/07/2023,Grants Expenditure,Capital Directorate,WIRRAL METRO BOROUGH COUNCIL,CL069509,"459,143.57",Capital grants - Local Government
Department for Education,Core,20/07/2023,Grants Expenditure,Capital Directorate,BOLTON METRO BOROUGH COUNCIL,CL069510,"397,763.33",Capital grants - Local Government
Department for Education,Core,20/07/2023,Grants Expenditure,Capital Directorate,BURY METRO BOROUGH COUNCIL,CL069511,"224,994.64",Capital grants - Local Government
Department for Education,Core,20/07/2023,Grants Expenditure,Capital Directorate,MANCHESTER CITY COUNCIL,CL069512,"477,221.45",Capital grants - Local Government
Department for Education,Core,20/07/2023,Grants Expenditure,Capital Directorate,OLDHAM METRO BOROUGH COUNCIL,CL069513,"224,506.00",Capital grants - Local Government
Department for Education,Core,20/07/2023,Grants Expenditure,Capital Directorate,ROCHDALE BOROUGH COUNCIL,CL069514,"292,639.22",Capital grants - Local Government
Department for Education,Core,20/07/2023,Grants Expenditure,Capital Directorate,Salford City Council,CL069515,"235,224.11",Capital grants - Local Government
Department for Education,Core,20/07/2023,Grants Expenditure,Capital Directorate,STOCKPORT METRO BOROUGH COUNCIL,CL069516,"551,340.68",Capital grants - Local Government
Department for Education,Core,20/07/2023,Grants Expenditure,Capital Directorate,TAMESIDE METRO BOROUGH COUNCIL,CL069517,"171,270.41",Capital grants - Local Government
Department for Education,Core,20/07/2023,Grants Expenditure,Capital Directorate,Trafford Borough Council,CL069518,"284,903.01",Capital grants - Local Government
Department for Education,Core,20/07/2023,Grants Expenditure,Capital Directorate,Wigan Metropolitan Borough Council,CL069519,"321,956.33",Capital grants - Local Government
Department for Education,Core,20/07/2023,Grants Expenditure,Capital Directorate,BARNSLEY METROPOLITAN BOROUGH COUNCIL,CL069520,"68,635.72",Capital grants - Local Government
Department for Education,Core,20/07/2023,Grants Expenditure,Capital Directorate,DONCASTER METRO BOROUGH COUNCIL,CL069521,"109,132.27",Capital grants - Local Government
Department for Education,Core,20/07/2023,Grants Expenditure,Capital Directorate,ROTHERHAM BOROUGH COUNCIL,CL069522,"99,702.07",Capital grants - Local Government
Department for Education,Core,20/07/2023,Grants Expenditure,Capital Directorate,SHEFFIELD CITY COUNCIL,CL069523,"399,183.92",Capital grants - Local Government
Department for Education,Core,20/07/2023,Grants Expenditure,Capital Directorate,BRADFORD CITY COUNCIL,CL069524,"327,060.94",Capital grants - Local Government
Department for Education,Core,20/07/2023,Grants Expenditure,Capital Directorate,CALDERDALE METRO BOROUGH COUNCIL,CL069525,"201,780.70",Capital grants - Local Government
Department for Education,Core,20/07/2023,Grants Expenditure,Capital Directorate,KIRKLEES METRO COUNCIL,CL069526,"398,331.26",Capital grants - Local Government
Department for Education,Core,20/07/2023,Grants Expenditure,Capital Directorate,LEEDS CITY COUNCIL,CL069527,"762,853.28",Capital grants - Local Government
Department for Education,Core,20/07/2023,Grants Expenditure,Capital Directorate,Wakefield City Council,CL069528,"303,668.97",Capital grants - Local Government
Department for Education,Core,20/07/2023,Grants Expenditure,Capital Directorate,GATESHEAD COUNCIL,CL069529,"202,970.35",Capital grants - Local Government
Department for Education,Core,20/07/2023,Grants Expenditure,Capital Directorate,Newcastle upon Tyne City Council,CL069530,"164,752.24",Capital grants - Local Government
Department for Education,Core,20/07/2023,Grants Expenditure,Capital Directorate,NORTH TYNESIDE METRO BOROUGH COUNCIL,CL069531,"435,606.06",Capital grants - Local Government
Department for Education,Core,20/07/2023,Grants Expenditure,Capital Directorate,SOUTH TYNESIDE COUNCIL,CL069532,"169,761.58",Capital grants - Local Government
Department for Education,Core,20/07/2023,Grants Expenditure,Capital Directorate,SUNDERLAND CITY METRO BOROUGH COUNCIL,CL069533,"166,704.24",Capital grants - Local Government
Department for Education,Core,20/07/2023,Grants Expenditure,Capital Directorate,Bristol City Council,CL069535,"200,958.38",Capital grants - Local Government
Department for Education,Core,20/07/2023,Grants Expenditure,Capital Directorate,SOUTH GLOUCESTERSHIRE COUNCIL,CL069537,"232,586.98",Capital grants - Local Government
Department for Education,Core,20/07/2023,Grants Expenditure,Capital Directorate,HARTLEPOOL BOROUGH COUNCIL,CL069538,"68,222.95",Capital grants - Local Government
Department for Education,Core,20/07/2023,Grants Expenditure,Capital Directorate,Middlesbrough Council,CL069539,"70,528.84",Capital grants - Local Government
Department for Education,Core,20/07/2023,Grants Expenditure,Capital Directorate,Redcar & Cleveland Borough Council,CL069540,"42,724.18",Capital grants - Local Government
Department for Education,Core,20/07/2023,Grants Expenditure,Capital Directorate,STOCKTON ON TEES BOROUGH COUNCIL,CL069541,"129,119.36",Capital grants - Local Government
Department for Education,Core,20/07/2023,Grants Expenditure,Capital Directorate,EAST RIDING OF YORKSHIRE COUNCIL,CL069543,"474,217.91",Capital grants - Local Government
Department for Education,Core,20/07/2023,Grants Expenditure,Capital Directorate,NORTH LINCOLNSHIRE COUNCIL,CL069545,"226,061.74",Capital grants - Local Government
Department for Education,Core,20/07/2023,Grants Expenditure,Capital Directorate,NORTH YORKSHIRE COUNTY COUNCIL,CL069546,"671,582.13",Capital grants - Local Government
Department for Education,Core,20/07/2023,Grants Expenditure,Capital Directorate,CITY OF YORK COUNCIL,CL069547,"163,770.00",Capital grants - Local Government
Department for Education,Core,20/07/2023,Grants Expenditure,Capital Directorate,LUTON BOROUGH COUNCIL,CL069548,"394,870.26",Capital grants - Local Government
Department for Education,Core,20/07/2023,Grants Expenditure,Capital Directorate,BEDFORD BOROUGH COUNCIL,CL069549,"200,669.64",Capital grants - Local Government
Department for Education,Core,20/07/2023,Grants Expenditure,Capital Directorate,CENTRAL BEDFORDSHIRE COUNCIL,CL069550,"316,830.34",Capital grants - Local Government
Department for Education,Core,20/07/2023,Grants Expenditure,Capital Directorate,Buckinghamshire Council,CL069551,"747,681.62",Capital grants - Local Government
Department for Education,Core,20/07/2023,Grants Expenditure,Capital Directorate,MILTON KEYNES COUNCIL,CL069552,"309,121.20",Capital grants - Local Government
Department for Education,Core,20/07/2023,Grants Expenditure,Capital Directorate,DERBYSHIRE COUNTY COUNCIL,CL069553,"1,049,435.00",Capital grants - Local Government
Department for Education,Core,20/07/2023,Grants Expenditure,Capital Directorate,DERBY CITY COUNCIL,CL069554,"352,558.43",Capital grants - Local Government
Department for Education,Core,20/07/2023,Grants Expenditure,Capital Directorate,DORSET COUNCIL,CL069555,"254,184.68",Capital grants - Local Government
Department for Education,Core,20/07/2023,Grants Expenditure,Capital Directorate,"Bournemouth, Christchurch and Poole Council",CL069556,"148,318.53",Capital grants - Local Government
Department for Education,Core,20/07/2023,Grants Expenditure,Capital Directorate,DURHAM COUNTY COUNCIL,CL069557,"719,831.92",Capital grants - Local Government
Department for Education,Core,20/07/2023,Grants Expenditure,Capital Directorate,EAST SUSSEX COUNTY COUNCIL,CL069559,"516,523.34",Capital grants - Local Government
Department for Education,Core,20/07/2023,Grants Expenditure,Capital Directorate,BRIGHTON & HOVE CITY COUNCIL,CL069560,"430,138.16",Capital grants - Local Government
Department for Education,Core,20/07/2023,Grants Expenditure,Capital Directorate,HAMPSHIRE COUNTY COUNCIL,CL069561,"2,573,732.01",Capital grants - Local Government
Department for Education,Core,20/07/2023,Grants Expenditure,Capital Directorate,Portsmouth City Council,CL069562,"90,556.21",Capital grants - Local Government
Department for Education,Core,20/07/2023,Grants Expenditure,Capital Directorate,SOUTHAMPTON CITY COUNCIL,CL069563,"313,059.08",Capital grants - Local Government
Department for Education,Core,20/07/2023,Grants Expenditure,Capital Directorate,LEICESTERSHIRE COUNTY COUNCIL,CL069564,"422,142.18",Capital grants - Local Government
Department for Education,Core,20/07/2023,Grants Expenditure,Capital Directorate,LEICESTER CITY COUNCIL,CL069565,"794,247.17",Capital grants - Local Government
Department for Education,Core,20/07/2023,Grants Expenditure,Capital Directorate,Staffordshire County Council,CL069567,"787,653.58",Capital grants - Local Government
Department for Education,Core,20/07/2023,Grants Expenditure,Capital Directorate,STOKE ON TRENT CITY COUNCIL,CL069568,"38,907.29",Capital grants - Local Government
Department for Education,Core,20/07/2023,Grants Expenditure,Capital Directorate,WILTSHIRE COUNTY COUNCIL,CL069569,"267,081.26",Capital grants - Local Government
Department for Education,Core,20/07/2023,Grants Expenditure,Capital Directorate,Swindon Borough Council,CL069570,"69,553.67",Capital grants - Local Government
Department for Education,Core,20/07/2023,Grants Expenditure,Capital Directorate,BRACKNELL FOREST BOROUGH COUNCIL,CL069571,"197,241.27",Capital grants - Local Government
Department for Education,Core,20/07/2023,Grants Expenditure,Capital Directorate,ROYAL BOROUGH OF WINDSOR & MAIDENHEAD,CL069572,"130,061.43",Capital grants - Local Government
Department for Education,Core,20/07/2023,Grants Expenditure,Capital Directorate,WEST BERKSHIRE COUNCIL,CL069573,"292,900.39",Capital grants - Local Government
Department for Education,Core,20/07/2023,Grants Expenditure,Capital Directorate,Reading Borough Council,CL069574,"179,165.76",Capital grants - Local Government
Department for Education,Core,20/07/2023,Grants Expenditure,Capital Directorate,SLOUGH BOROUGH COUNCIL,CL069575,"86,017.84",Capital grants - Local Government
Department for Education,Core,20/07/2023,Grants Expenditure,Capital Directorate,WOKINGHAM COUNCIL,CL069576,"241,217.28",Capital grants - Local Government
Department for Education,Core,20/07/2023,Grants Expenditure,Capital Directorate,CAMBRIDGESHIRE COUNTY COUNCIL,CL069577,"428,303.43",Capital grants - Local Government
Department for Education,Core,20/07/2023,Grants Expenditure,Capital Directorate,PETERBOROUGH CITY COUNCIL,CL069578,"114,260.12",Capital grants - Local Government
Department for Education,Core,20/07/2023,Grants Expenditure,Capital Directorate,HALTON BOROUGH COUNCIL,CL069579,"83,175.95",Capital grants - Local Government
Department for Education,Core,20/07/2023,Grants Expenditure,Capital Directorate,WARRINGTON BOROUGH COUNCIL,CL069580,"107,398.74",Capital grants - Local Government
Department for Education,Core,20/07/2023,Grants Expenditure,Capital Directorate,DEVON COUNTY COUNCIL,CL069581,"388,198.91",Capital grants - Local Government
Department for Education,Core,20/07/2023,Grants Expenditure,Capital Directorate,PLYMOUTH CITY COUNCIL,CL069582,"63,780.36",Capital grants - Local Government
Department for Education,Core,20/07/2023,Grants Expenditure,Capital Directorate,TORBAY COUNCIL,CL069583,"38,234.01",Capital grants - Local Government
Department for Education,Core,20/07/2023,Grants Expenditure,Capital Directorate,ESSEX COUNTY COUNCIL,CL069584,"876,034.71",Capital grants - Local Government
Department for Education,Core,20/07/2023,Grants Expenditure,Capital Directorate,SOUTHEND ON SEA BOROUGH COUNCIL,CL069585,"74,386.80",Capital grants - Local Government
Department for Education,Core,20/07/2023,Grants Expenditure,Capital Directorate,HEREFORDSHIRE COUNCIL,CL069586,"136,477.94",Capital grants - Local Government
Department for Education,Core,20/07/2023,Grants Expenditure,Capital Directorate,Worcestershire County Council,CL069587,"427,292.13",Capital grants - Local Government
Department for Education,Core,20/07/2023,Grants Expenditure,Capital Directorate,KENT COUNTY COUNCIL,CL069588,"1,643,005.30",Capital grants - Local Government
Department for Education,Core,20/07/2023,Grants Expenditure,Capital Directorate,MEDWAY COUNCIL,CL069589,"86,067.56",Capital grants - Local Government
Department for Education,Core,20/07/2023,Grants Expenditure,Capital Directorate,Lancashire County Council,CL069590,"1,687,875.17",Capital grants - Local Government
Department for Education,Core,20/07/2023,Grants Expenditure,Capital Directorate,Blackburn with Darwen Borough Council,CL069591,"146,366.90",Capital grants - Local Government
Department for Education,Core,20/07/2023,Grants Expenditure,Capital Directorate,BLACKPOOL BOROUGH COUNCIL,CL069592,"62,578.47",Capital grants - Local Government
Department for Education,Core,20/07/2023,Grants Expenditure,Capital Directorate,NOTTINGHAMSHIRE COUNTY COUNCIL,CL069593,"1,055,565.65",Capital grants - Local Government
Department for Education,Core,20/07/2023,Grants Expenditure,Capital Directorate,Nottingham City Council,CL069594,"304,845.35",Capital grants - Local Government
Department for Education,Core,20/07/2023,Grants Expenditure,Capital Directorate,SHROPSHIRE COUNCIL,CL069595,"234,247.86",Capital grants - Local Government
Department for Education,Core,20/07/2023,Grants Expenditure,Capital Directorate,Telford and Wrekin Council,CL069596,"312,241.70",Capital grants - Local Government
Department for Education,Core,20/07/2023,Grants Expenditure,Capital Directorate,Cheshire East Council,CL069597,"213,987.47",Capital grants - Local Government
Department for Education,Core,20/07/2023,Grants Expenditure,Capital Directorate,CHESHIRE WEST & CHESTER COUNCIL,CL069598,"549,760.68",Capital grants - Local Government
Department for Education,Core,20/07/2023,Grants Expenditure,Capital Directorate,CORNWALL COUNCIL,CL069599,"184,242.53",Capital grants - Local Government
Department for Education,Core,20/07/2023,Grants Expenditure,Capital Directorate,Gloucestershire County Council,CL069600,"488,727.77",Capital grants - Local Government
Department for Education,Core,20/07/2023,Grants Expenditure,Capital Directorate,HERTFORDSHIRE COUNTY COUNCIL,CL069601,"1,698,119.49",Capital grants - Local Government
Department for Education,Core,20/07/2023,Grants Expenditure,Capital Directorate,ISLE OF WIGHT COUNCIL,CL069602,"241,423.58",Capital grants - Local Government
Department for Education,Core,20/07/2023,Grants Expenditure,Capital Directorate,LINCOLNSHIRE COUNTY COUNCIL,CL069603,"543,125.30",Capital grants - Local Government
Department for Education,Core,20/07/2023,Grants Expenditure,Capital Directorate,NORFOLK COUNTY COUNCIL,CL069604,"542,565.37",Capital grants - Local Government
Department for Education,Core,20/07/2023,Grants Expenditure,Capital Directorate,NORTHUMBERLAND COUNTY COUNCIL,CL069605,"433,465.77",Capital grants - Local Government
Department for Education,Core,20/07/2023,Grants Expenditure,Capital Directorate,Oxfordshire County Council,CL069606,"503,976.33",Capital grants - Local Government
Department for Education,Core,20/07/2023,Grants Expenditure,Capital Directorate,Somerset County Council,CL069607,"295,958.25",Capital grants - Local Government
Department for Education,Core,20/07/2023,Grants Expenditure,Capital Directorate,SUFFOLK COUNTY COUNCIL,CL069608,"418,866.35",Capital grants - Local Government
Department for Education,Core,20/07/2023,Grants Expenditure,Capital Directorate,SURREY COUNTY COUNCIL,CL069609,"788,535.62",Capital grants - Local Government
Department for Education,Core,20/07/2023,Grants Expenditure,Capital Directorate,WARWICKSHIRE COUNTY COUNCIL,CL069610,"564,709.20",Capital grants - Local Government
Department for Education,Core,20/07/2023,Grants Expenditure,Capital Directorate,West Sussex County Council,CL069611,"977,522.70",Capital grants - Local Government
Department for Education,Core,20/07/2023,Grants Expenditure,Capital Directorate,North Northamptonshire Council,CL069612,"206,059.26",Capital grants - Local Government
Department for Education,Core,20/07/2023,Grants Expenditure,Capital Directorate,West Northamptonshire Council,CL069613,"173,826.47",Capital grants - Local Government
Department for Education,Core,20/07/2023,Grants Expenditure,Capital Directorate,Cumberland Council,CL069768,"347,763.61",Capital grants - Local Government
Department for Education,Core,20/07/2023,Grants Expenditure,Capital Directorate,Westmorland & Furness Council,CL069769,"279,191.42",Capital grants - Local Government
Department for Education,Core,20/07/2023,Grants Expenditure,Capital Directorate,BIRMINGHAM RC DIOCESAN TRUSTEES REG. DEV,CV020467,"1,318,783.89",Capital grants - Local Government
Department for Education,Core,20/07/2023,Grants Expenditure,Capital Directorate,RC ARCHDIOCESE OF SOUTHWARK,CV020468,"1,740,250.42",Capital grants - Local Government
Department for Education,Core,20/07/2023,Grants Expenditure,Capital Directorate,WESTMINSTER RC DIOCESE TRUST SBF PROJECTS,CV020469,"2,554,841.81",Capital grants - Local Government
Department for Education,Core,20/07/2023,Grants Expenditure,Capital Directorate,Archdiocese of Liverpool,CV020470,"3,104,241.66",Capital grants - Local Government
Department for Education,Core,20/07/2023,Grants Expenditure,Capital Directorate,Diocese of ARUNDEL AND BRIGHTON,CV020471,"672,469.03",Capital grants - Local Government
Department for Education,Core,20/07/2023,Grants Expenditure,Capital Directorate,BIRMINGHAM CHURCH SCHOOLS FUND,CV020472,"200,233.59",Capital grants - Local Government
Department for Education,Core,20/07/2023,Grants Expenditure,Capital Directorate,BRENTWOOD ROMAN CATHOLIC DIOCESE TRUSTEE,CV020473,"989,368.15",Capital grants - Local Government
Department for Education,Core,20/07/2023,Grants Expenditure,Capital Directorate,BRISTOL DIOCESAN BD OF FINANCE EDUC. FDN,CV020474,"122,315.47",Capital grants - Local Government
Department for Education,Core,20/07/2023,Grants Expenditure,Capital Directorate,CANTERBURY DIOCESAN BOARD OF EDUCATION,CV020475,"153,886.62",Capital grants - Local Government
Department for Education,Core,20/07/2023,Grants Expenditure,Capital Directorate,CHELMSFORD DIOCESAN BOARD OF FINANCE,CV020476,"411,266.41",Capital grants - Local Government
Department for Education,Core,20/07/2023,Grants Expenditure,Capital Directorate,CHESTER DIOCESAN BOARD OF EDUCATION,CV020477,"481,070.06",Capital grants - Local Government
Department for Education,Core,20/07/2023,Grants Expenditure,Capital Directorate,CHICHESTER DIOCESAN BOARD OF FINANCE 11,CV020478,"436,293.18",Capital grants - Local Government
Department for Education,Core,20/07/2023,Grants Expenditure,Capital Directorate,CCDTRClifton Catholic Diocesan Trustees Registered,CV020479,"328,898.80",Capital grants - Local Government
Department for Education,Core,20/07/2023,Grants Expenditure,Capital Directorate,ELY DIOCESAN BOARD OF EDUCATION BARCHEST,CV020480,"110,691.71",Capital grants - Local Government
Department for Education,Core,20/07/2023,Grants Expenditure,Capital Directorate,GLOUCESTER DIOCESAN BOARD OF FINANCE,CV020481,"129,594.10",Capital grants - Local Government
Department for Education,Core,20/07/2023,Grants Expenditure,Capital Directorate,GUILDFORD DIOCESAN BOARD OF FINANCE,CV020482,"355,123.57",Capital grants - Local Government
Department for Education,Core,20/07/2023,Grants Expenditure,Capital Directorate,DIOCESE OF HALLAM SCHOOLS PAYMENT ACCOUNT,CV020483,"128,699.00",Capital grants - Local Government
Department for Education,Core,20/07/2023,Grants Expenditure,Capital Directorate,HEREFORD DIOCESAN BOARD OF FINANCE,CV020484,"209,277.66",Capital grants - Local Government
Department for Education,Core,20/07/2023,Grants Expenditure,Capital Directorate,LANCASTER SCHOOL BUILDING FUND ACCOUNT,CV020485,"706,167.95",Capital grants - Local Government
Department for Education,Core,20/07/2023,Grants Expenditure,Capital Directorate,LICHFIELD DIOCESAN EDUCATION COUNCIL BAR,CV020486,"247,670.04",Capital grants - Local Government
Department for Education,Core,20/07/2023,Grants Expenditure,Capital Directorate,LIVERPOOL DIOCESAN BOARD OF FINANCE ( ST,CV020487,"529,976.06",Capital grants - Local Government
Department for Education,Core,20/07/2023,Grants Expenditure,Capital Directorate,LONDON DIOCESE BOARD SCHOOLS,CV020488,"1,459,217.59",Capital grants - Local Government
Department for Education,Core,20/07/2023,Grants Expenditure,Capital Directorate,MANCHESTER DIOCESAN BOARD OF EDUCATION,CV020489,"838,331.67",Capital grants - Local Government
Department for Education,Core,20/07/2023,Grants Expenditure,Capital Directorate,NORTHAMPTON ROMAN CATHOLIC DIOCESE TRUST,CV020490,"327,761.82",Capital grants - Local Government
Department for Education,Core,20/07/2023,Grants Expenditure,Capital Directorate,Diocese of Portsmouth,CV020491,"675,253.71",Capital grants - Local Government
Department for Education,Core,20/07/2023,Grants Expenditure,Capital Directorate,ROCHESTER DIOCESAN BOARD OF EDUCATION,CV020492,"321,046.52",Capital grants - Local Government
Department for Education,Core,20/07/2023,Grants Expenditure,Capital Directorate,SALISBURY DIOCESAN BOARD OF EDUCATION,CV020493,"181,447.67",Capital grants - Local Government
Department for Education,Core,20/07/2023,Grants Expenditure,Capital Directorate,SHREWSBURY DIOCESAN SCHOOLS ACCOUNT,CV020494,"1,099,448.04",Capital grants - Local Government
Department for Education,Core,20/07/2023,Grants Expenditure,Capital Directorate,SOUTHWARK DIOCESAN EDUCATION NO 2 A/C,CV020495,"1,283,879.58",Capital grants - Local Government
Department for Education,Core,20/07/2023,Grants Expenditure,Capital Directorate,ST ALBANS DIOCESAN BOARD OF FINANCE,CV020496,"562,387.01",Capital grants - Local Government
Department for Education,Core,20/07/2023,Grants Expenditure,Capital Directorate,WDBF EDUCATION GENERAL,CV020497,"110,916.07",Capital grants - Local Government
Department for Education,Core,20/07/2023,Grants Expenditure,Capital Directorate,BLACKBURN DIOCESAN BOARD OF EDUCATION BA,CV020498,"1,473,494.54",Capital grants - Local Government
Department for Education,Core,20/07/2023,Grants Expenditure,Capital Directorate,COVENTRY DIOCESAN BOARD OF EDUCATION,CV020499,"476,371.98",Capital grants - Local Government
Department for Education,Core,20/07/2023,Grants Expenditure,Capital Directorate,Newcastle Diocesan Education Board,CV020500,"163,470.90",Capital grants - Local Government
Department for Education,Core,20/07/2023,Grants Expenditure,Capital Directorate,EXETER DIOCESAN BOARD OF FINANCE CHURCH,CV020501,"280,511.76",Capital grants - Local Government
Department for Education,Core,20/07/2023,Grants Expenditure,Capital Directorate,TRUSTEES OF THE DIOCESE OF LEEDS,CV020502,"680,898.10",Capital grants - Local Government
Department for Education,Core,20/07/2023,Grants Expenditure,Capital Directorate,Lincoln Diocesan Board of Education,CV020503,"231,260.14",Capital grants - Local Government
Department for Education,Core,20/07/2023,Grants Expenditure,Capital Directorate,NORWICH DIOCESAN BOARD OF FINANCE LIMITE,CV020504,"272,281.47",Capital grants - Local Government
Department for Education,Core,20/07/2023,Grants Expenditure,Capital Directorate,OXFORD DIOCESAN COUNCIL OF EDUCATION AND,CV020505,"787,485.18",Capital grants - Local Government
Department for Education,Core,20/07/2023,Grants Expenditure,Capital Directorate,PORTSMOUTH DIOCESAN CHURCH SCHOOL GOVERNORS FUND,CV020506,"314,122.59",Capital grants - Local Government
Department for Education,Core,20/07/2023,Grants Expenditure,Capital Directorate,Leeds Diocesan Board of Finance,CV020507,"543,985.08",Capital grants - Local Government
Department for Education,Core,20/07/2023,Grants Expenditure,Capital Directorate,Diocese of Salford,CV020508,"2,665,352.54",Capital grants - Local Government
Department for Education,Core,07/07/2023,Grants Expenditure,Capital Directorate,BARNET LONDON BOROUGH COUNCIL,D-CINV004801,"169,061.68",Capital Grant - Local Government
Department for Education,Core,12/07/2023,Grants Expenditure,Capital Directorate,DURHAM COUNTY COUNCIL,D-CINV004819,"64,623.00",Capital Grant - Local Government
Department for Education,Core,20/07/2023,Grants Expenditure,Capital Directorate,CAMDEN LONDON BOROUGH COUNCIL,CL069614,"2,122,101.39",Capital grants - Local Government
Department for Education,Core,20/07/2023,Grants Expenditure,Capital Directorate,GREENWICH LONDON BOROUGH COUNCIL,CL069615,"3,191,140.85",Capital grants - Local Government
Department for Education,Core,20/07/2023,Grants Expenditure,Capital Directorate,HACKNEY LONDON BOROUGH COUNCIL,CL069616,"2,685,774.80",Capital grants - Local Government
Department for Education,Core,20/07/2023,Grants Expenditure,Capital Directorate,HAMMERSMITH & FULHAM LONDON BOROUGH COUNCIL,CL069617,"1,281,829.46",Capital grants - Local Government
Department for Education,Core,20/07/2023,Grants Expenditure,Capital Directorate,ISLINGTON LONDON BOROUGH COUNCIL,CL069618,"1,639,250.74",Capital grants - Local Government
Department for Education,Core,20/07/2023,Grants Expenditure,Capital Directorate,ROYAL BOROUGH OF KENSINGTON & CHELSEA COUNCIL,CL069619,"2,393,450.12",Capital grants - Local Government
Department for Education,Core,20/07/2023,Grants Expenditure,Capital Directorate,LAMBETH LONDON BOROUGH COUNCIL,CL069620,"1,300,807.44",Capital grants - Local Government
Department for Education,Core,20/07/2023,Grants Expenditure,Capital Directorate,LEWISHAM LONDON BOROUGH COUNCIL,CL069621,"2,211,417.00",Capital grants - Local Government
Department for Education,Core,20/07/2023,Grants Expenditure,Capital Directorate,SOUTHWARK LONDON BOROUGH COUNCIL,CL069622,"1,783,077.25",Capital grants - Local Government
Department for Education,Core,20/07/2023,Grants Expenditure,Capital Directorate,London Borough of Tower Hamlets,CL069623,"2,628,116.18",Capital grants - Local Government
Department for Education,Core,20/07/2023,Grants Expenditure,Capital Directorate,Wandsworth Borough Council,CL069624,"4,162,513.32",Capital grants - Local Government
Department for Education,Core,20/07/2023,Grants Expenditure,Capital Directorate,WESTMINSTER CITY COUNCIL,CL069625,"1,368,243.08",Capital grants - Local Government
Department for Education,Core,20/07/2023,Grants Expenditure,Capital Directorate,BARKING & DAGENHAM LONDON BOROUGH COUNCIL,CL069626,"2,377,674.67",Capital grants - Local Government
Department for Education,Core,20/07/2023,Grants Expenditure,Capital Directorate,BARNET LONDON BOROUGH COUNCIL,CL069627,"2,567,085.40",Capital grants - Local Government
Department for Education,Core,20/07/2023,Grants Expenditure,Capital Directorate,BEXLEY LONDON BOROUGH COUNCIL,CL069628,"1,295,765.95",Capital grants - Local Government
Department for Education,Core,20/07/2023,Grants Expenditure,Capital Directorate,BRENT LONDON BOROUGH COUNCIL,CL069629,"1,547,730.24",Capital grants - Local Government
Department for Education,Core,20/07/2023,Grants Expenditure,Capital Directorate,BROMLEY LONDON BOROUGH COUNCIL,CL069630,"1,825,951.75",Capital grants - Local Government
Department for Education,Core,20/07/2023,Grants Expenditure,Capital Directorate,CROYDON LONDON BOROUGH COUNCIL,CL069631,"1,519,063.42",Capital grants - Local Government
Department for Education,Core,20/07/2023,Grants Expenditure,Capital Directorate,EALING LONDON BOROUGH COUNCIL,CL069632,"1,977,403.16",Capital grants - Local Government
Department for Education,Core,20/07/2023,Grants Expenditure,Capital Directorate,ENFIELD LONDON BOROUGH COUNCIL,CL069633,"1,621,872.75",Capital grants - Local Government
Department for Education,Core,20/07/2023,Grants Expenditure,Capital Directorate,HARINGEY LONDON BOROUGH COUNCIL,CL069634,"707,134.24",Capital grants - Local Government
Department for Education,Core,20/07/2023,Grants Expenditure,Capital Directorate,HARROW LONDON BOROUGH COUNCIL,CL069635,"1,757,753.31",Capital grants - Local Government
Department for Education,Core,20/07/2023,Grants Expenditure,Capital Directorate,HAVERING LONDON BOROUGH COUNCIL,CL069636,"2,505,225.55",Capital grants - Local Government
Department for Education,Core,20/07/2023,Grants Expenditure,Capital Directorate,London Borough of Hillingdon,CL069637,"2,418,837.81",Capital grants - Local Government
Department for Education,Core,20/07/2023,Grants Expenditure,Capital Directorate,HOUNSLOW LONDON BOROUGH COUNCIL,CL069638,"2,333,600.21",Capital grants - Local Government
Department for Education,Core,20/07/2023,Grants Expenditure,Capital Directorate,ROYAL BOROUGH OF KINGSTON UPON THAMES COUNCIL,CL069639,"1,418,003.67",Capital grants - Local Government
Department for Education,Core,20/07/2023,Grants Expenditure,Capital Directorate,MERTON BOROUGH COUNCIL,CL069640,"1,310,267.72",Capital grants - Local Government
Department for Education,Core,20/07/2023,Grants Expenditure,Capital Directorate,NEWHAM LONDON BOROUGH COUNCIL,CL069641,"1,786,057.51",Capital grants - Local Government
Department for Education,Core,20/07/2023,Grants Expenditure,Capital Directorate,REDBRIDGE LONDON BOROUGH COUNCIL,CL069642,"2,609,531.63",Capital grants - Local Government
Department for Education,Core,20/07/2023,Grants Expenditure,Capital Directorate,RICHMOND UPON THAMES LONDON BOROUGH COUNCIL,CL069643,"2,192,525.85",Capital grants - Local Government
Department for Education,Core,20/07/2023,Grants Expenditure,Capital Directorate,London Borough of Sutton,CL069644,"1,342,142.18",Capital grants - Local Government
Department for Education,Core,20/07/2023,Grants Expenditure,Capital Directorate,WALTHAM FOREST LONDON BOROUGH COUNCIL,CL069645,"1,386,371.08",Capital grants - Local Government
Department for Education,Core,20/07/2023,Grants Expenditure,Capital Directorate,BIRMINGHAM CITY COUNCIL,CL069646,"5,584,059.34",Capital grants - Local Government
Department for Education,Core,20/07/2023,Grants Expenditure,Capital Directorate,COVENTRY CITY COUNCIL,CL069647,"2,629,263.44",Capital grants - Local Government
Department for Education,Core,20/07/2023,Grants Expenditure,Capital Directorate,DUDLEY METRO BOROUGH COUNCIL,CL069648,"1,652,673.79",Capital grants - Local Government
Department for Education,Core,20/07/2023,Grants Expenditure,Capital Directorate,Sandwell Metro Borough Council,CL069649,"2,100,405.78",Capital grants - Local Government
Department for Education,Core,20/07/2023,Grants Expenditure,Capital Directorate,SOLIHULL METRO BOROUGH COUNCIL,CL069650,"1,367,361.70",Capital grants - Local Government
Department for Education,Core,20/07/2023,Grants Expenditure,Capital Directorate,WALSALL METRO BOROUGH COUNCIL,CL069651,"1,850,233.81",Capital grants - Local Government
Department for Education,Core,20/07/2023,Grants Expenditure,Capital Directorate,WOLVERHAMPTON CITY COUNCIL,CL069652,"1,697,464.82",Capital grants - Local Government
Department for Education,Core,20/07/2023,Grants Expenditure,Capital Directorate,KNOWSLEY METRO BOROUGH COUNCIL,CL069653,"989,981.82",Capital grants - Local Government
Department for Education,Core,20/07/2023,Grants Expenditure,Capital Directorate,LIVERPOOL CITY COUNCIL,CL069654,"3,668,335.66",Capital grants - Local Government
Department for Education,Core,20/07/2023,Grants Expenditure,Capital Directorate,ST HELENS METRO BOROUGH COUNCIL,CL069655,"851,879.38",Capital grants - Local Government
Department for Education,Core,20/07/2023,Grants Expenditure,Capital Directorate,Sefton Metropolitan Borough Council,CL069656,"1,232,830.12",Capital grants - Local Government
Department for Education,Core,20/07/2023,Grants Expenditure,Capital Directorate,WIRRAL METRO BOROUGH COUNCIL,CL069657,"1,118,123.21",Capital grants - Local Government
Department for Education,Core,20/07/2023,Grants Expenditure,Capital Directorate,BOLTON METRO BOROUGH COUNCIL,CL069658,"1,280,546.75",Capital grants - Local Government
Department for Education,Core,20/07/2023,Grants Expenditure,Capital Directorate,BURY METRO BOROUGH COUNCIL,CL069659,"901,723.99",Capital grants - Local Government
Department for Education,Core,20/07/2023,Grants Expenditure,Capital Directorate,MANCHESTER CITY COUNCIL,CL069660,"3,716,819.85",Capital grants - Local Government
Department for Education,Core,20/07/2023,Grants Expenditure,Capital Directorate,OLDHAM METRO BOROUGH COUNCIL,CL069661,"1,276,835.98",Capital grants - Local Government
Department for Education,Core,20/07/2023,Grants Expenditure,Capital Directorate,ROCHDALE BOROUGH COUNCIL,CL069662,"1,336,169.06",Capital grants - Local Government
Department for Education,Core,20/07/2023,Grants Expenditure,Capital Directorate,Salford City Council,CL069663,"3,156,820.29",Capital grants - Local Government
Department for Education,Core,20/07/2023,Grants Expenditure,Capital Directorate,STOCKPORT METRO BOROUGH COUNCIL,CL069664,"1,335,031.20",Capital grants - Local Government
Department for Education,Core,20/07/2023,Grants Expenditure,Capital Directorate,TAMESIDE METRO BOROUGH COUNCIL,CL069665,"1,492,643.51",Capital grants - Local Government
Department for Education,Core,20/07/2023,Grants Expenditure,Capital Directorate,Trafford Borough Council,CL069666,"1,559,802.09",Capital grants - Local Government
Department for Education,Core,20/07/2023,Grants Expenditure,Capital Directorate,Wigan Metropolitan Borough Council,CL069667,"1,408,229.52",Capital grants - Local Government
Department for Education,Core,20/07/2023,Grants Expenditure,Capital Directorate,BARNSLEY METROPOLITAN BOROUGH COUNCIL,CL069668,"1,389,445.68",Capital grants - Local Government
Department for Education,Core,20/07/2023,Grants Expenditure,Capital Directorate,DONCASTER METRO BOROUGH COUNCIL,CL069669,"1,573,169.74",Capital grants - Local Government
Department for Education,Core,20/07/2023,Grants Expenditure,Capital Directorate,ROTHERHAM BOROUGH COUNCIL,CL069670,"1,286,420.29",Capital grants - Local Government
Department for Education,Core,20/07/2023,Grants Expenditure,Capital Directorate,SHEFFIELD CITY COUNCIL,CL069671,"3,022,023.11",Capital grants - Local Government
Department for Education,Core,20/07/2023,Grants Expenditure,Capital Directorate,BRADFORD CITY COUNCIL,CL069672,"2,884,809.22",Capital grants - Local Government
Department for Education,Core,20/07/2023,Grants Expenditure,Capital Directorate,CALDERDALE METRO BOROUGH COUNCIL,CL069673,"720,985.91",Capital grants - Local Government
Department for Education,Core,20/07/2023,Grants Expenditure,Capital Directorate,KIRKLEES METRO COUNCIL,CL069674,"1,960,792.06",Capital grants - Local Government
Department for Education,Core,20/07/2023,Grants Expenditure,Capital Directorate,LEEDS CITY COUNCIL,CL069675,"6,026,776.19",Capital grants - Local Government
Department for Education,Core,20/07/2023,Grants Expenditure,Capital Directorate,Wakefield City Council,CL069676,"1,594,617.91",Capital grants - Local Government
Department for Education,Core,20/07/2023,Grants Expenditure,Capital Directorate,GATESHEAD COUNCIL,CL069677,"859,397.10",Capital grants - Local Government
Department for Education,Core,20/07/2023,Grants Expenditure,Capital Directorate,Newcastle upon Tyne City Council,CL069678,"2,260,318.00",Capital grants - Local Government
Department for Education,Core,20/07/2023,Grants Expenditure,Capital Directorate,NORTH TYNESIDE METRO BOROUGH COUNCIL,CL069679,"873,028.93",Capital grants - Local Government
Department for Education,Core,20/07/2023,Grants Expenditure,Capital Directorate,SOUTH TYNESIDE COUNCIL,CL069680,"680,006.70",Capital grants - Local Government
Department for Education,Core,20/07/2023,Grants Expenditure,Capital Directorate,SUNDERLAND CITY METRO BOROUGH COUNCIL,CL069681,"1,054,495.34",Capital grants - Local Government
Department for Education,Core,20/07/2023,Grants Expenditure,Capital Directorate,COUNCIL OF ISLES OF SCILLY,CL069682,"211,925.49",Capital grants - Local Government
Department for Education,Core,20/07/2023,Grants Expenditure,Capital Directorate,BATH & NORTH EAST SOMERSET COUNCIL,CL069683,"1,401,137.96",Capital grants - Local Government
Department for Education,Core,20/07/2023,Grants Expenditure,Capital Directorate,Bristol City Council,CL069684,"3,603,260.35",Capital grants - Local Government
Department for Education,Core,20/07/2023,Grants Expenditure,Capital Directorate,North Somerset Council,CL069685,"1,150,256.86",Capital grants - Local Government
Department for Education,Core,20/07/2023,Grants Expenditure,Capital Directorate,SOUTH GLOUCESTERSHIRE COUNCIL,CL069686,"2,356,449.78",Capital grants - Local Government
Department for Education,Core,20/07/2023,Grants Expenditure,Capital Directorate,HARTLEPOOL BOROUGH COUNCIL,CL069687,"310,383.82",Capital grants - Local Government
Department for Education,Core,20/07/2023,Grants Expenditure,Capital Directorate,Middlesbrough Council,CL069688,"1,159,395.49",Capital grants - Local Government
Department for Education,Core,20/07/2023,Grants Expenditure,Capital Directorate,Redcar & Cleveland Borough Council,CL069689,"713,315.47",Capital grants - Local Government
Department for Education,Core,20/07/2023,Grants Expenditure,Capital Directorate,STOCKTON ON TEES BOROUGH COUNCIL,CL069690,"1,125,777.82",Capital grants - Local Government
Department for Education,Core,20/07/2023,Grants Expenditure,Capital Directorate,KINGSTON UPON HULL CITY COUNCIL,CL069691,"1,730,194.59",Capital grants - Local Government
Department for Education,Core,20/07/2023,Grants Expenditure,Capital Directorate,EAST RIDING OF YORKSHIRE COUNCIL,CL069692,"1,453,091.86",Capital grants - Local Government
Department for Education,Core,20/07/2023,Grants Expenditure,Capital Directorate,North East Lincolnshire Council,CL069693,"615,277.66",Capital grants - Local Government
Department for Education,Core,20/07/2023,Grants Expenditure,Capital Directorate,NORTH LINCOLNSHIRE COUNCIL,CL069694,"891,421.87",Capital grants - Local Government
Department for Education,Core,20/07/2023,Grants Expenditure,Capital Directorate,NORTH YORKSHIRE COUNTY COUNCIL,CL069695,"1,924,143.12",Capital grants - Local Government
Department for Education,Core,20/07/2023,Grants Expenditure,Capital Directorate,CITY OF YORK COUNCIL,CL069696,"1,161,166.19",Capital grants - Local Government
Department for Education,Core,20/07/2023,Grants Expenditure,Capital Directorate,LUTON BOROUGH COUNCIL,CL069697,"1,126,978.97",Capital grants - Local Government
Department for Education,Core,20/07/2023,Grants Expenditure,Capital Directorate,BEDFORD BOROUGH COUNCIL,CL069698,"1,174,961.68",Capital grants - Local Government
Department for Education,Core,20/07/2023,Grants Expenditure,Capital Directorate,CENTRAL BEDFORDSHIRE COUNCIL,CL069699,"2,502,250.94",Capital grants - Local Government
Department for Education,Core,20/07/2023,Grants Expenditure,Capital Directorate,Buckinghamshire Council,CL069700,"2,981,091.78",Capital grants - Local Government
Department for Education,Core,20/07/2023,Grants Expenditure,Capital Directorate,MILTON KEYNES COUNCIL,CL069701,"2,869,787.89",Capital grants - Local Government
Department for Education,Core,20/07/2023,Grants Expenditure,Capital Directorate,DERBYSHIRE COUNTY COUNCIL,CL069702,"2,902,881.49",Capital grants - Local Government
Department for Education,Core,20/07/2023,Grants Expenditure,Capital Directorate,DERBY CITY COUNCIL,CL069703,"1,829,244.80",Capital grants - Local Government
Department for Education,Core,20/07/2023,Grants Expenditure,Capital Directorate,DORSET COUNCIL,CL069704,"1,578,413.56",Capital grants - Local Government
Department for Education,Core,20/07/2023,Grants Expenditure,Capital Directorate,"Bournemouth, Christchurch and Poole Council",CL069705,"2,595,254.34",Capital grants - Local Government
Department for Education,Core,20/07/2023,Grants Expenditure,Capital Directorate,DURHAM COUNTY COUNCIL,CL069706,"2,731,663.95",Capital grants - Local Government
Department for Education,Core,20/07/2023,Grants Expenditure,Capital Directorate,DARLINGTON BOROUGH COUNCIL,CL069707,"358,637.34",Capital grants - Local Government
Department for Education,Core,20/07/2023,Grants Expenditure,Capital Directorate,EAST SUSSEX COUNTY COUNCIL,CL069708,"2,171,622.09",Capital grants - Local Government
Department for Education,Core,20/07/2023,Grants Expenditure,Capital Directorate,BRIGHTON & HOVE CITY COUNCIL,CL069709,"1,427,702.18",Capital grants - Local Government
Department for Education,Core,20/07/2023,Grants Expenditure,Capital Directorate,HAMPSHIRE COUNTY COUNCIL,CL069710,"6,093,376.80",Capital grants - Local Government
Department for Education,Core,20/07/2023,Grants Expenditure,Capital Directorate,Portsmouth City Council,CL069711,"1,246,559.04",Capital grants - Local Government
Department for Education,Core,20/07/2023,Grants Expenditure,Capital Directorate,SOUTHAMPTON CITY COUNCIL,CL069712,"2,012,092.69",Capital grants - Local Government
Department for Education,Core,20/07/2023,Grants Expenditure,Capital Directorate,LEICESTERSHIRE COUNTY COUNCIL,CL069713,"3,772,389.51",Capital grants - Local Government
Department for Education,Core,20/07/2023,Grants Expenditure,Capital Directorate,LEICESTER CITY COUNCIL,CL069714,"2,263,139.40",Capital grants - Local Government
Department for Education,Core,20/07/2023,Grants Expenditure,Capital Directorate,RUTLAND COUNTY COUNCIL,CL069715,"228,459.68",Capital grants - Local Government
Department for Education,Core,20/07/2023,Grants Expenditure,Capital Directorate,Staffordshire County Council,CL069716,"3,009,016.45",Capital grants - Local Government
Department for Education,Core,20/07/2023,Grants Expenditure,Capital Directorate,STOKE ON TRENT CITY COUNCIL,CL069717,"1,540,538.09",Capital grants - Local Government
Department for Education,Core,20/07/2023,Grants Expenditure,Capital Directorate,WILTSHIRE COUNTY COUNCIL,CL069718,"2,257,462.62",Capital grants - Local Government
Department for Education,Core,20/07/2023,Grants Expenditure,Capital Directorate,Swindon Borough Council,CL069719,"1,483,741.14",Capital grants - Local Government
Department for Education,Core,20/07/2023,Grants Expenditure,Capital Directorate,BRACKNELL FOREST BOROUGH COUNCIL,CL069720,"940,752.71",Capital grants - Local Government
Department for Education,Core,20/07/2023,Grants Expenditure,Capital Directorate,ROYAL BOROUGH OF WINDSOR & MAIDENHEAD,CL069721,"814,315.95",Capital grants - Local Government
Department for Education,Core,20/07/2023,Grants Expenditure,Capital Directorate,WEST BERKSHIRE COUNCIL,CL069722,"1,077,037.87",Capital grants - Local Government
Department for Education,Core,20/07/2023,Grants Expenditure,Capital Directorate,Reading Borough Council,CL069723,"1,120,390.53",Capital grants - Local Government
Department for Education,Core,20/07/2023,Grants Expenditure,Capital Directorate,SLOUGH BOROUGH COUNCIL,CL069724,"1,254,378.81",Capital grants - Local Government
Department for Education,Core,20/07/2023,Grants Expenditure,Capital Directorate,WOKINGHAM COUNCIL,CL069725,"1,286,269.75",Capital grants - Local Government
Department for Education,Core,20/07/2023,Grants Expenditure,Capital Directorate,CAMBRIDGESHIRE COUNTY COUNCIL,CL069726,"3,320,655.13",Capital grants - Local Government
Department for Education,Core,20/07/2023,Grants Expenditure,Capital Directorate,PETERBOROUGH CITY COUNCIL,CL069727,"1,830,693.50",Capital grants - Local Government
Department for Education,Core,20/07/2023,Grants Expenditure,Capital Directorate,HALTON BOROUGH COUNCIL,CL069728,"657,968.21",Capital grants - Local Government
Department for Education,Core,20/07/2023,Grants Expenditure,Capital Directorate,WARRINGTON BOROUGH COUNCIL,CL069729,"681,678.36",Capital grants - Local Government
Department for Education,Core,20/07/2023,Grants Expenditure,Capital Directorate,DEVON COUNTY COUNCIL,CL069730,"3,688,071.85",Capital grants - Local Government
Department for Education,Core,20/07/2023,Grants Expenditure,Capital Directorate,PLYMOUTH CITY COUNCIL,CL069731,"2,101,166.70",Capital grants - Local Government
Department for Education,Core,20/07/2023,Grants Expenditure,Capital Directorate,TORBAY COUNCIL,CL069732,"593,910.58",Capital grants - Local Government
Department for Education,Core,20/07/2023,Grants Expenditure,Capital Directorate,ESSEX COUNTY COUNCIL,CL069733,"6,752,718.24",Capital grants - Local Government
Department for Education,Core,20/07/2023,Grants Expenditure,Capital Directorate,SOUTHEND ON SEA BOROUGH COUNCIL,CL069734,"1,040,565.29",Capital grants - Local Government
Department for Education,Core,20/07/2023,Grants Expenditure,Capital Directorate,THURROCK BOROUGH COUNCIL,CL069735,"1,384,198.37",Capital grants - Local Government
Department for Education,Core,20/07/2023,Grants Expenditure,Capital Directorate,HEREFORDSHIRE COUNCIL,CL069736,"795,648.14",Capital grants - Local Government
Department for Education,Core,20/07/2023,Grants Expenditure,Capital Directorate,Worcestershire County Council,CL069737,"2,298,092.61",Capital grants - Local Government
Department for Education,Core,20/07/2023,Grants Expenditure,Capital Directorate,KENT COUNTY COUNCIL,CL069738,"9,377,735.81",Capital grants - Local Government
Department for Education,Core,20/07/2023,Grants Expenditure,Capital Directorate,MEDWAY COUNCIL,CL069739,"1,609,476.34",Capital grants - Local Government
Department for Education,Core,20/07/2023,Grants Expenditure,Capital Directorate,Lancashire County Council,CL069740,"5,911,733.48",Capital grants - Local Government
Department for Education,Core,20/07/2023,Grants Expenditure,Capital Directorate,Blackburn with Darwen Borough Council,CL069741,"780,494.98",Capital grants - Local Government
Department for Education,Core,20/07/2023,Grants Expenditure,Capital Directorate,BLACKPOOL BOROUGH COUNCIL,CL069742,"461,621.95",Capital grants - Local Government
Department for Education,Core,20/07/2023,Grants Expenditure,Capital Directorate,NOTTINGHAMSHIRE COUNTY COUNCIL,CL069743,"5,163,343.04",Capital grants - Local Government
Department for Education,Core,20/07/2023,Grants Expenditure,Capital Directorate,Nottingham City Council,CL069744,"3,439,815.21",Capital grants - Local Government
Department for Education,Core,20/07/2023,Grants Expenditure,Capital Directorate,SHROPSHIRE COUNCIL,CL069745,"1,320,774.29",Capital grants - Local Government
Department for Education,Core,20/07/2023,Grants Expenditure,Capital Directorate,Telford and Wrekin Council,CL069746,"1,184,956.02",Capital grants - Local Government
Department for Education,Core,20/07/2023,Grants Expenditure,Capital Directorate,Cheshire East Council,CL069747,"1,618,907.07",Capital grants - Local Government
Department for Education,Core,20/07/2023,Grants Expenditure,Capital Directorate,CHESHIRE WEST & CHESTER COUNCIL,CL069748,"1,659,163.92",Capital grants - Local Government
Department for Education,Core,20/07/2023,Grants Expenditure,Capital Directorate,CORNWALL COUNCIL,CL069749,"2,831,303.44",Capital grants - Local Government
Department for Education,Core,20/07/2023,Grants Expenditure,Capital Directorate,Gloucestershire County Council,CL069750,"3,329,772.23",Capital grants - Local Government
Department for Education,Core,20/07/2023,Grants Expenditure,Capital Directorate,HERTFORDSHIRE COUNTY COUNCIL,CL069751,"6,747,695.75",Capital grants - Local Government
Department for Education,Core,20/07/2023,Grants Expenditure,Capital Directorate,ISLE OF WIGHT COUNCIL,CL069752,"211,925.49",Capital grants - Local Government
Department for Education,Core,20/07/2023,Grants Expenditure,Capital Directorate,LINCOLNSHIRE COUNTY COUNCIL,CL069753,"3,924,268.46",Capital grants - Local Government
Department for Education,Core,20/07/2023,Grants Expenditure,Capital Directorate,NORFOLK COUNTY COUNCIL,CL069754,"4,392,815.66",Capital grants - Local Government
Department for Education,Core,20/07/2023,Grants Expenditure,Capital Directorate,NORTHUMBERLAND COUNTY COUNCIL,CL069755,"1,038,579.07",Capital grants - Local Government
Department for Education,Core,20/07/2023,Grants Expenditure,Capital Directorate,Oxfordshire County Council,CL069756,"3,677,316.20",Capital grants - Local Government
Department for Education,Core,20/07/2023,Grants Expenditure,Capital Directorate,Somerset County Council,CL069757,"2,513,936.14",Capital grants - Local Government
Department for Education,Core,20/07/2023,Grants Expenditure,Capital Directorate,SUFFOLK COUNTY COUNCIL,CL069758,"2,996,300.01",Capital grants - Local Government
Department for Education,Core,20/07/2023,Grants Expenditure,Capital Directorate,SURREY COUNTY COUNCIL,CL069759,"6,657,350.83",Capital grants - Local Government
Department for Education,Core,20/07/2023,Grants Expenditure,Capital Directorate,WARWICKSHIRE COUNTY COUNCIL,CL069760,"2,546,400.75",Capital grants - Local Government
Department for Education,Core,20/07/2023,Grants Expenditure,Capital Directorate,West Sussex County Council,CL069761,"4,570,950.27",Capital grants - Local Government
Department for Education,Core,20/07/2023,Grants Expenditure,Capital Directorate,North Northamptonshire Council,CL069762,"2,268,272.10",Capital grants - Local Government
Department for Education,Core,20/07/2023,Grants Expenditure,Capital Directorate,West Northamptonshire Council,CL069763,"2,835,558.40",Capital grants - Local Government
Department for Education,Core,20/07/2023,Grants Expenditure,Capital Directorate,Cumberland Council,CL069771,"2,052,576.40",Capital grants - Local Government
Department for Education,Core,20/07/2023,Grants Expenditure,Capital Directorate,Westmorland & Furness Council,CL069772,"1,612,738.31",Capital grants - Local Government
Department for Education,Core,19/07/2023,Grants Expenditure,Capital Directorate,Worcestershire County Council,D-CINV004848,"38,368.95",Capital Grant - Local Government
Department for Education,Core,21/07/2023,Grants Expenditure,Capital Directorate,DURHAM COUNTY COUNCIL,D-CINV004862,"26,351.00",Capital Grant - Local Government
Department for Education,Core,21/07/2023,Grants Expenditure,Capital Directorate,SURREY COUNTY COUNCIL,D-CINV004864,"80,000.00",Capital Grant - Local Government
Department for Education,Core,17/07/2023,IS/IT,Capital Directorate,COGNIZANT WORLDWIDE LIMITED,D-PINV056468,"26,118.76",Systems Development
Department for Education,Core,17/07/2023,IS/IT,Capital Directorate,COGNIZANT WORLDWIDE LIMITED,D-PINV056469,"26,960.53",Systems Development
Department for Education,Core,18/07/2023,Other Goods & Services,Capital Directorate,COGNIZANT WORLDWIDE LIMITED,D-PINV056585,"57,762.50",Professional Services
Department for Education,Core,18/07/2023,Other Goods & Services,Capital Directorate,COGNIZANT WORLDWIDE LIMITED,D-PINV056587,"55,137.00",Professional Services
Department for Education,Core,27/07/2023,Other Goods & Services,Capital Directorate,COGNIZANT WORLDWIDE LIMITED,D-PINV056800,"28,656.00",Professional Services
Department for Education,Core,13/07/2023,Grants Income,Capital Directorate,PSBP Midlands Limited,D-PINV056454,"31,502.66",PSPB PF2 Capital Contributions / Payments
Department for Education,Core,27/07/2023,Grants Income,Capital Directorate,PSBP Midlands Limited,D-PINV056686,"33,006.50",PSPB PF2 Capital Contributions / Payments
